﻿Department family,Entity,Date of payment,Expense type,Expense area,Supplier,Transaction number,Amount in Sterling,Supplier VAT Registration Number
Department of Health,Guys and St Thomas NHS Foundation Trust,08/10/2021,(89000) Other - Training courses and conferences,(id:4988419) TAP,ULSTER UNIVERSITY,id:14416774  ,    11910.00
Department of Health,Guys and St Thomas NHS Foundation Trust,22/10/2021,(84650) Establishment,(id:4988419) TAP,MMA HEALTHCARE RECRUITMENT UK LTD,id:14533274   ,2584.79
Department of Health,Guys and St Thomas NHS Foundation Trust,08/10/2021,(81400) Medical Surgical Supplies & Equipment,(id:41900) TAP,NHS SUPPLY CHAIN ( CAPITAL FUND ONLY),id:14477456  ,1336.11
Department of Health,Guys and St Thomas NHS Foundation Trust,15/10/2021,(81200) Medical Surgical Supplies & Equipment,(id:41907) TAP,NHS SUPPLY CHAIN (MAIDSTONE),id:14421654 ,1550.86
Department of Health,Guys and St Thomas NHS Foundation Trust,08/10/2021,(81200) Medical Surgical Supplies & Equipment,(id:41907) TAP,MEDTRONIC LTD,id:14180973 ,2244.00
Department of Health,Guys and St Thomas NHS Foundation Trust,15/10/2021,(81200) Medical Surgical Supplies & Equipment,(id:41907) TAP,MEDTRONIC LTD,id:14457239 ,1800.00
Department of Health,Guys and St Thomas NHS Foundation Trust,22/10/2021,(82600) Uniforms & Clothing,(id:41907) TAP,NHS SUPPLY CHAIN (MAIDSTONE),id:14478413    ,    .72
Department of Health,Guys and St Thomas NHS Foundation Trust,15/10/2021,(82800) Bedding & Linen,(id:41906) TAP,NHS SUPPLY CHAIN (MAIDSTONE),id:14441943   ,  48.94
Department of Health,Guys and St Thomas NHS Foundation Trust,15/10/2021,(81200) Medical Surgical Supplies & Equipment,(id:41906) TAP,NHS SUPPLY CHAIN (MAIDSTONE),id:14441943 ,3700.01
Department of Health,Guys and St Thomas NHS Foundation Trust,15/10/2021,(82800) Bedding & Linen,(id:41905) TAP,NHS SUPPLY CHAIN (MAIDSTONE),id:14421654   ,   3.72
Department of Health,Guys and St Thomas NHS Foundation Trust,15/10/2021,(81200) Medical Surgical Supplies & Equipment,(id:41905) TAP,AMBU LIMITED,id:14521294  , 954.00
Department of Health,Guys and St Thomas NHS Foundation Trust,15/10/2021,(81200) Medical Surgical Supplies & Equipment,(id:41905) TAP,MELYD SURGICAL LTD,id:14498554 ,2040.60
Department of Health,Guys and St Thomas NHS Foundation Trust,15/10/2021,(83400) Office Equipment,(id:41905) TAP,NHS SUPPLY CHAIN (MAIDSTONE),id:14421654  ,   4.27
Department of Health,Guys and St Thomas NHS Foundation Trust,15/10/2021,(83400) Office Equipment,(id:41905) TAP,NHS SUPPLY CHAIN (MAIDSTONE),id:14441943  ,   1.07
Department of Health,Guys and St Thomas NHS Foundation Trust,01/10/2021,(50200) Consultants,(id:41905) TAP,KINGS COLLEGE LONDON:03529700,id:14485984 ,2546.49
Department of Health,Guys and St Thomas NHS Foundation Trust,22/10/2021,(81200) Medical Surgical Supplies & Equipment,(id:850419) TAP,NHS SUPPLY CHAIN (MAIDSTONE),id:14500176, 130.92
Department of Health,Guys and St Thomas NHS Foundation Trust,28/10/2021,(81500) X Ray Equipment Purchase,(id:850419) TAP,OPTIMUS MEDICAL LTD,id:14563655  , 159.00
Department of Health,Guys and St Thomas NHS Foundation Trust,15/10/2021,(83400) Office Equipment,(id:850419) TAP,NHS SUPPLY CHAIN (MAIDSTONE),id:14421654 , 259.92
Department of Health,Guys and St Thomas NHS Foundation Trust,15/10/2021,(82700) Uniforms & Clothing,(id:41918) TAP,NHS SUPPLY CHAIN (MAIDSTONE),id:14421654    ,  85.20
Department of Health,Guys and St Thomas NHS Foundation Trust,15/10/2021,(82800) Bedding & Linen,(id:41918) TAP,NHS SUPPLY CHAIN (MAIDSTONE),id:14399770   , 333.60
Department of Health,Guys and St Thomas NHS Foundation Trust,15/10/2021,(81200) Medical Surgical Supplies & Equipment,(id:41918) TAP,NHS SUPPLY CHAIN (MAIDSTONE),id:14421654 ,1101.12
Department of Health,Guys and St Thomas NHS Foundation Trust,15/10/2021,(81200) Medical Surgical Supplies & Equipment,(id:41918) TAP,STRYKER UK LTD,id:14518194, 562.56
Department of Health,Guys and St Thomas NHS Foundation Trust,28/10/2021,(81200) Medical Surgical Supplies & Equipment,(id:41918) TAP,TOFFELN (BRISTOL),id:14562794  , 648.00
Department of Health,Guys and St Thomas NHS Foundation Trust,22/10/2021,(81100) Dressings,(id:41918) TAP,NHS SUPPLY CHAIN (MAIDSTONE),id:14478413    , 631.24
Department of Health,Guys and St Thomas NHS Foundation Trust,15/10/2021,(81100) Dressings,(id:41918) TAP,NHS SUPPLY CHAIN (MAIDSTONE),id:14421654    , 161.16
Department of Health,Guys and St Thomas NHS Foundation Trust,15/10/2021,(81225) Medical Surgical Supplies & Equipment,(id:41918) TAP,NHS SUPPLY CHAIN (MAIDSTONE),id:14399770 ,  14.54
Department of Health,Guys and St Thomas NHS Foundation Trust,22/10/2021,(50562) Qualified Nursing Staff,(id:41918) TAP,STAFFING PROFESSIONALS LTD,id:14556553  , 753.49
Department of Health,Guys and St Thomas NHS Foundation Trust,22/10/2021,(82000) Provisions & Kitchens,(id:41916) TAP,NHS SUPPLY CHAIN (MAIDSTONE),id:14478413  ,  27.85
Department of Health,Guys and St Thomas NHS Foundation Trust,15/10/2021,(81200) Medical Surgical Supplies & Equipment,(id:41916) TAP,NHS SUPPLY CHAIN (MAIDSTONE),id:14421654 ,1027.81
Department of Health,Guys and St Thomas NHS Foundation Trust,22/10/2021,(83400) Office Equipment,(id:41916) TAP,NHS SUPPLY CHAIN (MAIDSTONE),id:14478413  , 551.50
Department of Health,Guys and St Thomas NHS Foundation Trust,15/10/2021,(81700) Lab Equipment Purchase,(id:41916) TAP,NHS SUPPLY CHAIN (MAIDSTONE),id:14399770 ,   6.10
Department of Health,Guys and St Thomas NHS Foundation Trust,22/10/2021,(81275) Medical Surgical Supplies & Equipment,(id:41924) TAP,NHS SUPPLY CHAIN (MAIDSTONE),id:14500176 ,  57.84
Department of Health,Guys and St Thomas NHS Foundation Trust,15/10/2021,(83500) Furniture & Fittings,(id:41922) TAP,NHS SUPPLY CHAIN (MAIDSTONE),id:14441943   , 412.93
Department of Health,Guys and St Thomas NHS Foundation Trust,15/10/2021,(81100) Dressings,(id:41921) TAP,NHS SUPPLY CHAIN (MAIDSTONE),id:14399770    , 466.56
Department of Health,Guys and St Thomas NHS Foundation Trust,15/10/2021,(81100) Dressings,(id:41888) TAP,NHS SUPPLY CHAIN (MAIDSTONE),id:14421654    ,   9.90
Department of Health,Guys and St Thomas NHS Foundation Trust,22/10/2021,(82600) Uniforms & Clothing,(id:41883) TAP,NHS SUPPLY CHAIN (MAIDSTONE),id:14500176    , 425.31
Department of Health,Guys and St Thomas NHS Foundation Trust,22/10/2021,(82800) Bedding & Linen,(id:41883) TAP,NHS SUPPLY CHAIN (MAIDSTONE),id:14478413   , 234.13
Department of Health,Guys and St Thomas NHS Foundation Trust,15/10/2021,(81700) Lab Equipment Purchase,(id:41883) TAP,NHS SUPPLY CHAIN (MAIDSTONE),id:14421654 ,   5.34
Department of Health,Guys and St Thomas NHS Foundation Trust,15/10/2021,(81225) Medical Surgical Supplies & Equipment,(id:41883) TAP,NHS SUPPLY CHAIN (MAIDSTONE),id:14421654 ,  95.93
Department of Health,Guys and St Thomas NHS Foundation Trust,22/10/2021,(81100) Dressings,(id:41883) TAP,ELIS UK LIMITED,id:14551035  , 791.96
Department of Health,Guys and St Thomas NHS Foundation Trust,22/10/2021,(81200) Medical Surgical Supplies & Equipment,(id:41883) TAP,NHS SUPPLY CHAIN (MAIDSTONE),id:14500176 ,3203.79
Department of Health,Guys and St Thomas NHS Foundation Trust,15/10/2021,(81200) Medical Surgical Supplies & Equipment,(id:41883) TAP,NHS SUPPLY CHAIN (MAIDSTONE),id:14421654 ,1614.60
Department of Health,Guys and St Thomas NHS Foundation Trust,01/10/2021,(81200) Medical Surgical Supplies & Equipment,(id:41883) TAP,JOHNSON & JOHNSON MEDICAL LTD,id:14419709, 280.10
Department of Health,Guys and St Thomas NHS Foundation Trust,01/10/2021,(84500) Establishment,(id:41883) TAP,WYBONE LTD,id:14482401   , 652.20
Department of Health,Guys and St Thomas NHS Foundation Trust,22/10/2021,(82000) Provisions & Kitchens,(id:41883) TAP,NHS SUPPLY CHAIN (MAIDSTONE),id:14478413  ,  23.52
Department of Health,Guys and St Thomas NHS Foundation Trust,01/10/2021,(50562) Qualified Nursing Staff,(id:41883) TAP,STAFFING PROFESSIONALS LTD,id:14483655  , 868.13
Department of Health,Guys and St Thomas NHS Foundation Trust,15/10/2021,(81100) Dressings,(id:2549419) TAP,NHS SUPPLY CHAIN (MAIDSTONE),id:14421654  ,    .89
Department of Health,Guys and St Thomas NHS Foundation Trust,15/10/2021,(81200) Medical Surgical Supplies & Equipment,(id:41913) TAP,NHS SUPPLY CHAIN (MAIDSTONE),id:14399770 ,  13.80
Department of Health,Guys and St Thomas NHS Foundation Trust,15/10/2021,(82600) Uniforms & Clothing,(id:41897) TAP,NHS SUPPLY CHAIN (MAIDSTONE),id:14399770    , 189.36
Department of Health,Guys and St Thomas NHS Foundation Trust,15/10/2021,(83400) Office Equipment,(id:41897) TAP,NHS SUPPLY CHAIN (MAIDSTONE),id:14441943  ,1529.63
Department of Health,Guys and St Thomas NHS Foundation Trust,22/10/2021,(82800) Bedding & Linen,(id:41897) TAP,NHS SUPPLY CHAIN (MAIDSTONE),id:14500176   , 151.59
Department of Health,Guys and St Thomas NHS Foundation Trust,22/10/2021,(82800) Bedding & Linen,(id:41897) TAP,NHS SUPPLY CHAIN (MAIDSTONE),id:14478413   , 278.05
Department of Health,Guys and St Thomas NHS Foundation Trust,08/10/2021,(81200) Medical Surgical Supplies & Equipment,(id:41897) TAP,CRYOLIFE EUROPA LTD,id:14497294, 630.00
Department of Health,Guys and St Thomas NHS Foundation Trust,15/10/2021,(81200) Medical Surgical Supplies & Equipment,(id:41897) TAP,ELIS UK LIMITED,id:14484372    ,  46.75
Department of Health,Guys and St Thomas NHS Foundation Trust,15/10/2021,(81200) Medical Surgical Supplies & Equipment,(id:41897) TAP,CRYOLIFE EUROPA LTD,id:14522495, 630.00
Department of Health,Guys and St Thomas NHS Foundation Trust,22/10/2021,(81200) Medical Surgical Supplies & Equipment,(id:41897) TAP,JOHNSON & JOHNSON MEDICAL LTD,id:14500740, 606.53
Department of Health,Guys and St Thomas NHS Foundation Trust,15/10/2021,(81100) Dressings,(id:41897) TAP,ELIS UK LIMITED,id:14484434  , 699.61
Department of Health,Guys and St Thomas NHS Foundation Trust,22/10/2021,(81100) Dressings,(id:41897) TAP,NHS SUPPLY CHAIN (MAIDSTONE),id:14500176    ,1616.29
Department of Health,Guys and St Thomas NHS Foundation Trust,22/10/2021,(81100) Dressings,(id:41897) TAP,JOHNSON & JOHNSON MEDICAL LTD,id:14507589   , 587.57
Department of Health,Guys and St Thomas NHS Foundation Trust,08/10/2021,(81400) Medical Surgical Supplies & Equipment,(id:41897) TAP,MELYD SURGICAL LTD,id:14418625 ,    12580.00
Department of Health,Guys and St Thomas NHS Foundation Trust,22/10/2021,(81100) Dressings,(id:41894) TAP,NHS SUPPLY CHAIN (MAIDSTONE),id:14500176    ,   1.40
Department of Health,Guys and St Thomas NHS Foundation Trust,01/10/2021,(81100) Dressings,(id:41894) TAP,ELIS UK LIMITED,id:14484360  , 464.35
Department of Health,Guys and St Thomas NHS Foundation Trust,22/10/2021,(82800) Bedding & Linen,(id:41894) TAP,NHS SUPPLY CHAIN (MAIDSTONE),id:14500176   ,   5.68
Department of Health,Guys and St Thomas NHS Foundation Trust,22/10/2021,(83400) Office Equipment,(id:41894) TAP,NHS SUPPLY CHAIN (MAIDSTONE),id:14500176  ,  48.89
Department of Health,Guys and St Thomas NHS Foundation Trust,15/10/2021,(83400) Office Equipment,(id:41894) TAP,NHS SUPPLY CHAIN (MAIDSTONE),id:14441943  ,  17.24
Department of Health,Guys and St Thomas NHS Foundation Trust,15/10/2021,(81200) Medical Surgical Supplies & Equipment,(id:5182419) Gastrointestinal Medicine & Surgery,INTUITIVE SURGICAL LTD,id:14487117   ,1304.40
Department of Health,Guys and St Thomas NHS Foundation Trust,08/10/2021,(81200) Medical Surgical Supplies & Equipment,(id:5182419) Gastrointestinal Medicine & Surgery,INTUITIVE SURGICAL LTD,id:14487123   ,1152.00
Department of Health,Guys and St Thomas NHS Foundation Trust,28/10/2021,(81200) Medical Surgical Supplies & Equipment,(id:5182419) Gastrointestinal Medicine & Surgery,INTUITIVE SURGICAL LTD,id:14568594   , 769.20
Department of Health,Guys and St Thomas NHS Foundation Trust,01/10/2021,(81200) Medical Surgical Supplies & Equipment,(id:5182419) Gastrointestinal Medicine & Surgery,LAWMED LTD,id:14481083, 628.20
Department of Health,Guys and St Thomas NHS Foundation Trust,01/10/2021,(81200) Medical Surgical Supplies & Equipment,(id:5182419) Gastrointestinal Medicine & Surgery,INTUITIVE SURGICAL LTD,id:14432334   ,1972.20
Department of Health,Guys and St Thomas NHS Foundation Trust,28/10/2021,(81200) Medical Surgical Supplies & Equipment,(id:41963) Gastrointestinal Medicine & Surgery,INTUITIVE SURGICAL LTD,id:14576270,    15000.00
Department of Health,Guys and St Thomas NHS Foundation Trust,22/10/2021,(82800) Bedding & Linen,(id:41958) Gastrointestinal Medicine & Surgery,NHS SUPPLY CHAIN (MAIDSTONE),id:14478413 , 442.76
Department of Health,Guys and St Thomas NHS Foundation Trust,22/10/2021,(81200) Medical Surgical Supplies & Equipment,(id:41958) Gastrointestinal Medicine & Surgery,NHS SUPPLY CHAIN (MAIDSTONE),id:14500176    , 458.61
Department of Health,Guys and St Thomas NHS Foundation Trust,15/10/2021,(81200) Medical Surgical Supplies & Equipment,(id:41958) Gastrointestinal Medicine & Surgery,NHS SUPPLY CHAIN (MAIDSTONE),id:14399770    , 586.41
Department of Health,Guys and St Thomas NHS Foundation Trust,15/10/2021,(50522) Unqualified Nursing Staff,(id:41958) Gastrointestinal Medicine & Surgery,MSI GROUP LTD,id:14534223 ,1085.70
Department of Health,Guys and St Thomas NHS Foundation Trust,08/10/2021,(50522) Unqualified Nursing Staff,(id:41958) Gastrointestinal Medicine & Surgery,MSI GROUP LTD,id:14506283 , 827.49
Department of Health,Guys and St Thomas NHS Foundation Trust,28/10/2021,(50522) Unqualified Nursing Staff,(id:41958) Gastrointestinal Medicine & Surgery,MSI GROUP LTD,id:14581030 , 258.37
Department of Health,Guys and St Thomas NHS Foundation Trust,01/10/2021,(50522) Unqualified Nursing Staff,(id:41958) Gastrointestinal Medicine & Surgery,MSI GROUP LTD,id:14483770 , 286.22
Department of Health,Guys and St Thomas NHS Foundation Trust,15/10/2021,(81700) Lab Equipment Purchase,(id:41958) Gastrointestinal Medicine & Surgery,NHS SUPPLY CHAIN (MAIDSTONE),id:14399770    ,   3.10
Department of Health,Guys and St Thomas NHS Foundation Trust,15/10/2021,(81700) Lab Equipment Purchase,(id:41958) Gastrointestinal Medicine & Surgery,NHS SUPPLY CHAIN (MAIDSTONE),id:14441943    ,  10.49
Department of Health,Guys and St Thomas NHS Foundation Trust,15/10/2021,(82800) Bedding & Linen,(id:41956) Gastrointestinal Medicine & Surgery,NHS SUPPLY CHAIN (MAIDSTONE),id:14421654 ,  14.69
Department of Health,Guys and St Thomas NHS Foundation Trust,15/10/2021,(82800) Bedding & Linen,(id:41954) Gastrointestinal Medicine & Surgery,NHS SUPPLY CHAIN (MAIDSTONE),id:14399770 ,  14.07
Department of Health,Guys and St Thomas NHS Foundation Trust,15/10/2021,(82800) Bedding & Linen,(id:41954) Gastrointestinal Medicine & Surgery,NHS SUPPLY CHAIN (MAIDSTONE),id:14421654 , 382.05
Department of Health,Guys and St Thomas NHS Foundation Trust,15/10/2021,(50522) Unqualified Nursing Staff,(id:41954) Gastrointestinal Medicine & Surgery,CARE PROVIDERS HEALTHCARE,id:14537385    , 204.02
Department of Health,Guys and St Thomas NHS Foundation Trust,28/10/2021,(50522) Unqualified Nursing Staff,(id:41954) Gastrointestinal Medicine & Surgery,GLOBE LOCUMS LTD,id:14581036   , 492.20
Department of Health,Guys and St Thomas NHS Foundation Trust,22/10/2021,(81200) Medical Surgical Supplies & Equipment,(id:41954) Gastrointestinal Medicine & Surgery,NHS SUPPLY CHAIN (MAIDSTONE),id:14478413    , 935.83
Department of Health,Guys and St Thomas NHS Foundation Trust,15/10/2021,(81100) Dressings,(id:41954) Gastrointestinal Medicine & Surgery,NHS SUPPLY CHAIN (MAIDSTONE),id:14399770  , 355.82
Department of Health,Guys and St Thomas NHS Foundation Trust,22/10/2021,(81100) Dressings,(id:41954) Gastrointestinal Medicine & Surgery,NHS SUPPLY CHAIN (MAIDSTONE),id:14500176  , 684.57
Department of Health,Guys and St Thomas NHS Foundation Trust,28/10/2021,(50552) Qualified Nursing Staff,(id:41954) Gastrointestinal Medicine & Surgery,CARE PROVIDERS HEALTHCARE,id:14581200 , 349.67
Department of Health,Guys and St Thomas NHS Foundation Trust,15/10/2021,(81255) Medical Surgical Supplies & Equipment,(id:41954) Gastrointestinal Medicine & Surgery,NHS SUPPLY CHAIN (MAIDSTONE),id:14421654    ,  77.98
Department of Health,Guys and St Thomas NHS Foundation Trust,22/10/2021,(81275) Medical Surgical Supplies & Equipment,(id:41954) Gastrointestinal Medicine & Surgery,NHS SUPPLY CHAIN (MAIDSTONE),id:14500176    ,  14.46
Department of Health,Guys and St Thomas NHS Foundation Trust,22/10/2021,(81700) Lab Equipment Purchase,(id:41954) Gastrointestinal Medicine & Surgery,NHS SUPPLY CHAIN (MAIDSTONE),id:14478413    ,   3.10
Department of Health,Guys and St Thomas NHS Foundation Trust,08/10/2021,(84656) Establishment,(id:41951) Gastrointestinal Medicine & Surgery,DICT8 LIMITED,id:14479862   ,1109.16
Department of Health,Guys and St Thomas NHS Foundation Trust,22/10/2021,(83400) Office Equipment,(id:41949) Gastrointestinal Medicine & Surgery,NHS SUPPLY CHAIN (MAIDSTONE),id:14478413, 193.94
Department of Health,Guys and St Thomas NHS Foundation Trust,22/10/2021,(81200) Medical Surgical Supplies & Equipment,(id:41949) Gastrointestinal Medicine & Surgery,MEDTRONIC LTD,id:14500731    ,1805.90
Department of Health,Guys and St Thomas NHS Foundation Trust,08/10/2021,(81200) Medical Surgical Supplies & Equipment,(id:41949) Gastrointestinal Medicine & Surgery,MEDTRONIC LTD,id:14447601    ,2889.72
Department of Health,Guys and St Thomas NHS Foundation Trust,01/10/2021,(81200) Medical Surgical Supplies & Equipment,(id:41949) Gastrointestinal Medicine & Surgery,MEDTRONIC LTD,id:14421119    , 994.75
Department of Health,Guys and St Thomas NHS Foundation Trust,28/10/2021,(81000) Surgical Appliances,(id:41944) Gastrointestinal Medicine & Surgery,MEDI UK LTD,id:14580134    ,  52.03
Department of Health,Guys and St Thomas NHS Foundation Trust,01/10/2021,(50522) Unqualified Nursing Staff,(id:2367419) Gastrointestinal Medicine & Surgery,CARE PROVIDERS HEALTHCARE,id:14483604  , 252.92
Department of Health,Guys and St Thomas NHS Foundation Trust,22/10/2021,(82800) Bedding & Linen,(id:2367419) Gastrointestinal Medicine & Surgery,NHS SUPPLY CHAIN (MAIDSTONE),id:14478413    , 117.60
Department of Health,Guys and St Thomas NHS Foundation Trust,01/10/2021,(81200) Medical Surgical Supplies & Equipment,(id:41957) Gastrointestinal Medicine & Surgery,SYNECTICS MEDICAL LTD (SYNMED),id:14441334  ,3531.60
Department of Health,Guys and St Thomas NHS Foundation Trust,01/10/2021,(81200) Medical Surgical Supplies & Equipment,(id:41957) Gastrointestinal Medicine & Surgery,FUNCTIONAL GUT DIAGNOSTICS LTD,id:14475877  ,7236.00
Department of Health,Guys and St Thomas NHS Foundation Trust,08/10/2021,(84500) Establishment,(id:41917) Gastrointestinal Medicine & Surgery,OFFICE DEPOT UK LTD,id:14433500  , 187.07
Department of Health,Guys and St Thomas NHS Foundation Trust,22/10/2021,(82700) Uniforms & Clothing,(id:41917) Gastrointestinal Medicine & Surgery,NHS SUPPLY CHAIN (MAIDSTONE),id:14500176  , 189.50
Department of Health,Guys and St Thomas NHS Foundation Trust,22/10/2021,(81235) Medical Surgical Supplies & Equipment,(id:41917) Gastrointestinal Medicine & Surgery,BOSTON SCIENTIFIC LTD,id:14500816 ,3499.80
Department of Health,Guys and St Thomas NHS Foundation Trust,01/10/2021,(81200) Medical Surgical Supplies & Equipment,(id:41917) Gastrointestinal Medicine & Surgery,ERBE MEDICAL UK LTD,id:14475598   ,4460.66
Department of Health,Guys and St Thomas NHS Foundation Trust,01/10/2021,(81200) Medical Surgical Supplies & Equipment,(id:41917) Gastrointestinal Medicine & Surgery,BOSTON SCIENTIFIC LTD,id:14419690 ,1124.52
Department of Health,Guys and St Thomas NHS Foundation Trust,01/10/2021,(81200) Medical Surgical Supplies & Equipment,(id:41917) Gastrointestinal Medicine & Surgery,OLYMPUS KEYMED,id:14471197   ,1374.00
Department of Health,Guys and St Thomas NHS Foundation Trust,01/10/2021,(81200) Medical Surgical Supplies & Equipment,(id:41917) Gastrointestinal Medicine & Surgery,DIAGMED HEALTHCARE LTD,id:14482448,1554.00
Department of Health,Guys and St Thomas NHS Foundation Trust,15/10/2021,(81200) Medical Surgical Supplies & Equipment,(id:41917) Gastrointestinal Medicine & Surgery,DIAGMED HEALTHCARE LTD,id:14496054, 978.00
Department of Health,Guys and St Thomas NHS Foundation Trust,22/10/2021,(81200) Medical Surgical Supplies & Equipment,(id:41917) Gastrointestinal Medicine & Surgery,DIAGMED HEALTHCARE LTD,id:14510357,1179.60
Department of Health,Guys and St Thomas NHS Foundation Trust,22/10/2021,(81200) Medical Surgical Supplies & Equipment,(id:41917) Gastrointestinal Medicine & Surgery,SYNECTICS MEDICAL LTD (SYNMED),id:14539494  ,4557.60
Department of Health,Guys and St Thomas NHS Foundation Trust,22/10/2021,(81200) Medical Surgical Supplies & Equipment,(id:41917) Gastrointestinal Medicine & Surgery,CANTEL (UK) LTD,id:14544857  ,2061.60
Department of Health,Guys and St Thomas NHS Foundation Trust,28/10/2021,(81200) Medical Surgical Supplies & Equipment,(id:41917) Gastrointestinal Medicine & Surgery,BOSTON SCIENTIFIC LTD,id:14529445 ,3378.24
Department of Health,Guys and St Thomas NHS Foundation Trust,14/10/2021,(89680) Non-Healthcare from CCGs & NHS England,(id:3789419) Cancer Strategy,NHS SOUTH EAST LONDON CCG,id:13348134    ,  -102960.00
Department of Health,Guys and St Thomas NHS Foundation Trust,22/10/2021,(81200) Medical Surgical Supplies & Equipment,(id:2625419) Transplant Renal and Urology,BARD LTD,id:14503361    , 702.36
Department of Health,Guys and St Thomas NHS Foundation Trust,22/10/2021,(81225) Medical Surgical Supplies & Equipment,(id:2625419) Transplant Renal and Urology,NHS SUPPLY CHAIN (MAIDSTONE),id:14478413    ,  12.96
Department of Health,Guys and St Thomas NHS Foundation Trust,15/10/2021,(82000) Provisions & Kitchens,(id:42423) Transplant Renal and Urology,NHS SUPPLY CHAIN (MAIDSTONE),id:14399770  ,   7.80
Department of Health,Guys and St Thomas NHS Foundation Trust,22/10/2021,(82000) Provisions & Kitchens,(id:42423) Transplant Renal and Urology,NHS SUPPLY CHAIN (MAIDSTONE),id:14500176  ,   6.20
Department of Health,Guys and St Thomas NHS Foundation Trust,15/10/2021,(81100) Dressings,(id:42423) Transplant Renal and Urology,NHS SUPPLY CHAIN (MAIDSTONE),id:14421654    ,   1.78
Department of Health,Guys and St Thomas NHS Foundation Trust,15/10/2021,(82000) Provisions & Kitchens,(id:42419) Transplant Renal and Urology,NHS SUPPLY CHAIN (MAIDSTONE),id:14399770  , 143.22
Department of Health,Guys and St Thomas NHS Foundation Trust,15/10/2021,(82000) Provisions & Kitchens,(id:42419) Transplant Renal and Urology,NHS SUPPLY CHAIN (MAIDSTONE),id:14441943  ,  84.08
Department of Health,Guys and St Thomas NHS Foundation Trust,22/10/2021,(82000) Provisions & Kitchens,(id:42419) Transplant Renal and Urology,NHS SUPPLY CHAIN (MAIDSTONE),id:14478413  ,   9.08
Department of Health,Guys and St Thomas NHS Foundation Trust,22/10/2021,(81100) Dressings,(id:42419) Transplant Renal and Urology,NHS SUPPLY CHAIN (MAIDSTONE),id:14500176    , 318.63
Department of Health,Guys and St Thomas NHS Foundation Trust,15/10/2021,(81200) Medical Surgical Supplies & Equipment,(id:42419) Transplant Renal and Urology,NHS SUPPLY CHAIN (MAIDSTONE),id:14421654 , 897.00
Department of Health,Guys and St Thomas NHS Foundation Trust,22/10/2021,(83400) Office Equipment,(id:42419) Transplant Renal and Urology,NHS SUPPLY CHAIN (MAIDSTONE),id:14500176  , 101.77
Department of Health,Guys and St Thomas NHS Foundation Trust,15/10/2021,(82700) Uniforms & Clothing,(id:969419) Transplant Renal and Urology,NHS SUPPLY CHAIN (MAIDSTONE),id:14441943   , 131.04
Department of Health,Guys and St Thomas NHS Foundation Trust,15/10/2021,(81100) Dressings,(id:969419) Transplant Renal and Urology,NHS SUPPLY CHAIN (MAIDSTONE),id:14441943   ,  22.82
Department of Health,Guys and St Thomas NHS Foundation Trust,08/10/2021,(81200) Medical Surgical Supplies & Equipment,(id:42450) Transplant Renal and Urology,JOHNSON & JOHNSON MEDICAL LTD,id:14446043, 572.58
Department of Health,Guys and St Thomas NHS Foundation Trust,15/10/2021,(81200) Medical Surgical Supplies & Equipment,(id:42450) Transplant Renal and Urology,STRYKER UK LTD,id:14513154, 613.87
Department of Health,Guys and St Thomas NHS Foundation Trust,15/10/2021,(81200) Medical Surgical Supplies & Equipment,(id:42450) Transplant Renal and Urology,STRYKER UK LTD,id:14513115, 613.87
Department of Health,Guys and St Thomas NHS Foundation Trust,22/10/2021,(81400) Medical Surgical Supplies & Equipment,(id:42449) Transplant Renal and Urology,NHS SUPPLY CHAIN (MAIDSTONE),id:14500176 ,  62.00
Department of Health,Guys and St Thomas NHS Foundation Trust,22/10/2021,(82800) Bedding & Linen,(id:42449) Transplant Renal and Urology,NHS SUPPLY CHAIN (MAIDSTONE),id:14478413   , 200.44
Department of Health,Guys and St Thomas NHS Foundation Trust,15/10/2021,(82800) Bedding & Linen,(id:42447) Transplant Renal and Urology,NHS SUPPLY CHAIN (MAIDSTONE),id:14441943   , 112.83
Department of Health,Guys and St Thomas NHS Foundation Trust,15/10/2021,(82800) Bedding & Linen,(id:42447) Transplant Renal and Urology,NHS SUPPLY CHAIN (MAIDSTONE),id:14421654   ,  85.61
Department of Health,Guys and St Thomas NHS Foundation Trust,15/10/2021,(81225) Medical Surgical Supplies & Equipment,(id:42447) Transplant Renal and Urology,NHS SUPPLY CHAIN (MAIDSTONE),id:14441943 ,  12.48
Department of Health,Guys and St Thomas NHS Foundation Trust,22/10/2021,(50200) Consultants,(id:42447) Transplant Renal and Urology,KING'S COLLEGE HOSPITAL NHS FOUNDATION TRUST,id:14478728 ,2503.66
Department of Health,Guys and St Thomas NHS Foundation Trust,15/10/2021,(50200) Consultants,(id:42447) Transplant Renal and Urology,KING'S COLLEGE HOSPITAL NHS FOUNDATION TRUST,id:14478936 ,4932.14
Department of Health,Guys and St Thomas NHS Foundation Trust,15/10/2021,(50200) Consultants,(id:42447) Transplant Renal and Urology,KING'S COLLEGE HOSPITAL NHS FOUNDATION TRUST,id:14445289 ,4944.92
Department of Health,Guys and St Thomas NHS Foundation Trust,01/10/2021,(81200) Medical Surgical Supplies & Equipment,(id:42446) Transplant Renal and Urology,COOK UK LTD,id:14423060   , 553.44
Department of Health,Guys and St Thomas NHS Foundation Trust,01/10/2021,(81200) Medical Surgical Supplies & Equipment,(id:42446) Transplant Renal and Urology,OLYMPUS KEYMED,id:14471229,2419.52
Department of Health,Guys and St Thomas NHS Foundation Trust,15/10/2021,(81200) Medical Surgical Supplies & Equipment,(id:42446) Transplant Renal and Urology,COOK UK LTD,id:14457256   , 633.60
Department of Health,Guys and St Thomas NHS Foundation Trust,22/10/2021,(81200) Medical Surgical Supplies & Equipment,(id:42446) Transplant Renal and Urology,LAWMED LTD,id:14546634    ,1420.20
Department of Health,Guys and St Thomas NHS Foundation Trust,01/10/2021,(81400) Medical Surgical Supplies & Equipment,(id:42446) Transplant Renal and Urology,KARL STORZ ENDOSCOPY UK LTD,id:14449139  , 811.75
Department of Health,Guys and St Thomas NHS Foundation Trust,01/10/2021,(81200) Medical Surgical Supplies & Equipment,(id:42444) Transplant Renal and Urology,COOK UK LTD,id:14421183   , 568.80
Department of Health,Guys and St Thomas NHS Foundation Trust,22/10/2021,(81200) Medical Surgical Supplies & Equipment,(id:42444) Transplant Renal and Urology,NHS SUPPLY CHAIN (MAIDSTONE),id:14478413 ,1662.48
Department of Health,Guys and St Thomas NHS Foundation Trust,15/10/2021,(82000) Provisions & Kitchens,(id:42443) Transplant Renal and Urology,NHS SUPPLY CHAIN (MAIDSTONE),id:14399770  ,  13.40
Department of Health,Guys and St Thomas NHS Foundation Trust,15/10/2021,(82000) Provisions & Kitchens,(id:42443) Transplant Renal and Urology,NHS SUPPLY CHAIN (MAIDSTONE),id:14421654  , 388.36
Department of Health,Guys and St Thomas NHS Foundation Trust,22/10/2021,(82000) Provisions & Kitchens,(id:42443) Transplant Renal and Urology,NHS SUPPLY CHAIN (MAIDSTONE),id:14478413  ,  12.53
Department of Health,Guys and St Thomas NHS Foundation Trust,22/10/2021,(81100) Dressings,(id:42443) Transplant Renal and Urology,NHS SUPPLY CHAIN (MAIDSTONE),id:14500176    , 212.12
Department of Health,Guys and St Thomas NHS Foundation Trust,15/10/2021,(81200) Medical Surgical Supplies & Equipment,(id:42443) Transplant Renal and Urology,NHS SUPPLY CHAIN (MAIDSTONE),id:14441943 , 683.44
Department of Health,Guys and St Thomas NHS Foundation Trust,22/10/2021,(81200) Medical Surgical Supplies & Equipment,(id:42443) Transplant Renal and Urology,NHS SUPPLY CHAIN (MAIDSTONE),id:14500176 , 507.71
Department of Health,Guys and St Thomas NHS Foundation Trust,22/10/2021,(81230) Medical Surgical Supplies & Equipment,(id:42443) Transplant Renal and Urology,NHS SUPPLY CHAIN (MAIDSTONE),id:14500176 ,1007.76
Department of Health,Guys and St Thomas NHS Foundation Trust,22/10/2021,(82000) Provisions & Kitchens,(id:42442) Transplant Renal and Urology,NHS SUPPLY CHAIN (MAIDSTONE),id:14500176  ,  14.78
Department of Health,Guys and St Thomas NHS Foundation Trust,22/10/2021,(82800) Bedding & Linen,(id:42442) Transplant Renal and Urology,NHS SUPPLY CHAIN (MAIDSTONE),id:14478413   , 120.77
Department of Health,Guys and St Thomas NHS Foundation Trust,15/10/2021,(83400) Office Equipment,(id:42442) Transplant Renal and Urology,NHS SUPPLY CHAIN (MAIDSTONE),id:14441943  , 249.86
Department of Health,Guys and St Thomas NHS Foundation Trust,01/10/2021,(81200) Medical Surgical Supplies & Equipment,(id:42439) Transplant Renal and Urology,INTUITIVE SURGICAL LTD,id:14432354  ,1700.40
Department of Health,Guys and St Thomas NHS Foundation Trust,28/10/2021,(81100) Dressings,(id:42439) Transplant Renal and Urology,SAFEFOAM,id:14576411    , 960.00
Department of Health,Guys and St Thomas NHS Foundation Trust,22/10/2021,(83400) Office Equipment,(id:2653419) Transplant Renal and Urology,NHS SUPPLY CHAIN (MAIDSTONE),id:14500176, 533.64
Department of Health,Guys and St Thomas NHS Foundation Trust,15/10/2021,(81200) Medical Surgical Supplies & Equipment,(id:2653419) Transplant Renal and Urology,KIMAL PLC,id:14527012   ,7035.68
Department of Health,Guys and St Thomas NHS Foundation Trust,08/10/2021,(81200) Medical Surgical Supplies & Equipment,(id:2653419) Transplant Renal and Urology,MEDTRONIC LTD,id:14447535    ,1140.00
Department of Health,Guys and St Thomas NHS Foundation Trust,01/10/2021,(81200) Medical Surgical Supplies & Equipment,(id:2653419) Transplant Renal and Urology,MOLNLYCKE HEALTH CARE LTD,id:14479702  , 688.13
Department of Health,Guys and St Thomas NHS Foundation Trust,15/10/2021,(81200) Medical Surgical Supplies & Equipment,(id:42435) Transplant Renal and Urology,NHS SUPPLY CHAIN (MAIDSTONE),id:14441943 , 458.31
Department of Health,Guys and St Thomas NHS Foundation Trust,08/10/2021,(81200) Medical Surgical Supplies & Equipment,(id:42430) Transplant Renal and Urology,B.BRAUN MEDICAL LTD,id:14452714,1222.96
Department of Health,Guys and St Thomas NHS Foundation Trust,15/10/2021,(81200) Medical Surgical Supplies & Equipment,(id:42428) Transplant Renal and Urology,NHS SUPPLY CHAIN (MAIDSTONE),id:14421654 , 261.77
Department of Health,Guys and St Thomas NHS Foundation Trust,15/10/2021,(81200) Medical Surgical Supplies & Equipment,(id:42428) Transplant Renal and Urology,NHS SUPPLY CHAIN (MAIDSTONE),id:14399770 , 150.84
Department of Health,Guys and St Thomas NHS Foundation Trust,15/10/2021,(81700) Lab Equipment Purchase,(id:42428) Transplant Renal and Urology,NHS SUPPLY CHAIN (MAIDSTONE),id:14421654 , 180.27
Department of Health,Guys and St Thomas NHS Foundation Trust,28/10/2021,(81200) Medical Surgical Supplies & Equipment,(id:42420) Transplant Renal and Urology,FRESENIUS MEDICAL CARE UK LTD,id:14529094,3222.72
Department of Health,Guys and St Thomas NHS Foundation Trust,01/10/2021,(81200) Medical Surgical Supplies & Equipment,(id:42420) Transplant Renal and Urology,FRESENIUS MEDICAL CARE UK LTD,id:14458054,1660.32
Department of Health,Guys and St Thomas NHS Foundation Trust,15/10/2021,(81200) Medical Surgical Supplies & Equipment,(id:42420) Transplant Renal and Urology,NHS SUPPLY CHAIN (MAIDSTONE),id:14421654 ,5045.84
Department of Health,Guys and St Thomas NHS Foundation Trust,22/10/2021,(81200) Medical Surgical Supplies & Equipment,(id:42420) Transplant Renal and Urology,NHS SUPPLY CHAIN (MAIDSTONE),id:14500176 ,1913.47
Department of Health,Guys and St Thomas NHS Foundation Trust,28/10/2021,(80150) Drug Costs,(id:42420) Transplant Renal and Urology,BAXTER HEALTHCARE LTD,id:14575494, 192.00
Department of Health,Guys and St Thomas NHS Foundation Trust,15/10/2021,(83400) Office Equipment,(id:42420) Transplant Renal and Urology,NHS SUPPLY CHAIN (MAIDSTONE),id:14441943  , 352.00
Department of Health,Guys and St Thomas NHS Foundation Trust,22/10/2021,(82800) Bedding & Linen,(id:42420) Transplant Renal and Urology,NHS SUPPLY CHAIN (MAIDSTONE),id:14500176   ,  36.49
Department of Health,Guys and St Thomas NHS Foundation Trust,22/10/2021,(82800) Bedding & Linen,(id:42420) Transplant Renal and Urology,NHS SUPPLY CHAIN (MAIDSTONE),id:14478413   , 336.79
Department of Health,Guys and St Thomas NHS Foundation Trust,15/10/2021,(81225) Medical Surgical Supplies & Equipment,(id:42420) Transplant Renal and Urology,NHS SUPPLY CHAIN (MAIDSTONE),id:14441943 ,  29.35
Department of Health,Guys and St Thomas NHS Foundation Trust,08/10/2021,(81200) Medical Surgical Supplies & Equipment,(id:42425) Transplant Renal and Urology,FRESENIUS MEDICAL CARE UK LTD,id:14460494,4147.20
Department of Health,Guys and St Thomas NHS Foundation Trust,08/10/2021,(81200) Medical Surgical Supplies & Equipment,(id:42422) Transplant Renal and Urology,NXSTAGE MEDICAL UK LIMITED,id:14293856   ,1309.44
Department of Health,Guys and St Thomas NHS Foundation Trust,08/10/2021,(81200) Medical Surgical Supplies & Equipment,(id:42422) Transplant Renal and Urology,NXSTAGE MEDICAL UK LIMITED,id:14279401   ,1346.64
Department of Health,Guys and St Thomas NHS Foundation Trust,28/10/2021,(81200) Medical Surgical Supplies & Equipment,(id:42422) Transplant Renal and Urology,BAXTER HEALTHCARE LTD,id:14575255   , 649.68
Department of Health,Guys and St Thomas NHS Foundation Trust,28/10/2021,(81200) Medical Surgical Supplies & Equipment,(id:42422) Transplant Renal and Urology,NXSTAGE MEDICAL UK LIMITED,id:14560834   ,1227.13
Department of Health,Guys and St Thomas NHS Foundation Trust,28/10/2021,(81200) Medical Surgical Supplies & Equipment,(id:42422) Transplant Renal and Urology,NXSTAGE MEDICAL UK LIMITED,id:14560774   ,1427.55
Department of Health,Guys and St Thomas NHS Foundation Trust,08/10/2021,(81200) Medical Surgical Supplies & Equipment,(id:42422) Transplant Renal and Urology,NXSTAGE MEDICAL UK LIMITED,id:14294313   , 572.88
Department of Health,Guys and St Thomas NHS Foundation Trust,08/10/2021,(81200) Medical Surgical Supplies & Equipment,(id:42422) Transplant Renal and Urology,NXSTAGE MEDICAL UK LIMITED,id:14279404   , 748.32
Department of Health,Guys and St Thomas NHS Foundation Trust,08/10/2021,(81200) Medical Surgical Supplies & Equipment,(id:42422) Transplant Renal and Urology,NXSTAGE MEDICAL UK LIMITED,id:14109074   , 893.40
Department of Health,Guys and St Thomas NHS Foundation Trust,08/10/2021,(81200) Medical Surgical Supplies & Equipment,(id:42422) Transplant Renal and Urology,NXSTAGE MEDICAL UK LIMITED,id:14272431   , 748.32
Department of Health,Guys and St Thomas NHS Foundation Trust,08/10/2021,(81200) Medical Surgical Supplies & Equipment,(id:42422) Transplant Renal and Urology,NXSTAGE MEDICAL UK LIMITED,id:14312974   , 982.08
Department of Health,Guys and St Thomas NHS Foundation Trust,08/10/2021,(81200) Medical Surgical Supplies & Equipment,(id:42422) Transplant Renal and Urology,NXSTAGE MEDICAL UK LIMITED,id:14278054   ,1636.80
Department of Health,Guys and St Thomas NHS Foundation Trust,08/10/2021,(81200) Medical Surgical Supplies & Equipment,(id:42422) Transplant Renal and Urology,NXSTAGE MEDICAL UK LIMITED,id:14299018   ,1346.64
Department of Health,Guys and St Thomas NHS Foundation Trust,08/10/2021,(81200) Medical Surgical Supplies & Equipment,(id:42422) Transplant Renal and Urology,NXSTAGE MEDICAL UK LIMITED,id:14298983   ,1496.64
Department of Health,Guys and St Thomas NHS Foundation Trust,15/10/2021,(81200) Medical Surgical Supplies & Equipment,(id:42422) Transplant Renal and Urology,NXSTAGE MEDICAL UK LIMITED,id:14244317   , 916.65
Department of Health,Guys and St Thomas NHS Foundation Trust,15/10/2021,(81200) Medical Surgical Supplies & Equipment,(id:42422) Transplant Renal and Urology,NXSTAGE MEDICAL UK LIMITED,id:14130194   ,1145.76
Department of Health,Guys and St Thomas NHS Foundation Trust,22/10/2021,(81200) Medical Surgical Supplies & Equipment,(id:42422) Transplant Renal and Urology,NXSTAGE MEDICAL UK LIMITED,id:14058654   ,1641.60
Department of Health,Guys and St Thomas NHS Foundation Trust,15/10/2021,(81100) Dressings,(id:42422) Transplant Renal and Urology,NHS SUPPLY CHAIN (MAIDSTONE),id:14441943    , 107.14
Department of Health,Guys and St Thomas NHS Foundation Trust,28/10/2021,(81200) Medical Surgical Supplies & Equipment,(id:42417) Transplant Renal and Urology,IMT MEDICAL TRANSPORT LTD,id:14528296    ,4854.28
Department of Health,Guys and St Thomas NHS Foundation Trust,22/10/2021,(81100) Dressings,(id:884419) Surgery,NHS SUPPLY CHAIN (MAIDSTONE),id:14478413    ,1313.74
Department of Health,Guys and St Thomas NHS Foundation Trust,15/10/2021,(83400) Office Equipment,(id:884419) Surgery,NHS SUPPLY CHAIN (MAIDSTONE),id:14421654  ,  11.23
Department of Health,Guys and St Thomas NHS Foundation Trust,22/10/2021,(83400) Office Equipment,(id:42485) Surgery,NHS SUPPLY CHAIN (MAIDSTONE),id:14500176   , 126.03
Department of Health,Guys and St Thomas NHS Foundation Trust,22/10/2021,(81225) Medical Surgical Supplies & Equipment,(id:42485) Surgery,NHS SUPPLY CHAIN (MAIDSTONE),id:14500176  ,  23.21
Department of Health,Guys and St Thomas NHS Foundation Trust,15/10/2021,(82000) Provisions & Kitchens,(id:42485) Surgery,NHS SUPPLY CHAIN (MAIDSTONE),id:14421654   ,  10.04
Department of Health,Guys and St Thomas NHS Foundation Trust,08/10/2021,(81200) Medical Surgical Supplies & Equipment,(id:42485) Surgery,SIEMENS FINANCIAL SERVICES LIMITED,id:14399717 ,1197.68
Department of Health,Guys and St Thomas NHS Foundation Trust,08/10/2021,(81200) Medical Surgical Supplies & Equipment,(id:42484) Surgery,MEDARTIS LTD,id:14228805   ,2115.94
Department of Health,Guys and St Thomas NHS Foundation Trust,08/10/2021,(81200) Medical Surgical Supplies & Equipment,(id:42484) Surgery,JOHNSON & JOHNSON MEDICAL LTD,id:14389876 ,3037.16
Department of Health,Guys and St Thomas NHS Foundation Trust,08/10/2021,(81200) Medical Surgical Supplies & Equipment,(id:42484) Surgery,Q MEDICAL TECHNOLOGIES LTD,id:14488054    ,2650.80
Department of Health,Guys and St Thomas NHS Foundation Trust,08/10/2021,(81200) Medical Surgical Supplies & Equipment,(id:42484) Surgery,SEVERN HEALTHCARE TECHNOLOGIES LTD,id:14429614 ,1860.00
Department of Health,Guys and St Thomas NHS Foundation Trust,15/10/2021,(81200) Medical Surgical Supplies & Equipment,(id:42484) Surgery,NHS SUPPLY CHAIN (MAIDSTONE),id:14441943  ,1580.28
Department of Health,Guys and St Thomas NHS Foundation Trust,15/10/2021,(81200) Medical Surgical Supplies & Equipment,(id:42484) Surgery,SEVERN HEALTHCARE TECHNOLOGIES LTD,id:14456916 ,1401.60
Department of Health,Guys and St Thomas NHS Foundation Trust,15/10/2021,(81200) Medical Surgical Supplies & Equipment,(id:42484) Surgery,B.BRAUN MEDICAL LTD,id:14513794 , 612.29
Department of Health,Guys and St Thomas NHS Foundation Trust,08/10/2021,(81200) Medical Surgical Supplies & Equipment,(id:42484) Surgery,MERCIAN SURGICAL SUPPLY CO LTD,id:14479614,2352.00
Department of Health,Guys and St Thomas NHS Foundation Trust,22/10/2021,(81225) Medical Surgical Supplies & Equipment,(id:42484) Surgery,NHS SUPPLY CHAIN (MAIDSTONE),id:14478413  , 128.52
Department of Health,Guys and St Thomas NHS Foundation Trust,08/10/2021,(81245) Medical Surgical Supplies & Equipment,(id:42484) Surgery,IGEA MEDICAL,id:14505954   ,9600.00
Department of Health,Guys and St Thomas NHS Foundation Trust,15/10/2021,(83400) Office Equipment,(id:42484) Surgery,NHS SUPPLY CHAIN (MAIDSTONE),id:14421654   ,   2.38
Department of Health,Guys and St Thomas NHS Foundation Trust,15/10/2021,(83400) Office Equipment,(id:42484) Surgery,NHS SUPPLY CHAIN (MAIDSTONE),id:14399770   ,   4.75
Department of Health,Guys and St Thomas NHS Foundation Trust,22/10/2021,(81200) Medical Surgical Supplies & Equipment,(id:42483) Surgery,NHS SUPPLY CHAIN (MAIDSTONE),id:14478413  ,1292.43
Department of Health,Guys and St Thomas NHS Foundation Trust,01/10/2021,(81225) Medical Surgical Supplies & Equipment,(id:42483) Surgery,PROMEDICS ORTHOPAEDICS LTD,id:14456562    ,2599.20
Department of Health,Guys and St Thomas NHS Foundation Trust,22/10/2021,(81100) Dressings,(id:42483) Surgery,NHS SUPPLY CHAIN (MAIDSTONE),id:14500176,  34.20
Department of Health,Guys and St Thomas NHS Foundation Trust,15/10/2021,(83400) Office Equipment,(id:42483) Surgery,NHS SUPPLY CHAIN (MAIDSTONE),id:14399770   , 503.88
Department of Health,Guys and St Thomas NHS Foundation Trust,22/10/2021,(80010) Drug Costs,(id:42482) Surgery,NHS SUPPLY CHAIN (MAIDSTONE),id:14500176    ,  18.00
Department of Health,Guys and St Thomas NHS Foundation Trust,15/10/2021,(81100) Dressings,(id:42481) Surgery,NHS SUPPLY CHAIN (MAIDSTONE),id:14441943,  72.37
Department of Health,Guys and St Thomas NHS Foundation Trust,08/10/2021,(81200) Medical Surgical Supplies & Equipment,(id:42481) Surgery,JOHNSON & JOHNSON MEDICAL LTD,id:14446044 ,  27.62
Department of Health,Guys and St Thomas NHS Foundation Trust,08/10/2021,(81200) Medical Surgical Supplies & Equipment,(id:42467) Surgery,HOSPITAL INNOVATIONS LTD,id:14368534 ,1034.75
Department of Health,Guys and St Thomas NHS Foundation Trust,22/10/2021,(81200) Medical Surgical Supplies & Equipment,(id:42467) Surgery,JOHNSON & JOHNSON MEDICAL LTD,id:14487916 ,3321.15
Department of Health,Guys and St Thomas NHS Foundation Trust,22/10/2021,(81200) Medical Surgical Supplies & Equipment,(id:42467) Surgery,JOHNSON & JOHNSON MEDICAL LTD,id:14507596 ,1092.57
Department of Health,Guys and St Thomas NHS Foundation Trust,01/10/2021,(81200) Medical Surgical Supplies & Equipment,(id:42467) Surgery,JOHNSON & JOHNSON MEDICAL LTD,id:14423020 , 507.32
Department of Health,Guys and St Thomas NHS Foundation Trust,01/10/2021,(81200) Medical Surgical Supplies & Equipment,(id:42467) Surgery,JOHNSON & JOHNSON MEDICAL LTD,id:14421097 , 564.15
Department of Health,Guys and St Thomas NHS Foundation Trust,01/10/2021,(81200) Medical Surgical Supplies & Equipment,(id:42467) Surgery,JOHNSON & JOHNSON MEDICAL LTD,id:14421130 , 972.18
Department of Health,Guys and St Thomas NHS Foundation Trust,08/10/2021,(81200) Medical Surgical Supplies & Equipment,(id:42467) Surgery,JOHNSON & JOHNSON MEDICAL LTD,id:14430061 ,1502.16
Department of Health,Guys and St Thomas NHS Foundation Trust,15/10/2021,(81200) Medical Surgical Supplies & Equipment,(id:42467) Surgery,NHS SUPPLY CHAIN (MAIDSTONE),id:14421654  ,2491.56
Department of Health,Guys and St Thomas NHS Foundation Trust,01/10/2021,(81000) Surgical Appliances,(id:42467) Surgery,JOHNSON & JOHNSON MEDICAL LTD,id:14421103    , 174.57
Department of Health,Guys and St Thomas NHS Foundation Trust,22/10/2021,(83400) Office Equipment,(id:42467) Surgery,NHS SUPPLY CHAIN (MAIDSTONE),id:14500176   , 581.83
Department of Health,Guys and St Thomas NHS Foundation Trust,28/10/2021,(81200) Medical Surgical Supplies & Equipment,(id:42466) Surgery,BIOVENTUS COOPERATIEF U.A.,id:14576430    ,    12297.60
Department of Health,Guys and St Thomas NHS Foundation Trust,28/10/2021,(81200) Medical Surgical Supplies & Equipment,(id:42466) Surgery,BIOVENTUS COOPERATIEF U.A.,id:14576791    ,    12297.60
Department of Health,Guys and St Thomas NHS Foundation Trust,08/10/2021,(81000) Surgical Appliances,(id:42466) Surgery,TALAR MADE ORTHOTICS LTD,id:14494674    , 228.00
Department of Health,Guys and St Thomas NHS Foundation Trust,15/10/2021,(82000) Provisions & Kitchens,(id:42465) Surgery,NHS SUPPLY CHAIN (MAIDSTONE),id:14441943   , 186.10
Department of Health,Guys and St Thomas NHS Foundation Trust,22/10/2021,(83400) Office Equipment,(id:42465) Surgery,NHS SUPPLY CHAIN (MAIDSTONE),id:14478413   ,  93.67
Department of Health,Guys and St Thomas NHS Foundation Trust,15/10/2021,(81225) Medical Surgical Supplies & Equipment,(id:42465) Surgery,NHS SUPPLY CHAIN (MAIDSTONE),id:14421654  , 111.71
Department of Health,Guys and St Thomas NHS Foundation Trust,15/10/2021,(50522) Unqualified Nursing Staff,(id:42465) Surgery,GLOBE LOCUMS LTD,id:14533866 , 246.10
Department of Health,Guys and St Thomas NHS Foundation Trust,08/10/2021,(81000) Surgical Appliances,(id:42465) Surgery,TALAR MADE ORTHOTICS LTD,id:14494674    ,  52.50
Department of Health,Guys and St Thomas NHS Foundation Trust,22/10/2021,(50552) Qualified Nursing Staff,(id:42465) Surgery,MSI GROUP LTD,id:14556703 , 334.66
Department of Health,Guys and St Thomas NHS Foundation Trust,15/10/2021,(81100) Dressings,(id:42463) Surgery,NHS SUPPLY CHAIN (MAIDSTONE),id:14441943, 229.71
Department of Health,Guys and St Thomas NHS Foundation Trust,22/10/2021,(82800) Bedding & Linen,(id:42461) Surgery,NHS SUPPLY CHAIN (MAIDSTONE),id:14500176    ,  22.70
Department of Health,Guys and St Thomas NHS Foundation Trust,08/10/2021,(81000) Surgical Appliances,(id:42461) Surgery,TALAR MADE ORTHOTICS LTD,id:14494454    , 789.34
Department of Health,Guys and St Thomas NHS Foundation Trust,28/10/2021,(81000) Surgical Appliances,(id:42461) Surgery,MEDI UK LTD,id:14580121  ,1065.60
Department of Health,Guys and St Thomas NHS Foundation Trust,22/10/2021,(82600) Uniforms & Clothing,(id:42459) Surgery,NHS SUPPLY CHAIN (MAIDSTONE),id:14500176,  42.10
Department of Health,Guys and St Thomas NHS Foundation Trust,15/10/2021,(83400) Office Equipment,(id:42459) Surgery,NHS SUPPLY CHAIN (MAIDSTONE),id:14399770   ,  98.91
Department of Health,Guys and St Thomas NHS Foundation Trust,15/10/2021,(83400) Office Equipment,(id:42459) Surgery,NHS SUPPLY CHAIN (MAIDSTONE),id:14441943   , 115.53
Department of Health,Guys and St Thomas NHS Foundation Trust,15/10/2021,(81225) Medical Surgical Supplies & Equipment,(id:42459) Surgery,NHS SUPPLY CHAIN (MAIDSTONE),id:14399770  ,   9.70
Department of Health,Guys and St Thomas NHS Foundation Trust,15/10/2021,(81700) Lab Equipment Purchase,(id:42459) Surgery,NHS SUPPLY CHAIN (MAIDSTONE),id:14399770  ,  10.15
Department of Health,Guys and St Thomas NHS Foundation Trust,15/10/2021,(81100) Dressings,(id:42458) Surgery,NHS SUPPLY CHAIN (MAIDSTONE),id:14421654,  94.83
Department of Health,Guys and St Thomas NHS Foundation Trust,22/10/2021,(81225) Medical Surgical Supplies & Equipment,(id:42458) Surgery,NHS SUPPLY CHAIN (MAIDSTONE),id:14478413  ,   9.70
Department of Health,Guys and St Thomas NHS Foundation Trust,22/10/2021,(81225) Medical Surgical Supplies & Equipment,(id:42458) Surgery,NHS SUPPLY CHAIN (MAIDSTONE),id:14500176  ,  24.24
Department of Health,Guys and St Thomas NHS Foundation Trust,22/10/2021,(81255) Medical Surgical Supplies & Equipment,(id:42458) Surgery,NHS SUPPLY CHAIN (MAIDSTONE),id:14500176  ,   2.16
Department of Health,Guys and St Thomas NHS Foundation Trust,08/10/2021,(89270) Establishment,(id:3821419) Cancer Supportive Services and R&D,SKYE CLOUD LTD,id:14449388 , 695.00
Department of Health,Guys and St Thomas NHS Foundation Trust,01/10/2021,(81200) Medical Surgical Supplies & Equipment,(id:42270) Haematology Cellular Pathology and Supporting Services,TERUMO BCT EUROPE NV/SA  (PREVIOUSLY CARIDIAN),id:14474817  , 502.85
Department of Health,Guys and St Thomas NHS Foundation Trust,01/10/2021,(81200) Medical Surgical Supplies & Equipment,(id:42270) Haematology Cellular Pathology and Supporting Services,TERUMO BCT EUROPE NV/SA  (PREVIOUSLY CARIDIAN),id:14474758  ,4169.38
Department of Health,Guys and St Thomas NHS Foundation Trust,01/10/2021,(81200) Medical Surgical Supplies & Equipment,(id:42270) Haematology Cellular Pathology and Supporting Services,TERUMO BCT EUROPE NV/SA  (PREVIOUSLY CARIDIAN),id:14474823  ,8338.75
Department of Health,Guys and St Thomas NHS Foundation Trust,15/10/2021,(81200) Medical Surgical Supplies & Equipment,(id:42270) Haematology Cellular Pathology and Supporting Services,NHS SUPPLY CHAIN (MAIDSTONE),id:14399770,3765.65
Department of Health,Guys and St Thomas NHS Foundation Trust,22/10/2021,(81200) Medical Surgical Supplies & Equipment,(id:42270) Haematology Cellular Pathology and Supporting Services,NHS SUPPLY CHAIN (MAIDSTONE),id:14500176, 591.47
Department of Health,Guys and St Thomas NHS Foundation Trust,22/10/2021,(81200) Medical Surgical Supplies & Equipment,(id:42270) Haematology Cellular Pathology and Supporting Services,NHS SUPPLY CHAIN (MAIDSTONE),id:14478413, 652.66
Department of Health,Guys and St Thomas NHS Foundation Trust,22/10/2021,(81100) Dressings,(id:42270) Haematology Cellular Pathology and Supporting Services,NHS SUPPLY CHAIN (MAIDSTONE),id:14500176   ,  43.47
Department of Health,Guys and St Thomas NHS Foundation Trust,22/10/2021,(83400) Office Equipment,(id:42270) Haematology Cellular Pathology and Supporting Services,NHS SUPPLY CHAIN (MAIDSTONE),id:14478413 , 323.80
Department of Health,Guys and St Thomas NHS Foundation Trust,15/10/2021,(82800) Bedding & Linen,(id:42270) Haematology Cellular Pathology and Supporting Services,NHS SUPPLY CHAIN (MAIDSTONE),id:14441943  ,  47.14
Department of Health,Guys and St Thomas NHS Foundation Trust,01/10/2021,(81230) Medical Surgical Supplies & Equipment,(id:42270) Haematology Cellular Pathology and Supporting Services,TERUMO BCT EUROPE NV/SA  (PREVIOUSLY CARIDIAN),id:14474834  ,1407.17
Department of Health,Guys and St Thomas NHS Foundation Trust,15/10/2021,(82800) Bedding & Linen,(id:42267) Haematology Cellular Pathology and Supporting Services,NHS SUPPLY CHAIN (MAIDSTONE),id:14399770  ,  60.30
Department of Health,Guys and St Thomas NHS Foundation Trust,15/10/2021,(89595) Non-Healthcare from Foundation Trusts,(id:42267) Haematology Cellular Pathology and Supporting Services,KING'S COLLEGE HOSPITAL NHS FOUNDATION TRUST,id:13410564    ,    12180.00
Department of Health,Guys and St Thomas NHS Foundation Trust,15/10/2021,(82700) Uniforms & Clothing,(id:42265) Haematology Cellular Pathology and Supporting Services,NHS SUPPLY CHAIN (MAIDSTONE),id:14441943   ,  31.68
Department of Health,Guys and St Thomas NHS Foundation Trust,15/10/2021,(82700) Uniforms & Clothing,(id:42265) Haematology Cellular Pathology and Supporting Services,NHS SUPPLY CHAIN (MAIDSTONE),id:14421654   ,  31.68
Department of Health,Guys and St Thomas NHS Foundation Trust,22/10/2021,(82700) Uniforms & Clothing,(id:42265) Haematology Cellular Pathology and Supporting Services,NHS SUPPLY CHAIN (MAIDSTONE),id:14478413   ,  63.36
Department of Health,Guys and St Thomas NHS Foundation Trust,15/10/2021,(82000) Provisions & Kitchens,(id:42265) Haematology Cellular Pathology and Supporting Services,NHS SUPPLY CHAIN (MAIDSTONE),id:14399770 , 268.30
Department of Health,Guys and St Thomas NHS Foundation Trust,22/10/2021,(82600) Uniforms & Clothing,(id:42265) Haematology Cellular Pathology and Supporting Services,NHS SUPPLY CHAIN (MAIDSTONE),id:14478413   ,  71.57
Department of Health,Guys and St Thomas NHS Foundation Trust,15/10/2021,(82600) Uniforms & Clothing,(id:42265) Haematology Cellular Pathology and Supporting Services,NHS SUPPLY CHAIN (MAIDSTONE),id:14421654   ,  67.37
Department of Health,Guys and St Thomas NHS Foundation Trust,15/10/2021,(83500) Furniture & Fittings,(id:42265) Haematology Cellular Pathology and Supporting Services,TECHNIBLINDS LTD,id:14493154    , 500.40
Department of Health,Guys and St Thomas NHS Foundation Trust,15/10/2021,(82800) Bedding & Linen,(id:42265) Haematology Cellular Pathology and Supporting Services,NHS SUPPLY CHAIN (MAIDSTONE),id:14421654  ,1315.48
Department of Health,Guys and St Thomas NHS Foundation Trust,15/10/2021,(82800) Bedding & Linen,(id:42265) Haematology Cellular Pathology and Supporting Services,NHS SUPPLY CHAIN (MAIDSTONE),id:14441943  , 121.35
Department of Health,Guys and St Thomas NHS Foundation Trust,22/10/2021,(82800) Bedding & Linen,(id:42265) Haematology Cellular Pathology and Supporting Services,NHS SUPPLY CHAIN (MAIDSTONE),id:14500176  , 143.78
Department of Health,Guys and St Thomas NHS Foundation Trust,15/10/2021,(81100) Dressings,(id:42265) Haematology Cellular Pathology and Supporting Services,NHS SUPPLY CHAIN (MAIDSTONE),id:14399770   ,1498.74
Department of Health,Guys and St Thomas NHS Foundation Trust,15/10/2021,(81100) Dressings,(id:42265) Haematology Cellular Pathology and Supporting Services,NHS SUPPLY CHAIN (MAIDSTONE),id:14441943   , 302.53
Department of Health,Guys and St Thomas NHS Foundation Trust,15/10/2021,(81200) Medical Surgical Supplies & Equipment,(id:42265) Haematology Cellular Pathology and Supporting Services,NHS SUPPLY CHAIN (MAIDSTONE),id:14421654,3090.42
Department of Health,Guys and St Thomas NHS Foundation Trust,15/10/2021,(83400) Office Equipment,(id:42265) Haematology Cellular Pathology and Supporting Services,NHS SUPPLY CHAIN (MAIDSTONE),id:14421654 , 162.77
Department of Health,Guys and St Thomas NHS Foundation Trust,22/10/2021,(81255) Medical Surgical Supplies & Equipment,(id:42265) Haematology Cellular Pathology and Supporting Services,NHS SUPPLY CHAIN (MAIDSTONE),id:14478413,   3.12
Department of Health,Guys and St Thomas NHS Foundation Trust,15/10/2021,(81255) Medical Surgical Supplies & Equipment,(id:42265) Haematology Cellular Pathology and Supporting Services,NHS SUPPLY CHAIN (MAIDSTONE),id:14421654,  44.88
Department of Health,Guys and St Thomas NHS Foundation Trust,27/10/2021,(80205) Drug Costs,(id:42273) Haematology Cellular Pathology and Supporting Services,HEALTHCARE AT HOME LTD,id:14563605   ,5080.17
Department of Health,Guys and St Thomas NHS Foundation Trust,27/10/2021,(80205) Drug Costs,(id:42273) Haematology Cellular Pathology and Supporting Services,HEALTHCARE AT HOME LTD,id:14563650   ,5330.17
Department of Health,Guys and St Thomas NHS Foundation Trust,27/10/2021,(80205) Drug Costs,(id:42273) Haematology Cellular Pathology and Supporting Services,HEALTHCARE AT HOME LTD,id:14563599   ,8230.17
Department of Health,Guys and St Thomas NHS Foundation Trust,27/10/2021,(80205) Drug Costs,(id:42273) Haematology Cellular Pathology and Supporting Services,HEALTHCARE AT HOME LTD,id:14563914   ,8930.17
Department of Health,Guys and St Thomas NHS Foundation Trust,27/10/2021,(80205) Drug Costs,(id:42273) Haematology Cellular Pathology and Supporting Services,HEALTHCARE AT HOME LTD,id:14563572   ,1551.37
Department of Health,Guys and St Thomas NHS Foundation Trust,27/10/2021,(80205) Drug Costs,(id:42273) Haematology Cellular Pathology and Supporting Services,HEALTHCARE AT HOME LTD,id:14564014   ,2197.37
Department of Health,Guys and St Thomas NHS Foundation Trust,27/10/2021,(80205) Drug Costs,(id:42273) Haematology Cellular Pathology and Supporting Services,HEALTHCARE AT HOME LTD,id:14563647   ,3344.14
Department of Health,Guys and St Thomas NHS Foundation Trust,27/10/2021,(80205) Drug Costs,(id:42273) Haematology Cellular Pathology and Supporting Services,HEALTHCARE AT HOME LTD,id:14563643   ,4271.17
Department of Health,Guys and St Thomas NHS Foundation Trust,27/10/2021,(80205) Drug Costs,(id:42273) Haematology Cellular Pathology and Supporting Services,HEALTHCARE AT HOME LTD,id:14563598   ,4930.17
Department of Health,Guys and St Thomas NHS Foundation Trust,15/10/2021,(80205) Drug Costs,(id:42273) Haematology Cellular Pathology and Supporting Services,ALCURA UK LIMITED,id:14537298   ,2930.00
Department of Health,Guys and St Thomas NHS Foundation Trust,28/10/2021,(89200) Other - Patient travel,(id:42130) Haematology Cellular Pathology and Supporting Services,F A ALBIN & SONS,id:14578214  , 918.57
Department of Health,Guys and St Thomas NHS Foundation Trust,08/10/2021,(54052) Technical Officers,(id:42128) Haematology Cellular Pathology and Supporting Services,TOTAL ASSIST RECRUITMENT LTD,id:14483917    ,1280.70
Department of Health,Guys and St Thomas NHS Foundation Trust,01/10/2021,(54052) Technical Officers,(id:42128) Haematology Cellular Pathology and Supporting Services,TOTAL ASSIST RECRUITMENT LTD,id:14454913    , 512.28
Department of Health,Guys and St Thomas NHS Foundation Trust,15/10/2021,(83400) Office Equipment,(id:42258) Oncology Services,NHS SUPPLY CHAIN (MAIDSTONE),id:14421654   ,  57.20
Department of Health,Guys and St Thomas NHS Foundation Trust,22/10/2021,(82800) Bedding & Linen,(id:42258) Oncology Services,NHS SUPPLY CHAIN (MAIDSTONE),id:14500176    ,  60.30
Department of Health,Guys and St Thomas NHS Foundation Trust,22/10/2021,(81200) Medical Surgical Supplies & Equipment,(id:42258) Oncology Services,NHS SUPPLY CHAIN (MAIDSTONE),id:14478413  , 124.93
Department of Health,Guys and St Thomas NHS Foundation Trust,15/10/2021,(81200) Medical Surgical Supplies & Equipment,(id:42258) Oncology Services,NHS SUPPLY CHAIN (MAIDSTONE),id:14441943  , 220.28
Department of Health,Guys and St Thomas NHS Foundation Trust,15/10/2021,(81200) Medical Surgical Supplies & Equipment,(id:42258) Oncology Services,NHS SUPPLY CHAIN (MAIDSTONE),id:14399770  ,  46.78
Department of Health,Guys and St Thomas NHS Foundation Trust,12/10/2021,(52062) Radiographers,(id:42258) Oncology Services,PRICEWATERHOUSECOOPERS LLP,id:14526636   ,3455.05
Department of Health,Guys and St Thomas NHS Foundation Trust,01/10/2021,(89595) Non-Healthcare from Foundation Trusts,(id:42258) Oncology Services,OXLEAS NHS FOUNDATION TRUST,id:14484234   ,    -2100.00
Department of Health,Guys and St Thomas NHS Foundation Trust,15/10/2021,(81100) Dressings,(id:42258) Oncology Services,NHS SUPPLY CHAIN (MAIDSTONE),id:14421654, 106.34
Department of Health,Guys and St Thomas NHS Foundation Trust,15/10/2021,(81700) Lab Equipment Purchase,(id:42258) Oncology Services,NHS SUPPLY CHAIN (MAIDSTONE),id:14421654  ,  21.60
Department of Health,Guys and St Thomas NHS Foundation Trust,15/10/2021,(82000) Provisions & Kitchens,(id:42258) Oncology Services,NHS SUPPLY CHAIN (MAIDSTONE),id:14441943   , 150.00
Department of Health,Guys and St Thomas NHS Foundation Trust,22/10/2021,(83400) Office Equipment,(id:42261) Oncology Services,NHS SUPPLY CHAIN (MAIDSTONE),id:14478413   ,   8.77
Department of Health,Guys and St Thomas NHS Foundation Trust,22/10/2021,(81200) Medical Surgical Supplies & Equipment,(id:42261) Oncology Services,ALBYN MEDICAL LTD,id:14556954   ,3994.20
Department of Health,Guys and St Thomas NHS Foundation Trust,22/10/2021,(89595) Non-Healthcare from Foundation Trusts,(id:42261) Oncology Services,KING'S COLLEGE HOSPITAL NHS FOUNDATION TRUST,id:14478451 ,   106766.00
Department of Health,Guys and St Thomas NHS Foundation Trust,28/10/2021,(50470) Medical Training Grades,(id:42261) Oncology Services,KINGS COLLEGE LONDON:03529700,id:14481879,1577.54
Department of Health,Guys and St Thomas NHS Foundation Trust,01/10/2021,(82600) Uniforms & Clothing,(id:42260) Oncology Services,1ST BIOTECH LIMITED,id:14415594    , 917.76
Department of Health,Guys and St Thomas NHS Foundation Trust,22/10/2021,(81275) Medical Surgical Supplies & Equipment,(id:42260) Oncology Services,NHS SUPPLY CHAIN (MAIDSTONE),id:14500176  ,  14.46
Department of Health,Guys and St Thomas NHS Foundation Trust,15/10/2021,(81700) Lab Equipment Purchase,(id:42260) Oncology Services,NHS SUPPLY CHAIN (MAIDSTONE),id:14421654  , 161.84
Department of Health,Guys and St Thomas NHS Foundation Trust,15/10/2021,(81100) Dressings,(id:42260) Oncology Services,NHS SUPPLY CHAIN (MAIDSTONE),id:14441943,3297.33
Department of Health,Guys and St Thomas NHS Foundation Trust,28/10/2021,(83500) Furniture & Fittings,(id:42259) Oncology Services,KNIGHTSBRIDGE FURNITURE PRODUCTS,id:14576716, 961.20
Department of Health,Guys and St Thomas NHS Foundation Trust,15/10/2021,(82800) Bedding & Linen,(id:42259) Oncology Services,NHS SUPPLY CHAIN (MAIDSTONE),id:14421654    , 133.42
Department of Health,Guys and St Thomas NHS Foundation Trust,22/10/2021,(82800) Bedding & Linen,(id:42259) Oncology Services,NHS SUPPLY CHAIN (MAIDSTONE),id:14478413    ,  88.62
Department of Health,Guys and St Thomas NHS Foundation Trust,22/10/2021,(81100) Dressings,(id:42259) Oncology Services,NHS SUPPLY CHAIN (MAIDSTONE),id:14500176, 306.32
Department of Health,Guys and St Thomas NHS Foundation Trust,15/10/2021,(81100) Dressings,(id:42259) Oncology Services,NHS SUPPLY CHAIN (MAIDSTONE),id:14421654, 371.11
Department of Health,Guys and St Thomas NHS Foundation Trust,15/10/2021,(81100) Dressings,(id:42259) Oncology Services,NHS SUPPLY CHAIN (MAIDSTONE),id:14399770, 209.02
Department of Health,Guys and St Thomas NHS Foundation Trust,28/10/2021,(50522) Unqualified Nursing Staff,(id:42259) Oncology Services,GLOBE LOCUMS LTD,id:14581162 , 276.79
Department of Health,Guys and St Thomas NHS Foundation Trust,01/10/2021,(50522) Unqualified Nursing Staff,(id:42259) Oncology Services,MSI GROUP LTD,id:14483854    , 271.42
Department of Health,Guys and St Thomas NHS Foundation Trust,15/10/2021,(83400) Office Equipment,(id:42259) Oncology Services,NHS SUPPLY CHAIN (MAIDSTONE),id:14399770   ,  81.16
Department of Health,Guys and St Thomas NHS Foundation Trust,08/10/2021,(81200) Medical Surgical Supplies & Equipment,(id:42280) Surgical Oncology,Q MEDICAL TECHNOLOGIES LTD,id:14507171    ,    -3570.00
Department of Health,Guys and St Thomas NHS Foundation Trust,22/10/2021,(81200) Medical Surgical Supplies & Equipment,(id:42280) Surgical Oncology,SEBBIN UK LTD,id:14527491  ,4297.76
Department of Health,Guys and St Thomas NHS Foundation Trust,22/10/2021,(83400) Office Equipment,(id:42280) Surgical Oncology,NHS SUPPLY CHAIN (MAIDSTONE),id:14500176   , 193.94
Department of Health,Guys and St Thomas NHS Foundation Trust,22/10/2021,(55242) Health Care Assistants,(id:42280) Surgical Oncology,LEWISHAM NEXUS SUPPORT SERVICES,id:14557094    ,1395.36
Department of Health,Guys and St Thomas NHS Foundation Trust,28/10/2021,(81000) Surgical Appliances,(id:42280) Surgical Oncology,MEDI UK LTD,id:14580195  , 126.10
Department of Health,Guys and St Thomas NHS Foundation Trust,22/10/2021,(83400) Office Equipment,(id:243406) Surgical Oncology,NHS SUPPLY CHAIN (MAIDSTONE),id:14478413  , 221.09
Department of Health,Guys and St Thomas NHS Foundation Trust,15/10/2021,(83400) Office Equipment,(id:243406) Surgical Oncology,NHS SUPPLY CHAIN (MAIDSTONE),id:14399770  ,  43.56
Department of Health,Guys and St Thomas NHS Foundation Trust,15/10/2021,(81700) Lab Equipment Purchase,(id:243406) Surgical Oncology,NHS SUPPLY CHAIN (MAIDSTONE),id:14421654 ,   3.10
Department of Health,Guys and St Thomas NHS Foundation Trust,22/10/2021,(81255) Medical Surgical Supplies & Equipment,(id:243406) Surgical Oncology,NHS SUPPLY CHAIN (MAIDSTONE),id:14478413 ,  85.25
Department of Health,Guys and St Thomas NHS Foundation Trust,08/10/2021,(50562) Qualified Nursing Staff,(id:243406) Surgical Oncology,UNITY HEALTHCARE RECRUITMENT LTD,id:14506420 , 452.52
Department of Health,Guys and St Thomas NHS Foundation Trust,15/10/2021,(50522) Unqualified Nursing Staff,(id:243406) Surgical Oncology,MSI GROUP LTD,id:14534110   , 267.66
Department of Health,Guys and St Thomas NHS Foundation Trust,22/10/2021,(81100) Dressings,(id:42474) Surgical Oncology,NHS SUPPLY CHAIN (MAIDSTONE),id:14478413,  39.01
Department of Health,Guys and St Thomas NHS Foundation Trust,28/10/2021,(81200) Medical Surgical Supplies & Equipment,(id:42474) Surgical Oncology,MEDTRONIC LTD,id:14500714  , 286.79
Department of Health,Guys and St Thomas NHS Foundation Trust,01/10/2021,(81200) Medical Surgical Supplies & Equipment,(id:42474) Surgical Oncology,MEDTRONIC LTD,id:14420960  , 555.60
Department of Health,Guys and St Thomas NHS Foundation Trust,01/10/2021,(81200) Medical Surgical Supplies & Equipment,(id:42474) Surgical Oncology,KAISER + KRAFT,id:14479728 , 645.12
Department of Health,Guys and St Thomas NHS Foundation Trust,22/10/2021,(81100) Dressings,(id:42473) Surgical Oncology,NHS SUPPLY CHAIN (MAIDSTONE),id:14478413, 379.12
Department of Health,Guys and St Thomas NHS Foundation Trust,22/10/2021,(81200) Medical Surgical Supplies & Equipment,(id:42473) Surgical Oncology,LINDSAY SURGICAL SUPPLIES LIMITED,id:14511546  ,  12.00
Department of Health,Guys and St Thomas NHS Foundation Trust,28/10/2021,(81200) Medical Surgical Supplies & Equipment,(id:42473) Surgical Oncology,MEDTRONIC LTD,id:14485510  ,1530.00
Department of Health,Guys and St Thomas NHS Foundation Trust,08/10/2021,(81200) Medical Surgical Supplies & Equipment,(id:42473) Surgical Oncology,MEDTRONIC LTD,id:14446072  , 968.40
Department of Health,Guys and St Thomas NHS Foundation Trust,28/10/2021,(81200) Medical Surgical Supplies & Equipment,(id:42473) Surgical Oncology,HEALTHCARE 21 LTD,id:14527444   , 930.00
Department of Health,Guys and St Thomas NHS Foundation Trust,01/10/2021,(81200) Medical Surgical Supplies & Equipment,(id:42473) Surgical Oncology,CCMED LTD,id:14465234 , 501.00
Department of Health,Guys and St Thomas NHS Foundation Trust,01/10/2021,(81200) Medical Surgical Supplies & Equipment,(id:42473) Surgical Oncology,CCMED LTD,id:14465214 ,2145.00
Department of Health,Guys and St Thomas NHS Foundation Trust,08/10/2021,(81200) Medical Surgical Supplies & Equipment,(id:42473) Surgical Oncology,MEDTRONIC LTD,id:14447554  , 759.60
Department of Health,Guys and St Thomas NHS Foundation Trust,15/10/2021,(81200) Medical Surgical Supplies & Equipment,(id:42473) Surgical Oncology,CCMED LTD,id:14489454 ,2676.00
Department of Health,Guys and St Thomas NHS Foundation Trust,28/10/2021,(54062) Technical Officers,(id:42475) Surgical Oncology,PRICEWATERHOUSECOOPERS LLP,id:14585494   , 302.60
Department of Health,Guys and St Thomas NHS Foundation Trust,15/10/2021,(82000) Provisions & Kitchens,(id:42475) Surgical Oncology,NHS SUPPLY CHAIN (MAIDSTONE),id:14399770   ,  16.09
Department of Health,Guys and St Thomas NHS Foundation Trust,28/10/2021,(81275) Medical Surgical Supplies & Equipment,(id:42475) Surgical Oncology,GUYMARK UK LIMITED,id:14533822  ,7730.40
Department of Health,Guys and St Thomas NHS Foundation Trust,28/10/2021,(81215) Medical Surgical Supplies & Equipment,(id:42475) Surgical Oncology,ADVANCED BIONICS SARL (AND UK LTD),id:14573877 ,    10187.10
Department of Health,Guys and St Thomas NHS Foundation Trust,15/10/2021,(81215) Medical Surgical Supplies & Equipment,(id:42475) Surgical Oncology,MED-EL UK LTD,id:14502894  ,    45148.50
Department of Health,Guys and St Thomas NHS Foundation Trust,08/10/2021,(81215) Medical Surgical Supplies & Equipment,(id:42475) Surgical Oncology,COCHLEAR EUROPE LTD,id:14476475 ,    19203.60
Department of Health,Guys and St Thomas NHS Foundation Trust,08/10/2021,(81225) Medical Surgical Supplies & Equipment,(id:42475) Surgical Oncology,COCHLEAR EUROPE LTD,id:14476600 , 547.20
Department of Health,Guys and St Thomas NHS Foundation Trust,08/10/2021,(81225) Medical Surgical Supplies & Equipment,(id:42475) Surgical Oncology,MED-EL UK LTD,id:14502934  ,   -13687.80
Department of Health,Guys and St Thomas NHS Foundation Trust,28/10/2021,(81225) Medical Surgical Supplies & Equipment,(id:42475) Surgical Oncology,COCHLEAR EUROPE LTD,id:14576400 , 596.40
Department of Health,Guys and St Thomas NHS Foundation Trust,28/10/2021,(81225) Medical Surgical Supplies & Equipment,(id:42475) Surgical Oncology,COCHLEAR EUROPE LTD,id:14576390 ,5499.60
Department of Health,Guys and St Thomas NHS Foundation Trust,01/10/2021,(81225) Medical Surgical Supplies & Equipment,(id:42475) Surgical Oncology,COCHLEAR EUROPE LTD,id:14474805 , 836.40
Department of Health,Guys and St Thomas NHS Foundation Trust,15/10/2021,(81225) Medical Surgical Supplies & Equipment,(id:42475) Surgical Oncology,NHS SUPPLY CHAIN (MAIDSTONE),id:14399770  ,    23669.39
Department of Health,Guys and St Thomas NHS Foundation Trust,15/10/2021,(82800) Bedding & Linen,(id:42286) Surgical Oncology,NHS SUPPLY CHAIN (MAIDSTONE),id:14421654    ,  62.10
Department of Health,Guys and St Thomas NHS Foundation Trust,15/10/2021,(81100) Dressings,(id:42286) Surgical Oncology,NHS SUPPLY CHAIN (MAIDSTONE),id:14421654, 425.94
Department of Health,Guys and St Thomas NHS Foundation Trust,22/10/2021,(81100) Dressings,(id:42286) Surgical Oncology,NHS SUPPLY CHAIN (MAIDSTONE),id:14500176, 229.68
Department of Health,Guys and St Thomas NHS Foundation Trust,01/10/2021,(81200) Medical Surgical Supplies & Equipment,(id:42286) Surgical Oncology,MEDTRONIC LTD,id:14386089  ,1460.34
Department of Health,Guys and St Thomas NHS Foundation Trust,01/10/2021,(81200) Medical Surgical Supplies & Equipment,(id:42286) Surgical Oncology,MEDTRONIC LTD,id:14423041  , 384.00
Department of Health,Guys and St Thomas NHS Foundation Trust,01/10/2021,(81200) Medical Surgical Supplies & Equipment,(id:42286) Surgical Oncology,Q MEDICAL TECHNOLOGIES LTD,id:14475467    ,5396.40
Department of Health,Guys and St Thomas NHS Foundation Trust,28/10/2021,(81200) Medical Surgical Supplies & Equipment,(id:42286) Surgical Oncology,MEDTRONIC LTD,id:14509489  ,3120.00
Department of Health,Guys and St Thomas NHS Foundation Trust,15/10/2021,(81200) Medical Surgical Supplies & Equipment,(id:42286) Surgical Oncology,NHS SUPPLY CHAIN (MAIDSTONE),id:14421654  ,8367.24
Department of Health,Guys and St Thomas NHS Foundation Trust,15/10/2021,(81200) Medical Surgical Supplies & Equipment,(id:42286) Surgical Oncology,MEDTRONIC LTD,id:14480959  , 962.96
Department of Health,Guys and St Thomas NHS Foundation Trust,15/10/2021,(81200) Medical Surgical Supplies & Equipment,(id:42286) Surgical Oncology,MEDTRONIC LTD,id:14457837  ,1460.34
Department of Health,Guys and St Thomas NHS Foundation Trust,15/10/2021,(81200) Medical Surgical Supplies & Equipment,(id:42286) Surgical Oncology,WL GORE & ASSOCIATES (UK) LTD,id:14520014 ,1183.20
Department of Health,Guys and St Thomas NHS Foundation Trust,22/10/2021,(81200) Medical Surgical Supplies & Equipment,(id:42286) Surgical Oncology,NHS SUPPLY CHAIN (MAIDSTONE),id:14478413  ,9415.23
Department of Health,Guys and St Thomas NHS Foundation Trust,22/10/2021,(81200) Medical Surgical Supplies & Equipment,(id:42286) Surgical Oncology,JOHNSON & JOHNSON MEDICAL LTD,id:14487923 ,4749.84
Department of Health,Guys and St Thomas NHS Foundation Trust,15/10/2021,(82800) Bedding & Linen,(id:42284) Surgical Oncology,NHS SUPPLY CHAIN (MAIDSTONE),id:14399770    ,  50.06
Department of Health,Guys and St Thomas NHS Foundation Trust,22/10/2021,(82800) Bedding & Linen,(id:42284) Surgical Oncology,NHS SUPPLY CHAIN (MAIDSTONE),id:14478413    ,  80.88
Department of Health,Guys and St Thomas NHS Foundation Trust,22/10/2021,(81100) Dressings,(id:42284) Surgical Oncology,NHS SUPPLY CHAIN (MAIDSTONE),id:14500176, 237.18
Department of Health,Guys and St Thomas NHS Foundation Trust,22/10/2021,(81200) Medical Surgical Supplies & Equipment,(id:42284) Surgical Oncology,NHS SUPPLY CHAIN (MAIDSTONE),id:14500176  ,1028.84
Department of Health,Guys and St Thomas NHS Foundation Trust,22/10/2021,(81200) Medical Surgical Supplies & Equipment,(id:42284) Surgical Oncology,NHS SUPPLY CHAIN (MAIDSTONE),id:14478413  ,1354.30
Department of Health,Guys and St Thomas NHS Foundation Trust,15/10/2021,(83400) Office Equipment,(id:42284) Surgical Oncology,NHS SUPPLY CHAIN (MAIDSTONE),id:14441943   , 399.68
Department of Health,Guys and St Thomas NHS Foundation Trust,15/10/2021,(83400) Office Equipment,(id:42284) Surgical Oncology,NHS SUPPLY CHAIN (MAIDSTONE),id:14399770   ,  37.48
Department of Health,Guys and St Thomas NHS Foundation Trust,22/10/2021,(81225) Medical Surgical Supplies & Equipment,(id:42284) Surgical Oncology,NHS SUPPLY CHAIN (MAIDSTONE),id:14478413  ,   9.70
Department of Health,Guys and St Thomas NHS Foundation Trust,22/10/2021,(81255) Medical Surgical Supplies & Equipment,(id:42284) Surgical Oncology,NHS SUPPLY CHAIN (MAIDSTONE),id:14500176  ,   3.12
Department of Health,Guys and St Thomas NHS Foundation Trust,15/10/2021,(81255) Medical Surgical Supplies & Equipment,(id:42284) Surgical Oncology,NHS SUPPLY CHAIN (MAIDSTONE),id:14421654  ,   7.92
Department of Health,Guys and St Thomas NHS Foundation Trust,15/10/2021,(81230) Medical Surgical Supplies & Equipment,(id:42284) Surgical Oncology,NHS SUPPLY CHAIN (MAIDSTONE),id:14441943  , 317.28
Department of Health,Guys and St Thomas NHS Foundation Trust,01/10/2021,(81200) Medical Surgical Supplies & Equipment,(id:42471) Surgical Oncology,SEVERN HEALTHCARE TECHNOLOGIES LTD,id:14429514 ,1596.00
Department of Health,Guys and St Thomas NHS Foundation Trust,22/10/2021,(82700) Uniforms & Clothing,(id:42470) Surgical Oncology,NHS SUPPLY CHAIN (MAIDSTONE),id:14478413,  43.68
Department of Health,Guys and St Thomas NHS Foundation Trust,15/10/2021,(82000) Provisions & Kitchens,(id:42470) Surgical Oncology,NHS SUPPLY CHAIN (MAIDSTONE),id:14441943   ,  52.24
Department of Health,Guys and St Thomas NHS Foundation Trust,22/10/2021,(82800) Bedding & Linen,(id:42470) Surgical Oncology,NHS SUPPLY CHAIN (MAIDSTONE),id:14500176    , 206.57
Department of Health,Guys and St Thomas NHS Foundation Trust,15/10/2021,(81100) Dressings,(id:42470) Surgical Oncology,NHS SUPPLY CHAIN (MAIDSTONE),id:14421654, 895.22
Department of Health,Guys and St Thomas NHS Foundation Trust,15/10/2021,(81200) Medical Surgical Supplies & Equipment,(id:42470) Surgical Oncology,NHS SUPPLY CHAIN (MAIDSTONE),id:14441943  ,6323.44
Department of Health,Guys and St Thomas NHS Foundation Trust,22/10/2021,(81200) Medical Surgical Supplies & Equipment,(id:42470) Surgical Oncology,NHS SUPPLY CHAIN (MAIDSTONE),id:14500176  ,2346.37
Department of Health,Guys and St Thomas NHS Foundation Trust,22/10/2021,(81255) Medical Surgical Supplies & Equipment,(id:42470) Surgical Oncology,NHS SUPPLY CHAIN (MAIDSTONE),id:14500176  ,  12.94
Department of Health,Guys and St Thomas NHS Foundation Trust,15/10/2021,(81255) Medical Surgical Supplies & Equipment,(id:42470) Surgical Oncology,NHS SUPPLY CHAIN (MAIDSTONE),id:14441943  ,  11.88
Department of Health,Guys and St Thomas NHS Foundation Trust,01/10/2021,(50522) Unqualified Nursing Staff,(id:42470) Surgical Oncology,MSI GROUP LTD,id:14483696    , 252.93
Department of Health,Guys and St Thomas NHS Foundation Trust,22/10/2021,(83400) Office Equipment,(id:42470) Surgical Oncology,NHS SUPPLY CHAIN (MAIDSTONE),id:14478413   , 208.43
Department of Health,Guys and St Thomas NHS Foundation Trust,15/10/2021,(50200) Consultants,(id:42512) Surgical Oncology,KING'S COLLEGE HOSPITAL NHS FOUNDATION TRUST,id:14478920  ,2743.39
Department of Health,Guys and St Thomas NHS Foundation Trust,08/10/2021,(84500) Establishment,(id:42508) Surgical Oncology,WYBONE LTD,id:14505911    ,1370.34
Department of Health,Guys and St Thomas NHS Foundation Trust,22/10/2021,(89440) Research and Development,(id:42115) Acute & General Medicine,KINGS COLLEGE LONDON:03529700,id:14543134  ,   -10800.00
Department of Health,Guys and St Thomas NHS Foundation Trust,15/10/2021,(81225) Medical Surgical Supplies & Equipment,(id:2182419) Acute & General Medicine,NHS SUPPLY CHAIN (MAIDSTONE),id:14441943   ,  41.09
Department of Health,Guys and St Thomas NHS Foundation Trust,15/10/2021,(81230) Medical Surgical Supplies & Equipment,(id:2182419) Acute & General Medicine,NHS SUPPLY CHAIN (MAIDSTONE),id:14441943   , 228.00
Department of Health,Guys and St Thomas NHS Foundation Trust,15/10/2021,(81700) Lab Equipment Purchase,(id:2182419) Acute & General Medicine,NHS SUPPLY CHAIN (MAIDSTONE),id:14421654   ,  34.88
Department of Health,Guys and St Thomas NHS Foundation Trust,22/10/2021,(81275) Medical Surgical Supplies & Equipment,(id:2182419) Acute & General Medicine,NHS SUPPLY CHAIN (MAIDSTONE),id:14478413   ,  86.76
Department of Health,Guys and St Thomas NHS Foundation Trust,22/10/2021,(81255) Medical Surgical Supplies & Equipment,(id:2182419) Acute & General Medicine,NHS SUPPLY CHAIN (MAIDSTONE),id:14500176   ,   8.21
Department of Health,Guys and St Thomas NHS Foundation Trust,28/10/2021,(50552) Qualified Nursing Staff,(id:2182419) Acute & General Medicine,GLOBE LOCUMS LTD,id:14581159    , 664.90
Department of Health,Guys and St Thomas NHS Foundation Trust,01/10/2021,(50552) Qualified Nursing Staff,(id:2182419) Acute & General Medicine,GLOBE LOCUMS LTD,id:14483434    , 544.89
Department of Health,Guys and St Thomas NHS Foundation Trust,01/10/2021,(50522) Unqualified Nursing Staff,(id:2182419) Acute & General Medicine,CARE PROVIDERS HEALTHCARE,id:14483533   , 276.40
Department of Health,Guys and St Thomas NHS Foundation Trust,28/10/2021,(50522) Unqualified Nursing Staff,(id:2182419) Acute & General Medicine,MSI GROUP LTD,id:14581090, 270.73
Department of Health,Guys and St Thomas NHS Foundation Trust,28/10/2021,(50522) Unqualified Nursing Staff,(id:2182419) Acute & General Medicine,GLOBE LOCUMS LTD,id:14581162  , 276.79
Department of Health,Guys and St Thomas NHS Foundation Trust,15/10/2021,(50522) Unqualified Nursing Staff,(id:2182419) Acute & General Medicine,CARE PROVIDERS HEALTHCARE,id:14537385   , 262.81
Department of Health,Guys and St Thomas NHS Foundation Trust,15/10/2021,(82000) Provisions & Kitchens,(id:2182419) Acute & General Medicine,NHS SUPPLY CHAIN (MAIDSTONE),id:14421654    , 497.29
Department of Health,Guys and St Thomas NHS Foundation Trust,15/10/2021,(83400) Office Equipment,(id:2182419) Acute & General Medicine,NHS SUPPLY CHAIN (MAIDSTONE),id:14399770    , 227.33
Department of Health,Guys and St Thomas NHS Foundation Trust,15/10/2021,(83400) Office Equipment,(id:2182419) Acute & General Medicine,NHS SUPPLY CHAIN (MAIDSTONE),id:14421654    , 280.62
Department of Health,Guys and St Thomas NHS Foundation Trust,15/10/2021,(83400) Office Equipment,(id:41860) Acute & General Medicine,NHS SUPPLY CHAIN (MAIDSTONE),id:14421654 ,  27.95
Department of Health,Guys and St Thomas NHS Foundation Trust,28/10/2021,(50522) Unqualified Nursing Staff,(id:41860) Acute & General Medicine,GLOBE LOCUMS LTD,id:14580797    , 276.03
Department of Health,Guys and St Thomas NHS Foundation Trust,15/10/2021,(81225) Medical Surgical Supplies & Equipment,(id:41860) Acute & General Medicine,NHS SUPPLY CHAIN (MAIDSTONE),id:14399770,  19.39
Department of Health,Guys and St Thomas NHS Foundation Trust,15/10/2021,(81700) Lab Equipment Purchase,(id:41860) Acute & General Medicine,NHS SUPPLY CHAIN (MAIDSTONE),id:14421654,  14.35
Department of Health,Guys and St Thomas NHS Foundation Trust,22/10/2021,(82800) Bedding & Linen,(id:41859) Acute & General Medicine,NHS SUPPLY CHAIN (MAIDSTONE),id:14500176  , 226.92
Department of Health,Guys and St Thomas NHS Foundation Trust,28/10/2021,(50532) Unqualified Nursing Staff,(id:41859) Acute & General Medicine,CAPITAL STAFFING SERVICES LTD,id:14580841 , 195.96
Department of Health,Guys and St Thomas NHS Foundation Trust,15/10/2021,(81100) Dressings,(id:41859) Acute & General Medicine,NHS SUPPLY CHAIN (MAIDSTONE),id:14421654   ,  68.18
Department of Health,Guys and St Thomas NHS Foundation Trust,15/10/2021,(81100) Dressings,(id:41859) Acute & General Medicine,NHS SUPPLY CHAIN (MAIDSTONE),id:14399770   ,  72.92
Department of Health,Guys and St Thomas NHS Foundation Trust,01/10/2021,(50552) Qualified Nursing Staff,(id:41859) Acute & General Medicine,CARE PROVIDERS HEALTHCARE,id:14483668  , 698.17
Department of Health,Guys and St Thomas NHS Foundation Trust,15/10/2021,(81255) Medical Surgical Supplies & Equipment,(id:41859) Acute & General Medicine,NHS SUPPLY CHAIN (MAIDSTONE),id:14441943,  70.85
Department of Health,Guys and St Thomas NHS Foundation Trust,28/10/2021,(50522) Unqualified Nursing Staff,(id:41859) Acute & General Medicine,CAPITAL STAFFING SERVICES LTD,id:14580841 , 391.93
Department of Health,Guys and St Thomas NHS Foundation Trust,01/10/2021,(50522) Unqualified Nursing Staff,(id:41859) Acute & General Medicine,MSI GROUP LTD,id:14486513  , 511.93
Department of Health,Guys and St Thomas NHS Foundation Trust,28/10/2021,(50522) Unqualified Nursing Staff,(id:41859) Acute & General Medicine,MSI GROUP LTD,id:14580855  , 258.37
Department of Health,Guys and St Thomas NHS Foundation Trust,22/10/2021,(50522) Unqualified Nursing Staff,(id:41859) Acute & General Medicine,MEDICSPRO LTD,id:14556575  , 516.74
Department of Health,Guys and St Thomas NHS Foundation Trust,22/10/2021,(50522) Unqualified Nursing Staff,(id:41859) Acute & General Medicine,CARE PROVIDERS HEALTHCARE,id:14556683, 258.37
Department of Health,Guys and St Thomas NHS Foundation Trust,22/10/2021,(50522) Unqualified Nursing Staff,(id:41859) Acute & General Medicine,MSI GROUP LTD,id:14556417  , 387.56
Department of Health,Guys and St Thomas NHS Foundation Trust,15/10/2021,(50522) Unqualified Nursing Staff,(id:41859) Acute & General Medicine,CAPITAL STAFFING SERVICES LTD,id:14533943 , 587.89
Department of Health,Guys and St Thomas NHS Foundation Trust,15/10/2021,(50522) Unqualified Nursing Staff,(id:41859) Acute & General Medicine,MSI GROUP LTD,id:14534174  , 734.33
Department of Health,Guys and St Thomas NHS Foundation Trust,15/10/2021,(81700) Lab Equipment Purchase,(id:41859) Acute & General Medicine,NHS SUPPLY CHAIN (MAIDSTONE),id:14399770,   3.10
Department of Health,Guys and St Thomas NHS Foundation Trust,22/10/2021,(82700) Uniforms & Clothing,(id:41858) Acute & General Medicine,NHS SUPPLY CHAIN (MAIDSTONE),id:14500176   ,  31.68
Department of Health,Guys and St Thomas NHS Foundation Trust,15/10/2021,(83400) Office Equipment,(id:41858) Acute & General Medicine,NHS SUPPLY CHAIN (MAIDSTONE),id:14421654 , 180.14
Department of Health,Guys and St Thomas NHS Foundation Trust,15/10/2021,(82800) Bedding & Linen,(id:41858) Acute & General Medicine,NHS SUPPLY CHAIN (MAIDSTONE),id:14441943  , 168.90
Department of Health,Guys and St Thomas NHS Foundation Trust,15/10/2021,(50552) Qualified Nursing Staff,(id:41858) Acute & General Medicine,MSI GROUP LTD,id:14533947    , 343.95
Department of Health,Guys and St Thomas NHS Foundation Trust,01/10/2021,(50522) Unqualified Nursing Staff,(id:41858) Acute & General Medicine,GENEVA HEALTH INTERNATIONAL LIMITED,id:14483612, 207.03
Department of Health,Guys and St Thomas NHS Foundation Trust,22/10/2021,(81200) Medical Surgical Supplies & Equipment,(id:41858) Acute & General Medicine,NHS SUPPLY CHAIN (MAIDSTONE),id:14478413, 225.52
Department of Health,Guys and St Thomas NHS Foundation Trust,22/10/2021,(81225) Medical Surgical Supplies & Equipment,(id:41858) Acute & General Medicine,NHS SUPPLY CHAIN (MAIDSTONE),id:14500176,   7.97
Department of Health,Guys and St Thomas NHS Foundation Trust,15/10/2021,(81225) Medical Surgical Supplies & Equipment,(id:41858) Acute & General Medicine,NHS SUPPLY CHAIN (MAIDSTONE),id:14421654,  30.97
Department of Health,Guys and St Thomas NHS Foundation Trust,15/10/2021,(81700) Lab Equipment Purchase,(id:41858) Acute & General Medicine,NHS SUPPLY CHAIN (MAIDSTONE),id:14441943,  10.49
Department of Health,Guys and St Thomas NHS Foundation Trust,15/10/2021,(50552) Qualified Nursing Staff,(id:41872) Acute & General Medicine,MEDICSPRO LTD,id:14534098    , 416.87
Department of Health,Guys and St Thomas NHS Foundation Trust,28/10/2021,(50552) Qualified Nursing Staff,(id:41872) Acute & General Medicine,CONTINENTAL NURSE LTD,id:14581093 ,2613.01
Department of Health,Guys and St Thomas NHS Foundation Trust,22/10/2021,(82700) Uniforms & Clothing,(id:41869) Acute & General Medicine,NHS SUPPLY CHAIN (MAIDSTONE),id:14478413   ,  31.68
Department of Health,Guys and St Thomas NHS Foundation Trust,22/10/2021,(82000) Provisions & Kitchens,(id:41869) Acute & General Medicine,NHS SUPPLY CHAIN (MAIDSTONE),id:14500176 ,  47.62
Department of Health,Guys and St Thomas NHS Foundation Trust,15/10/2021,(82000) Provisions & Kitchens,(id:41869) Acute & General Medicine,NHS SUPPLY CHAIN (MAIDSTONE),id:14441943 ,  40.98
Department of Health,Guys and St Thomas NHS Foundation Trust,15/10/2021,(82800) Bedding & Linen,(id:41869) Acute & General Medicine,NHS SUPPLY CHAIN (MAIDSTONE),id:14399770  , 506.68
Department of Health,Guys and St Thomas NHS Foundation Trust,22/10/2021,(81200) Medical Surgical Supplies & Equipment,(id:41869) Acute & General Medicine,NHS SUPPLY CHAIN (MAIDSTONE),id:14478413,6189.25
Department of Health,Guys and St Thomas NHS Foundation Trust,22/10/2021,(81200) Medical Surgical Supplies & Equipment,(id:41869) Acute & General Medicine,SUNRISE MEDICAL LIMITED,id:14544792, 500.76
Department of Health,Guys and St Thomas NHS Foundation Trust,22/10/2021,(81100) Dressings,(id:41869) Acute & General Medicine,NHS SUPPLY CHAIN (MAIDSTONE),id:14500176   ,1318.03
Department of Health,Guys and St Thomas NHS Foundation Trust,15/10/2021,(81100) Dressings,(id:41869) Acute & General Medicine,NHS SUPPLY CHAIN (MAIDSTONE),id:14399770   ,1261.53
Department of Health,Guys and St Thomas NHS Foundation Trust,22/10/2021,(82800) Bedding & Linen,(id:41868) Acute & General Medicine,NHS SUPPLY CHAIN (MAIDSTONE),id:14500176  , 133.37
Department of Health,Guys and St Thomas NHS Foundation Trust,22/10/2021,(81200) Medical Surgical Supplies & Equipment,(id:41868) Acute & General Medicine,NHS SUPPLY CHAIN (MAIDSTONE),id:14500176, 650.26
Department of Health,Guys and St Thomas NHS Foundation Trust,15/10/2021,(81200) Medical Surgical Supplies & Equipment,(id:41868) Acute & General Medicine,NHS SUPPLY CHAIN (MAIDSTONE),id:14441943, 547.85
Department of Health,Guys and St Thomas NHS Foundation Trust,15/10/2021,(81225) Medical Surgical Supplies & Equipment,(id:41868) Acute & General Medicine,NHS SUPPLY CHAIN (MAIDSTONE),id:14441943, 118.80
Department of Health,Guys and St Thomas NHS Foundation Trust,15/10/2021,(81700) Lab Equipment Purchase,(id:41868) Acute & General Medicine,NHS SUPPLY CHAIN (MAIDSTONE),id:14441943,  24.47
Department of Health,Guys and St Thomas NHS Foundation Trust,15/10/2021,(82600) Uniforms & Clothing,(id:41882) Acute & General Medicine,NHS SUPPLY CHAIN (MAIDSTONE),id:14421654   ,   4.21
Department of Health,Guys and St Thomas NHS Foundation Trust,22/10/2021,(82600) Uniforms & Clothing,(id:41882) Acute & General Medicine,NHS SUPPLY CHAIN (MAIDSTONE),id:14478413   ,   4.21
Department of Health,Guys and St Thomas NHS Foundation Trust,15/10/2021,(83400) Office Equipment,(id:41882) Acute & General Medicine,NHS SUPPLY CHAIN (MAIDSTONE),id:14421654 ,  82.81
Department of Health,Guys and St Thomas NHS Foundation Trust,15/10/2021,(81100) Dressings,(id:41882) Acute & General Medicine,NHS SUPPLY CHAIN (MAIDSTONE),id:14441943   ,  22.91
Department of Health,Guys and St Thomas NHS Foundation Trust,22/10/2021,(81700) Lab Equipment Purchase,(id:41882) Acute & General Medicine,NHS SUPPLY CHAIN (MAIDSTONE),id:14478413,   3.10
Department of Health,Guys and St Thomas NHS Foundation Trust,22/10/2021,(81200) Medical Surgical Supplies & Equipment,(id:41882) Acute & General Medicine,NHS SUPPLY CHAIN (MAIDSTONE),id:14478413,  96.24
Department of Health,Guys and St Thomas NHS Foundation Trust,15/10/2021,(83400) Office Equipment,(id:41880) Acute & General Medicine,NHS SUPPLY CHAIN (MAIDSTONE),id:14399770 , 158.15
Department of Health,Guys and St Thomas NHS Foundation Trust,15/10/2021,(81200) Medical Surgical Supplies & Equipment,(id:41880) Acute & General Medicine,NHS SUPPLY CHAIN (MAIDSTONE),id:14441943, 806.80
Department of Health,Guys and St Thomas NHS Foundation Trust,22/10/2021,(81200) Medical Surgical Supplies & Equipment,(id:41880) Acute & General Medicine,NHS SUPPLY CHAIN (MAIDSTONE),id:14500176, 308.08
Department of Health,Guys and St Thomas NHS Foundation Trust,22/10/2021,(81225) Medical Surgical Supplies & Equipment,(id:41880) Acute & General Medicine,NHS SUPPLY CHAIN (MAIDSTONE),id:14500176,   3.12
Department of Health,Guys and St Thomas NHS Foundation Trust,15/10/2021,(81225) Medical Surgical Supplies & Equipment,(id:41880) Acute & General Medicine,NHS SUPPLY CHAIN (MAIDSTONE),id:14399770,  12.36
Department of Health,Guys and St Thomas NHS Foundation Trust,01/10/2021,(50522) Unqualified Nursing Staff,(id:41880) Acute & General Medicine,CARE PROVIDERS HEALTHCARE,id:14483879, 258.37
Department of Health,Guys and St Thomas NHS Foundation Trust,15/10/2021,(82700) Uniforms & Clothing,(id:41879) Acute & General Medicine,NHS SUPPLY CHAIN (MAIDSTONE),id:14441943   ,  31.68
Department of Health,Guys and St Thomas NHS Foundation Trust,01/10/2021,(50522) Unqualified Nursing Staff,(id:41879) Acute & General Medicine,CARE PROVIDERS HEALTHCARE,id:14483604, 252.93
Department of Health,Guys and St Thomas NHS Foundation Trust,01/10/2021,(50522) Unqualified Nursing Staff,(id:41879) Acute & General Medicine,MSI GROUP LTD,id:14483564  , 202.07
Department of Health,Guys and St Thomas NHS Foundation Trust,28/10/2021,(50522) Unqualified Nursing Staff,(id:41879) Acute & General Medicine,CARE PROVIDERS HEALTHCARE,id:14580763, 520.54
Department of Health,Guys and St Thomas NHS Foundation Trust,22/10/2021,(50522) Unqualified Nursing Staff,(id:41879) Acute & General Medicine,CARE PROVIDERS HEALTHCARE,id:14556688, 470.65
Department of Health,Guys and St Thomas NHS Foundation Trust,22/10/2021,(81700) Lab Equipment Purchase,(id:41879) Acute & General Medicine,NHS SUPPLY CHAIN (MAIDSTONE),id:14500176,  22.82
Department of Health,Guys and St Thomas NHS Foundation Trust,22/10/2021,(82700) Uniforms & Clothing,(id:41878) Acute & General Medicine,NHS SUPPLY CHAIN (MAIDSTONE),id:14500176   ,  21.84
Department of Health,Guys and St Thomas NHS Foundation Trust,15/10/2021,(82700) Uniforms & Clothing,(id:41878) Acute & General Medicine,NHS SUPPLY CHAIN (MAIDSTONE),id:14441943   ,  21.84
Department of Health,Guys and St Thomas NHS Foundation Trust,15/10/2021,(82000) Provisions & Kitchens,(id:41878) Acute & General Medicine,NHS SUPPLY CHAIN (MAIDSTONE),id:14399770 ,  20.08
Department of Health,Guys and St Thomas NHS Foundation Trust,15/10/2021,(83400) Office Equipment,(id:41878) Acute & General Medicine,NHS SUPPLY CHAIN (MAIDSTONE),id:14399770 , 142.95
Department of Health,Guys and St Thomas NHS Foundation Trust,15/10/2021,(82800) Bedding & Linen,(id:41878) Acute & General Medicine,NHS SUPPLY CHAIN (MAIDSTONE),id:14399770  , 304.72
Department of Health,Guys and St Thomas NHS Foundation Trust,22/10/2021,(82800) Bedding & Linen,(id:41878) Acute & General Medicine,NHS SUPPLY CHAIN (MAIDSTONE),id:14500176  , 166.15
Department of Health,Guys and St Thomas NHS Foundation Trust,22/10/2021,(81100) Dressings,(id:41878) Acute & General Medicine,NHS SUPPLY CHAIN (MAIDSTONE),id:14478413   , 347.05
Department of Health,Guys and St Thomas NHS Foundation Trust,22/10/2021,(50552) Qualified Nursing Staff,(id:41878) Acute & General Medicine,MSI GROUP LTD,id:14556654    , 318.67
Department of Health,Guys and St Thomas NHS Foundation Trust,08/10/2021,(50522) Unqualified Nursing Staff,(id:41878) Acute & General Medicine,MSI GROUP LTD,id:14506283  , 275.81
Department of Health,Guys and St Thomas NHS Foundation Trust,01/10/2021,(50522) Unqualified Nursing Staff,(id:41878) Acute & General Medicine,MSI GROUP LTD,id:14483564  , 202.06
Department of Health,Guys and St Thomas NHS Foundation Trust,28/10/2021,(50522) Unqualified Nursing Staff,(id:41878) Acute & General Medicine,CARE PROVIDERS HEALTHCARE,id:14580951, 258.37
Department of Health,Guys and St Thomas NHS Foundation Trust,22/10/2021,(50522) Unqualified Nursing Staff,(id:41878) Acute & General Medicine,MSI GROUP LTD,id:14555855  , 252.93
Department of Health,Guys and St Thomas NHS Foundation Trust,15/10/2021,(50522) Unqualified Nursing Staff,(id:41878) Acute & General Medicine,GLOBE LOCUMS LTD,id:14533863    , 268.10
Department of Health,Guys and St Thomas NHS Foundation Trust,01/10/2021,(83610) IT Costs,(id:41878) Acute & General Medicine,OFFICE DEPOT UK LTD,id:14410921   , 594.00
Department of Health,Guys and St Thomas NHS Foundation Trust,22/10/2021,(81225) Medical Surgical Supplies & Equipment,(id:41878) Acute & General Medicine,NHS SUPPLY CHAIN (MAIDSTONE),id:14478413,   6.12
Department of Health,Guys and St Thomas NHS Foundation Trust,01/10/2021,(50522) Unqualified Nursing Staff,(id:41881) Acute & General Medicine,GLOBE LOCUMS LTD,id:14483915    , 431.04
Department of Health,Guys and St Thomas NHS Foundation Trust,28/10/2021,(50522) Unqualified Nursing Staff,(id:41881) Acute & General Medicine,CARE PROVIDERS HEALTHCARE,id:14581207, 200.10
Department of Health,Guys and St Thomas NHS Foundation Trust,28/10/2021,(50522) Unqualified Nursing Staff,(id:41881) Acute & General Medicine,MSI GROUP LTD,id:14580854  , 834.91
Department of Health,Guys and St Thomas NHS Foundation Trust,22/10/2021,(50522) Unqualified Nursing Staff,(id:41881) Acute & General Medicine,GLOBE LOCUMS LTD,id:14556715    , 225.96
Department of Health,Guys and St Thomas NHS Foundation Trust,22/10/2021,(81225) Medical Surgical Supplies & Equipment,(id:41881) Acute & General Medicine,NHS SUPPLY CHAIN (MAIDSTONE),id:14500176,  25.39
Department of Health,Guys and St Thomas NHS Foundation Trust,15/10/2021,(81225) Medical Surgical Supplies & Equipment,(id:41881) Acute & General Medicine,NHS SUPPLY CHAIN (MAIDSTONE),id:14421654,   3.00
Department of Health,Guys and St Thomas NHS Foundation Trust,22/10/2021,(81100) Dressings,(id:42025) Dental Services,NHS SUPPLY CHAIN (MAIDSTONE),id:14500176  , 133.50
Department of Health,Guys and St Thomas NHS Foundation Trust,08/10/2021,(81200) Medical Surgical Supplies & Equipment,(id:42025) Dental Services,HENRY SCHEIN,id:14486618, 710.21
Department of Health,Guys and St Thomas NHS Foundation Trust,08/10/2021,(81200) Medical Surgical Supplies & Equipment,(id:42037) Dental Services,HENRY SCHEIN,id:14474733, 882.06
Department of Health,Guys and St Thomas NHS Foundation Trust,01/10/2021,(81200) Medical Surgical Supplies & Equipment,(id:42037) Dental Services,HENRY SCHEIN,id:14454254, 502.07
Department of Health,Guys and St Thomas NHS Foundation Trust,01/10/2021,(81200) Medical Surgical Supplies & Equipment,(id:42037) Dental Services,QED - QUALITY ENDODONTIC DISTRIBUTORS LTD,id:14474916 , 852.60
Department of Health,Guys and St Thomas NHS Foundation Trust,01/10/2021,(81200) Medical Surgical Supplies & Equipment,(id:42037) Dental Services,ORTHO-CARE (UK) LTD.,id:14471374  , 553.43
Department of Health,Guys and St Thomas NHS Foundation Trust,01/10/2021,(81200) Medical Surgical Supplies & Equipment,(id:42037) Dental Services,DAVIS SCHOTTLANDER & DAVIS LTD,id:14471266  , 614.40
Department of Health,Guys and St Thomas NHS Foundation Trust,22/10/2021,(81200) Medical Surgical Supplies & Equipment,(id:42037) Dental Services,HENRY SCHEIN,id:14538233, 831.53
Department of Health,Guys and St Thomas NHS Foundation Trust,15/10/2021,(81200) Medical Surgical Supplies & Equipment,(id:42037) Dental Services,NHS SUPPLY CHAIN (MAIDSTONE),id:14421654    , 155.05
Department of Health,Guys and St Thomas NHS Foundation Trust,22/10/2021,(81200) Medical Surgical Supplies & Equipment,(id:42007) Dental Services,HENRY SCHEIN,id:14538169, 873.24
Department of Health,Guys and St Thomas NHS Foundation Trust,22/10/2021,(81700) Lab Equipment Purchase,(id:42007) Dental Services,NHS SUPPLY CHAIN (MAIDSTONE),id:14478413    ,   9.36
Department of Health,Guys and St Thomas NHS Foundation Trust,15/10/2021,(81200) Medical Surgical Supplies & Equipment,(id:42005) Dental Services,NHS SUPPLY CHAIN (MAIDSTONE),id:14421654    ,1074.42
Department of Health,Guys and St Thomas NHS Foundation Trust,22/10/2021,(83400) Office Equipment,(id:42005) Dental Services,NHS SUPPLY CHAIN (MAIDSTONE),id:14500176,  22.52
Department of Health,Guys and St Thomas NHS Foundation Trust,15/10/2021,(83400) Office Equipment,(id:42005) Dental Services,NHS SUPPLY CHAIN (MAIDSTONE),id:14399770,  24.62
Department of Health,Guys and St Thomas NHS Foundation Trust,15/10/2021,(81100) Dressings,(id:42015) Dental Services,NHS SUPPLY CHAIN (MAIDSTONE),id:14399770  ,  20.96
Department of Health,Guys and St Thomas NHS Foundation Trust,22/10/2021,(81200) Medical Surgical Supplies & Equipment,(id:42027) Dental Services,JEWEL MANAGEMENT LTD T/A GENERAL MEDICAL,id:14530162  , 605.94
Department of Health,Guys and St Thomas NHS Foundation Trust,22/10/2021,(83400) Office Equipment,(id:42028) Dental Services,NHS SUPPLY CHAIN (MAIDSTONE),id:14500176,  74.95
Department of Health,Guys and St Thomas NHS Foundation Trust,01/10/2021,(83610) IT Costs,(id:41996) Dental Services,OFFICE DEPOT UK LTD,id:14419671  , 562.91
Department of Health,Guys and St Thomas NHS Foundation Trust,22/10/2021,(83400) Office Equipment,(id:4622420) Dental Services,NHS SUPPLY CHAIN (MAIDSTONE),id:14500176   ,  77.96
Department of Health,Guys and St Thomas NHS Foundation Trust,01/10/2021,(81200) Medical Surgical Supplies & Equipment,(id:42035) Dental Services,DENTSPLY IH LTD,id:14472614  ,1520.11
Department of Health,Guys and St Thomas NHS Foundation Trust,22/10/2021,(81200) Medical Surgical Supplies & Equipment,(id:42035) Dental Services,DENTSPLY IH LTD,id:14533474  , 886.85
Department of Health,Guys and St Thomas NHS Foundation Trust,22/10/2021,(81200) Medical Surgical Supplies & Equipment,(id:42035) Dental Services,DENTSPLY IH LTD,id:14533136  , 608.24
Department of Health,Guys and St Thomas NHS Foundation Trust,08/10/2021,(89000) Other - Training courses and conferences,(id:42035) Dental Services,PRIMARY PEOPLE LTD,id:14490674 ,5950.00
Department of Health,Guys and St Thomas NHS Foundation Trust,15/10/2021,(81200) Medical Surgical Supplies & Equipment,(id:1634433) Dental Services,QED - QUALITY ENDODONTIC DISTRIBUTORS LTD,id:14524235    , 915.18
Department of Health,Guys and St Thomas NHS Foundation Trust,15/10/2021,(81200) Medical Surgical Supplies & Equipment,(id:1634433) Dental Services,NHS SUPPLY CHAIN (MAIDSTONE),id:14399770  ,  79.53
Department of Health,Guys and St Thomas NHS Foundation Trust,15/10/2021,(81200) Medical Surgical Supplies & Equipment,(id:1634433) Dental Services,DENTSPLY LTD,id:14493594   ,  91.00
Department of Health,Guys and St Thomas NHS Foundation Trust,22/10/2021,(84500) Establishment,(id:1634433) Dental Services,WYBONE LTD,id:14558514    , 670.31
Department of Health,Guys and St Thomas NHS Foundation Trust,22/10/2021,(83400) Office Equipment,(id:1634432) Dental Services,NHS SUPPLY CHAIN (MAIDSTONE),id:14478413   ,  44.91
Department of Health,Guys and St Thomas NHS Foundation Trust,15/10/2021,(81200) Medical Surgical Supplies & Equipment,(id:1634432) Dental Services,HENRY SCHEIN,id:14487057   , 594.17
Department of Health,Guys and St Thomas NHS Foundation Trust,22/10/2021,(83400) Office Equipment,(id:1634429) Dental Services,NHS SUPPLY CHAIN (MAIDSTONE),id:14500176   , 148.22
Department of Health,Guys and St Thomas NHS Foundation Trust,22/10/2021,(83400) Office Equipment,(id:1634429) Dental Services,NHS SUPPLY CHAIN (MAIDSTONE),id:14478413   ,  65.78
Department of Health,Guys and St Thomas NHS Foundation Trust,01/10/2021,(81200) Medical Surgical Supplies & Equipment,(id:1634429) Dental Services,HENRY SCHEIN,id:14450994   , 994.40
Department of Health,Guys and St Thomas NHS Foundation Trust,08/10/2021,(81200) Medical Surgical Supplies & Equipment,(id:1634429) Dental Services,HENRY SCHEIN,id:14506543   , 572.66
Department of Health,Guys and St Thomas NHS Foundation Trust,15/10/2021,(81200) Medical Surgical Supplies & Equipment,(id:1634429) Dental Services,HENRY SCHEIN,id:14518514   , 538.78
Department of Health,Guys and St Thomas NHS Foundation Trust,15/10/2021,(81200) Medical Surgical Supplies & Equipment,(id:1634429) Dental Services,NHS SUPPLY CHAIN (MAIDSTONE),id:14441943  , 448.88
Department of Health,Guys and St Thomas NHS Foundation Trust,15/10/2021,(81200) Medical Surgical Supplies & Equipment,(id:1634429) Dental Services,DENTSPLY LTD,id:14493594   ,1800.82
Department of Health,Guys and St Thomas NHS Foundation Trust,15/10/2021,(82800) Bedding & Linen,(id:1634429) Dental Services,NHS SUPPLY CHAIN (MAIDSTONE),id:14441943    ,  80.40
Department of Health,Guys and St Thomas NHS Foundation Trust,22/10/2021,(81200) Medical Surgical Supplies & Equipment,(id:42011) Dental Services,SKILLBOND  DIRECT LTD,id:14552912 ,2320.82
Department of Health,Guys and St Thomas NHS Foundation Trust,28/10/2021,(47000) Non patient care services to other bodies,(id:2862419) Specialist Ambulatory Services,KINGS COLLEGE LONDON:03529700,id:14575134  ,    -1395.00
Department of Health,Guys and St Thomas NHS Foundation Trust,22/10/2021,(81700) Lab Equipment Purchase,(id:641456) Specialist Ambulatory Services,OXFORD NANOPORE TECHNOLOGIES LTD,id:14428534    ,4320.00
Department of Health,Guys and St Thomas NHS Foundation Trust,28/10/2021,(81700) Lab Equipment Purchase,(id:641456) Specialist Ambulatory Services,OXFORD NANOPORE TECHNOLOGIES LTD,id:14577334    ,1872.00
Department of Health,Guys and St Thomas NHS Foundation Trust,08/10/2021,(81700) Lab Equipment Purchase,(id:641456) Specialist Ambulatory Services,OXFORD NANOPORE TECHNOLOGIES LTD,id:14499035    ,4026.00
Department of Health,Guys and St Thomas NHS Foundation Trust,22/10/2021,(81200) Medical Surgical Supplies & Equipment,(id:641456) Specialist Ambulatory Services,OXFORD NANOPORE TECHNOLOGIES LTD,id:14428534    ,  48.00
Department of Health,Guys and St Thomas NHS Foundation Trust,15/10/2021,(55070) Admin & Clerical,(id:334405) Specialist Ambulatory Services,KINGS COLLEGE LONDON:03529700,id:14481876   ,7186.99
Department of Health,Guys and St Thomas NHS Foundation Trust,01/10/2021,(50562) Qualified Nursing Staff,(id:3155419) Specialist Ambulatory Services,CONTINENTAL NURSE LTD,id:14486512   ,2457.00
Department of Health,Guys and St Thomas NHS Foundation Trust,01/10/2021,(50200) Consultants,(id:42194) Specialist Ambulatory Services,KING'S COLLEGE HOSPITAL NHS FOUNDATION TRUST,id:14479595    ,    -2448.49
Department of Health,Guys and St Thomas NHS Foundation Trust,15/10/2021,(83400) Office Equipment,(id:42193) Specialist Ambulatory Services,NHS SUPPLY CHAIN (MAIDSTONE),id:14441943,  37.18
Department of Health,Guys and St Thomas NHS Foundation Trust,28/10/2021,(81000) Surgical Appliances,(id:42193) Specialist Ambulatory Services,LANGER UK LTD,id:14580259  , 408.26
Department of Health,Guys and St Thomas NHS Foundation Trust,15/10/2021,(81700) Lab Equipment Purchase,(id:42358) Specialist Ambulatory Services,NHS SUPPLY CHAIN (MAIDSTONE),id:14421654    , 803.40
Department of Health,Guys and St Thomas NHS Foundation Trust,15/10/2021,(84656) Establishment,(id:42358) Specialist Ambulatory Services,DICT8 LIMITED,id:14502448   ,3548.40
Department of Health,Guys and St Thomas NHS Foundation Trust,15/10/2021,(82800) Bedding & Linen,(id:3608419) Specialist Ambulatory Services,NHS SUPPLY CHAIN (MAIDSTONE),id:14421654    ,   6.84
Department of Health,Guys and St Thomas NHS Foundation Trust,22/10/2021,(81200) Medical Surgical Supplies & Equipment,(id:3607419) Specialist Ambulatory Services,NHS SUPPLY CHAIN (MAIDSTONE),id:14478413  ,  56.40
Department of Health,Guys and St Thomas NHS Foundation Trust,22/10/2021,(81100) Dressings,(id:3607419) Specialist Ambulatory Services,NHS SUPPLY CHAIN (MAIDSTONE),id:14500176,  27.96
Department of Health,Guys and St Thomas NHS Foundation Trust,15/10/2021,(81200) Medical Surgical Supplies & Equipment,(id:255405) Specialist Ambulatory Services,NHS SUPPLY CHAIN (MAIDSTONE),id:14441943   , 264.78
Department of Health,Guys and St Thomas NHS Foundation Trust,22/10/2021,(81100) Dressings,(id:255405) Specialist Ambulatory Services,NHS SUPPLY CHAIN (MAIDSTONE),id:14478413 , 108.00
Department of Health,Guys and St Thomas NHS Foundation Trust,22/10/2021,(81100) Dressings,(id:42094) Specialist Ambulatory Services,NHS SUPPLY CHAIN (MAIDSTONE),id:14478413  , 205.80
Department of Health,Guys and St Thomas NHS Foundation Trust,28/10/2021,(81400) Medical Surgical Supplies & Equipment,(id:42092) Specialist Ambulatory Services,ECHOSENS UK LIMITED,id:14575917   ,4400.00
Department of Health,Guys and St Thomas NHS Foundation Trust,15/10/2021,(82800) Bedding & Linen,(id:42091) Specialist Ambulatory Services,NHS SUPPLY CHAIN (MAIDSTONE),id:14441943 , 382.20
Department of Health,Guys and St Thomas NHS Foundation Trust,15/10/2021,(81700) Lab Equipment Purchase,(id:42091) Specialist Ambulatory Services,NHS SUPPLY CHAIN (MAIDSTONE),id:14441943    ,  39.31
Department of Health,Guys and St Thomas NHS Foundation Trust,22/10/2021,(82000) Provisions & Kitchens,(id:42091) Specialist Ambulatory Services,NHS SUPPLY CHAIN (MAIDSTONE),id:14500176,  15.60
Department of Health,Guys and St Thomas NHS Foundation Trust,15/10/2021,(82800) Bedding & Linen,(id:42097) Specialist Ambulatory Services,NHS SUPPLY CHAIN (MAIDSTONE),id:14441943 ,  40.20
Department of Health,Guys and St Thomas NHS Foundation Trust,22/10/2021,(82800) Bedding & Linen,(id:42097) Specialist Ambulatory Services,NHS SUPPLY CHAIN (MAIDSTONE),id:14478413 ,  62.90
Department of Health,Guys and St Thomas NHS Foundation Trust,15/10/2021,(83400) Office Equipment,(id:42097) Specialist Ambulatory Services,NHS SUPPLY CHAIN (MAIDSTONE),id:14399770,  37.54
Department of Health,Guys and St Thomas NHS Foundation Trust,22/10/2021,(83400) Office Equipment,(id:42097) Specialist Ambulatory Services,NHS SUPPLY CHAIN (MAIDSTONE),id:14500176,  19.01
Department of Health,Guys and St Thomas NHS Foundation Trust,15/10/2021,(81100) Dressings,(id:42097) Specialist Ambulatory Services,NHS SUPPLY CHAIN (MAIDSTONE),id:14399770  , 161.63
Department of Health,Guys and St Thomas NHS Foundation Trust,15/10/2021,(81200) Medical Surgical Supplies & Equipment,(id:42097) Specialist Ambulatory Services,NHS SUPPLY CHAIN (MAIDSTONE),id:14441943    , 937.51
Department of Health,Guys and St Thomas NHS Foundation Trust,15/10/2021,(82800) Bedding & Linen,(id:42079) Specialist Ambulatory Services,NHS SUPPLY CHAIN (MAIDSTONE),id:14441943 ,  61.24
Department of Health,Guys and St Thomas NHS Foundation Trust,15/10/2021,(81100) Dressings,(id:42079) Specialist Ambulatory Services,NHS SUPPLY CHAIN (MAIDSTONE),id:14399770  , 144.11
Department of Health,Guys and St Thomas NHS Foundation Trust,22/10/2021,(81700) Lab Equipment Purchase,(id:42079) Specialist Ambulatory Services,NHS SUPPLY CHAIN (MAIDSTONE),id:14500176    ,   1.36
Department of Health,Guys and St Thomas NHS Foundation Trust,22/10/2021,(81200) Medical Surgical Supplies & Equipment,(id:42079) Specialist Ambulatory Services,NHS SUPPLY CHAIN (MAIDSTONE),id:14500176    , 495.13
Department of Health,Guys and St Thomas NHS Foundation Trust,22/10/2021,(81100) Dressings,(id:42066) Specialist Ambulatory Services,NHS SUPPLY CHAIN (MAIDSTONE),id:14500176  ,   4.37
Department of Health,Guys and St Thomas NHS Foundation Trust,22/10/2021,(83400) Office Equipment,(id:42066) Specialist Ambulatory Services,NHS SUPPLY CHAIN (MAIDSTONE),id:14478413, 322.80
Department of Health,Guys and St Thomas NHS Foundation Trust,22/10/2021,(82800) Bedding & Linen,(id:42064) Specialist Ambulatory Services,NHS SUPPLY CHAIN (MAIDSTONE),id:14478413 ,  20.81
Department of Health,Guys and St Thomas NHS Foundation Trust,22/10/2021,(83400) Office Equipment,(id:42061) Specialist Ambulatory Services,NHS SUPPLY CHAIN (MAIDSTONE),id:14478413,   6.50
Department of Health,Guys and St Thomas NHS Foundation Trust,01/10/2021,(83400) Office Equipment,(id:42061) Specialist Ambulatory Services,ABSOLUTE PROOF,id:14473454    ,4134.00
Department of Health,Guys and St Thomas NHS Foundation Trust,15/10/2021,(81200) Medical Surgical Supplies & Equipment,(id:42057) Specialist Ambulatory Services,NHS SUPPLY CHAIN (MAIDSTONE),id:14441943    , 144.05
Department of Health,Guys and St Thomas NHS Foundation Trust,15/10/2021,(82800) Bedding & Linen,(id:42057) Specialist Ambulatory Services,NHS SUPPLY CHAIN (MAIDSTONE),id:14421654 ,  60.30
Department of Health,Guys and St Thomas NHS Foundation Trust,15/10/2021,(83400) Office Equipment,(id:42050) Specialist Ambulatory Services,NHS SUPPLY CHAIN (MAIDSTONE),id:14441943,  31.79
Department of Health,Guys and St Thomas NHS Foundation Trust,01/10/2021,(83500) Furniture & Fittings,(id:42050) Specialist Ambulatory Services,POSTURITE (UK) LTD,id:14486147 , 849.46
Department of Health,Guys and St Thomas NHS Foundation Trust,22/10/2021,(81225) Medical Surgical Supplies & Equipment,(id:42050) Specialist Ambulatory Services,NHS SUPPLY CHAIN (MAIDSTONE),id:14500176    ,1344.01
Department of Health,Guys and St Thomas NHS Foundation Trust,01/10/2021,(89270) Establishment,(id:42050) Specialist Ambulatory Services,SXT HEALTH CIC (WWW.SXT.ORG.UK),id:14401034,1661.50
Department of Health,Guys and St Thomas NHS Foundation Trust,01/10/2021,(89270) Establishment,(id:42050) Specialist Ambulatory Services,GLAMOX LUXONIC LIMITED,id:14478975    ,2158.90
Department of Health,Guys and St Thomas NHS Foundation Trust,15/10/2021,(81275) Medical Surgical Supplies & Equipment,(id:42050) Specialist Ambulatory Services,NHS SUPPLY CHAIN (MAIDSTONE),id:14421654    ,  80.10
Department of Health,Guys and St Thomas NHS Foundation Trust,22/10/2021,(81700) Lab Equipment Purchase,(id:42050) Specialist Ambulatory Services,NHS SUPPLY CHAIN (MAIDSTONE),id:14500176    ,  34.80
Department of Health,Guys and St Thomas NHS Foundation Trust,22/10/2021,(82000) Provisions & Kitchens,(id:42050) Specialist Ambulatory Services,NHS SUPPLY CHAIN (MAIDSTONE),id:14500176,   5.76
Department of Health,Guys and St Thomas NHS Foundation Trust,21/10/2021,(53672) Pharmacists,(id:42165) Pharmacy,PRICEWATERHOUSECOOPERS LLP,id:14555339    ,1215.06
Department of Health,Guys and St Thomas NHS Foundation Trust,22/10/2021,(83400) Office Equipment,(id:42169) Pharmacy,NHS SUPPLY CHAIN (MAIDSTONE),id:14478413  ,  21.46
Department of Health,Guys and St Thomas NHS Foundation Trust,08/10/2021,(81400) Medical Surgical Supplies & Equipment,(id:581409) Pharmacy,VALIDAIR (EURO) LTD,id:14505882    , 725.00
Department of Health,Guys and St Thomas NHS Foundation Trust,01/10/2021,(81700) Lab Equipment Purchase,(id:581409) Pharmacy,J C COMMISSIONING LTD CIS6,id:14476322  ,2650.00
Department of Health,Guys and St Thomas NHS Foundation Trust,01/10/2021,(83400) Office Equipment,(id:581409) Pharmacy,DURBIN PLC,id:14486093    ,1551.39
Department of Health,Guys and St Thomas NHS Foundation Trust,01/10/2021,(83400) Office Equipment,(id:581409) Pharmacy,NITRITEX LTD,id:14471054  , 775.54
Department of Health,Guys and St Thomas NHS Foundation Trust,28/10/2021,(54052) Technical Officers,(id:581409) Pharmacy,PRICEWATERHOUSECOOPERS LLP,id:14585494 ,3031.40
Department of Health,Guys and St Thomas NHS Foundation Trust,12/10/2021,(54052) Technical Officers,(id:581409) Pharmacy,PRICEWATERHOUSECOOPERS LLP,id:14525494 ,1020.30
Department of Health,Guys and St Thomas NHS Foundation Trust,28/10/2021,(53662) Pharmacists,(id:581409) Pharmacy,PRICEWATERHOUSECOOPERS LLP,id:14585494   , 439.19
Department of Health,Guys and St Thomas NHS Foundation Trust,12/10/2021,(53662) Pharmacists,(id:581409) Pharmacy,PRICEWATERHOUSECOOPERS LLP,id:14525494   ,1134.20
Department of Health,Guys and St Thomas NHS Foundation Trust,12/10/2021,(53662) Pharmacists,(id:581409) Pharmacy,PRICEWATERHOUSECOOPERS LLP,id:14526636   , 439.19
Department of Health,Guys and St Thomas NHS Foundation Trust,28/10/2021,(84500) Establishment,(id:42159) Pharmacy,CV LABELS LTD,id:14574034, 766.80
Department of Health,Guys and St Thomas NHS Foundation Trust,12/10/2021,(53672) Pharmacists,(id:42159) Pharmacy,PRICEWATERHOUSECOOPERS LLP,id:14525494    ,2311.85
Department of Health,Guys and St Thomas NHS Foundation Trust,22/10/2021,(81200) Medical Surgical Supplies & Equipment,(id:42159) Pharmacy,WICKHAM LABORATORIES LTD,id:14500434,5317.50
Department of Health,Guys and St Thomas NHS Foundation Trust,15/10/2021,(81200) Medical Surgical Supplies & Equipment,(id:42159) Pharmacy,NHS SUPPLY CHAIN (MAIDSTONE),id:14441943 , 405.52
Department of Health,Guys and St Thomas NHS Foundation Trust,15/10/2021,(81400) Medical Surgical Supplies & Equipment,(id:42159) Pharmacy,MEDICAL PIPELINE SERVICES LTD,id:14526834,1008.00
Department of Health,Guys and St Thomas NHS Foundation Trust,01/10/2021,(84400) Transport,(id:42159) Pharmacy,POLAR SPEED DISTRIBUTION LTD,id:14445454    , 810.34
Department of Health,Guys and St Thomas NHS Foundation Trust,28/10/2021,(54052) Technical Officers,(id:42159) Pharmacy,PRICEWATERHOUSECOOPERS LLP,id:14585494  ,1020.31
Department of Health,Guys and St Thomas NHS Foundation Trust,21/10/2021,(54052) Technical Officers,(id:42159) Pharmacy,PRICEWATERHOUSECOOPERS LLP,id:14555339  ,1020.28
Department of Health,Guys and St Thomas NHS Foundation Trust,28/10/2021,(83880) Building & Engineering,(id:42159) Pharmacy,CLEAN ROOM CONSTRUCTION LTD,id:14553834  ,   109853.00
Department of Health,Guys and St Thomas NHS Foundation Trust,22/10/2021,(55102) Admin & Clerical,(id:42159) Pharmacy,HYPER RECRUITMENT SOLUTIONS LTD,id:14559572    ,1012.50
Department of Health,Guys and St Thomas NHS Foundation Trust,22/10/2021,(55122) Admin & Clerical,(id:42159) Pharmacy,HYPER RECRUITMENT SOLUTIONS LTD,id:14559497    ,3408.00
Department of Health,Guys and St Thomas NHS Foundation Trust,22/10/2021,(55122) Admin & Clerical,(id:42159) Pharmacy,HYPER RECRUITMENT SOLUTIONS LTD,id:14559546    ,5964.00
Department of Health,Guys and St Thomas NHS Foundation Trust,28/10/2021,(81275) Medical Surgical Supplies & Equipment,(id:42159) Pharmacy,SCI-TEK INSTRUMENTS LTD,id:14575360 , 838.92
Department of Health,Guys and St Thomas NHS Foundation Trust,28/10/2021,(81275) Medical Surgical Supplies & Equipment,(id:42159) Pharmacy,SCI-TEK INSTRUMENTS LTD,id:14452296 , 527.88
Department of Health,Guys and St Thomas NHS Foundation Trust,15/10/2021,(84500) Establishment,(id:42160) Pharmacy,NHS SUPPLY CHAIN (MAIDSTONE),id:14441943, 454.20
Department of Health,Guys and St Thomas NHS Foundation Trust,12/10/2021,(53672) Pharmacists,(id:42160) Pharmacy,PRICEWATERHOUSECOOPERS LLP,id:14525494    , 571.03
Department of Health,Guys and St Thomas NHS Foundation Trust,12/10/2021,(53672) Pharmacists,(id:42160) Pharmacy,PRICEWATERHOUSECOOPERS LLP,id:14526636    , 887.83
Department of Health,Guys and St Thomas NHS Foundation Trust,12/10/2021,(53632) Pharmacists,(id:42160) Pharmacy,PRICEWATERHOUSECOOPERS LLP,id:14525494    ,1297.83
Department of Health,Guys and St Thomas NHS Foundation Trust,15/10/2021,(83400) Office Equipment,(id:42160) Pharmacy,NHS SUPPLY CHAIN (MAIDSTONE),id:14421654  ,  21.46
Department of Health,Guys and St Thomas NHS Foundation Trust,28/10/2021,(53672) Pharmacists,(id:42164) Pharmacy,PRICEWATERHOUSECOOPERS LLP,id:14585494    ,4112.57
Department of Health,Guys and St Thomas NHS Foundation Trust,12/10/2021,(53672) Pharmacists,(id:42164) Pharmacy,PRICEWATERHOUSECOOPERS LLP,id:14525494    ,6294.67
Department of Health,Guys and St Thomas NHS Foundation Trust,08/10/2021,(84655) Establishment,(id:478416) Medical Specialties,LANGUAGE LINE LTD,id:14507177    ,    25057.81
Department of Health,Guys and St Thomas NHS Foundation Trust,15/10/2021,(82800) Bedding & Linen,(id:42217) Medical Specialties,NHS SUPPLY CHAIN (MAIDSTONE),id:14441943  ,  15.74
Department of Health,Guys and St Thomas NHS Foundation Trust,12/10/2021,(51262) Dieticians,(id:42251) Medical Specialties,PRICEWATERHOUSECOOPERS LLP,id:14525494    ,1134.20
Department of Health,Guys and St Thomas NHS Foundation Trust,21/10/2021,(51262) Dieticians,(id:42251) Medical Specialties,PRICEWATERHOUSECOOPERS LLP,id:14555339    ,3357.14
Department of Health,Guys and St Thomas NHS Foundation Trust,01/10/2021,(50200) Consultants,(id:42223) Medical Specialties,KINGS COLLEGE LONDON:03529700,id:14485996,8704.91
Department of Health,Guys and St Thomas NHS Foundation Trust,01/10/2021,(81200) Medical Surgical Supplies & Equipment,(id:42223) Medical Specialties,MAINLINE INSTRUMENTS LTD,id:14477734    , 972.00
Department of Health,Guys and St Thomas NHS Foundation Trust,22/10/2021,(81200) Medical Surgical Supplies & Equipment,(id:42223) Medical Specialties,MAINLINE INSTRUMENTS LTD,id:14546615    , 972.00
Department of Health,Guys and St Thomas NHS Foundation Trust,22/10/2021,(81200) Medical Surgical Supplies & Equipment,(id:42223) Medical Specialties,EDAN MEDICAL (UK) LTD,id:14555414  ,2113.68
Department of Health,Guys and St Thomas NHS Foundation Trust,28/10/2021,(89600) Non-Healthcare from other NHS bodies,(id:42223) Medical Specialties,NHS BLOOD AND TRANSPLANT,id:14540234,1353.72
Department of Health,Guys and St Thomas NHS Foundation Trust,15/10/2021,(81100) Dressings,(id:42223) Medical Specialties,NHS SUPPLY CHAIN (MAIDSTONE),id:14441943   ,  52.10
Department of Health,Guys and St Thomas NHS Foundation Trust,28/10/2021,(81200) Medical Surgical Supplies & Equipment,(id:42221) Medical Specialties,ALCON EYE CARE UK LIMITED,id:14577238   ,3010.80
Department of Health,Guys and St Thomas NHS Foundation Trust,28/10/2021,(81200) Medical Surgical Supplies & Equipment,(id:42221) Medical Specialties,ALCON EYE CARE UK LIMITED,id:14578134   ,1134.00
Department of Health,Guys and St Thomas NHS Foundation Trust,28/10/2021,(81200) Medical Surgical Supplies & Equipment,(id:42221) Medical Specialties,ALCON EYE CARE UK LIMITED,id:14578395   ,3024.00
Department of Health,Guys and St Thomas NHS Foundation Trust,28/10/2021,(81200) Medical Surgical Supplies & Equipment,(id:42221) Medical Specialties,ALCON EYE CARE UK LIMITED,id:14576683   ,3024.00
Department of Health,Guys and St Thomas NHS Foundation Trust,28/10/2021,(81200) Medical Surgical Supplies & Equipment,(id:42221) Medical Specialties,ALCON EYE CARE UK LIMITED,id:14578396   ,4032.00
Department of Health,Guys and St Thomas NHS Foundation Trust,28/10/2021,(81200) Medical Surgical Supplies & Equipment,(id:42221) Medical Specialties,ALCON EYE CARE UK LIMITED,id:14577374   ,6048.00
Department of Health,Guys and St Thomas NHS Foundation Trust,28/10/2021,(81200) Medical Surgical Supplies & Equipment,(id:42221) Medical Specialties,ALCON EYE CARE UK LIMITED,id:14579507   ,2016.00
Department of Health,Guys and St Thomas NHS Foundation Trust,28/10/2021,(81200) Medical Surgical Supplies & Equipment,(id:42221) Medical Specialties,ALCON EYE CARE UK LIMITED,id:14577956   ,1674.00
Department of Health,Guys and St Thomas NHS Foundation Trust,28/10/2021,(81200) Medical Surgical Supplies & Equipment,(id:42221) Medical Specialties,ALCON EYE CARE UK LIMITED,id:14576385   , 756.00
Department of Health,Guys and St Thomas NHS Foundation Trust,15/10/2021,(81200) Medical Surgical Supplies & Equipment,(id:42221) Medical Specialties,ALCON EYE CARE UK LIMITED,id:14482367   ,3750.00
Department of Health,Guys and St Thomas NHS Foundation Trust,15/10/2021,(81200) Medical Surgical Supplies & Equipment,(id:42221) Medical Specialties,BEAVER-VISITEC INTERNATIONAL (SALES) LTD,id:14491194   , 720.00
Department of Health,Guys and St Thomas NHS Foundation Trust,22/10/2021,(81200) Medical Surgical Supplies & Equipment,(id:42221) Medical Specialties,NHS SUPPLY CHAIN (MAIDSTONE),id:14500176,2592.23
Department of Health,Guys and St Thomas NHS Foundation Trust,22/10/2021,(81200) Medical Surgical Supplies & Equipment,(id:42221) Medical Specialties,CORE SURGICAL LTD,id:14555536 ,2259.60
Department of Health,Guys and St Thomas NHS Foundation Trust,08/10/2021,(81200) Medical Surgical Supplies & Equipment,(id:42221) Medical Specialties,ALCON EYE CARE UK LIMITED,id:14488536   ,2937.60
Department of Health,Guys and St Thomas NHS Foundation Trust,22/10/2021,(83400) Office Equipment,(id:42213) Medical Specialties,NHS SUPPLY CHAIN (MAIDSTONE),id:14500176 ,  14.08
Department of Health,Guys and St Thomas NHS Foundation Trust,01/10/2021,(80010) Drug Costs,(id:42213) Medical Specialties,CHRYSTAL CONSULTING LTD,id:14475694  , 882.00
Department of Health,Guys and St Thomas NHS Foundation Trust,08/10/2021,(81000) Surgical Appliances,(id:42213) Medical Specialties,TALAR MADE ORTHOTICS LTD,id:14502381  , 170.29
Department of Health,Guys and St Thomas NHS Foundation Trust,08/10/2021,(81000) Surgical Appliances,(id:42213) Medical Specialties,TALAR MADE ORTHOTICS LTD,id:14502402  , 663.00
Department of Health,Guys and St Thomas NHS Foundation Trust,28/10/2021,(81000) Surgical Appliances,(id:42209) Medical Specialties,LANGER UK LTD,id:14580259   , 112.22
Department of Health,Guys and St Thomas NHS Foundation Trust,01/10/2021,(81200) Medical Surgical Supplies & Equipment,(id:42208) Medical Specialties,DEXCOM INTERNATIONAL LTD,id:14459694    , 600.00
Department of Health,Guys and St Thomas NHS Foundation Trust,08/10/2021,(81200) Medical Surgical Supplies & Equipment,(id:42208) Medical Specialties,MEDTRONIC LTD,id:14420981,1016.17
Department of Health,Guys and St Thomas NHS Foundation Trust,08/10/2021,(81200) Medical Surgical Supplies & Equipment,(id:42208) Medical Specialties,ROCHE DIABETES CARE LIMITED,id:14370199 , 775.39
Department of Health,Guys and St Thomas NHS Foundation Trust,08/10/2021,(81200) Medical Surgical Supplies & Equipment,(id:42208) Medical Specialties,MEDTRONIC LTD,id:14374351, 577.80
Department of Health,Guys and St Thomas NHS Foundation Trust,08/10/2021,(81200) Medical Surgical Supplies & Equipment,(id:42208) Medical Specialties,DEXCOM INTERNATIONAL LTD,id:14454154    , 600.00
Department of Health,Guys and St Thomas NHS Foundation Trust,08/10/2021,(81200) Medical Surgical Supplies & Equipment,(id:42208) Medical Specialties,DEXCOM INTERNATIONAL LTD,id:14459614    , 600.00
Department of Health,Guys and St Thomas NHS Foundation Trust,08/10/2021,(81200) Medical Surgical Supplies & Equipment,(id:42208) Medical Specialties,DEXCOM INTERNATIONAL LTD,id:14459574    , 600.00
Department of Health,Guys and St Thomas NHS Foundation Trust,08/10/2021,(81200) Medical Surgical Supplies & Equipment,(id:42208) Medical Specialties,DEXCOM INTERNATIONAL LTD,id:14459414    , 600.00
Department of Health,Guys and St Thomas NHS Foundation Trust,08/10/2021,(81200) Medical Surgical Supplies & Equipment,(id:42208) Medical Specialties,DEXCOM INTERNATIONAL LTD,id:14459454    , 600.00
Department of Health,Guys and St Thomas NHS Foundation Trust,08/10/2021,(81200) Medical Surgical Supplies & Equipment,(id:42208) Medical Specialties,DEXCOM INTERNATIONAL LTD,id:14459494    , 600.00
Department of Health,Guys and St Thomas NHS Foundation Trust,08/10/2021,(81200) Medical Surgical Supplies & Equipment,(id:42208) Medical Specialties,DEXCOM INTERNATIONAL LTD,id:14458974    , 600.00
Department of Health,Guys and St Thomas NHS Foundation Trust,08/10/2021,(81200) Medical Surgical Supplies & Equipment,(id:42208) Medical Specialties,DEXCOM INTERNATIONAL LTD,id:14459034    , 600.00
Department of Health,Guys and St Thomas NHS Foundation Trust,08/10/2021,(81200) Medical Surgical Supplies & Equipment,(id:42208) Medical Specialties,INSULET INTERNATIONAL LTD,id:14482654   , 706.32
Department of Health,Guys and St Thomas NHS Foundation Trust,08/10/2021,(81200) Medical Surgical Supplies & Equipment,(id:42208) Medical Specialties,INSULET INTERNATIONAL LTD,id:14482674   , 706.32
Department of Health,Guys and St Thomas NHS Foundation Trust,08/10/2021,(81200) Medical Surgical Supplies & Equipment,(id:42208) Medical Specialties,INSULET INTERNATIONAL LTD,id:14468514   , 706.32
Department of Health,Guys and St Thomas NHS Foundation Trust,08/10/2021,(81200) Medical Surgical Supplies & Equipment,(id:42208) Medical Specialties,INSULET INTERNATIONAL LTD,id:14482403   , 712.08
Department of Health,Guys and St Thomas NHS Foundation Trust,08/10/2021,(81200) Medical Surgical Supplies & Equipment,(id:42208) Medical Specialties,INSULET INTERNATIONAL LTD,id:14482576   , 712.08
Department of Health,Guys and St Thomas NHS Foundation Trust,08/10/2021,(81200) Medical Surgical Supplies & Equipment,(id:42208) Medical Specialties,INSULET INTERNATIONAL LTD,id:14482587   , 712.08
Department of Health,Guys and St Thomas NHS Foundation Trust,08/10/2021,(81200) Medical Surgical Supplies & Equipment,(id:42208) Medical Specialties,INSULET INTERNATIONAL LTD,id:14482634   , 712.08
Department of Health,Guys and St Thomas NHS Foundation Trust,08/10/2021,(81200) Medical Surgical Supplies & Equipment,(id:42208) Medical Specialties,INSULET INTERNATIONAL LTD,id:14482375   , 712.08
Department of Health,Guys and St Thomas NHS Foundation Trust,08/10/2021,(81200) Medical Surgical Supplies & Equipment,(id:42208) Medical Specialties,INSULET INTERNATIONAL LTD,id:14482525   , 712.08
Department of Health,Guys and St Thomas NHS Foundation Trust,08/10/2021,(81200) Medical Surgical Supplies & Equipment,(id:42208) Medical Specialties,INSULET INTERNATIONAL LTD,id:14416796   , 712.08
Department of Health,Guys and St Thomas NHS Foundation Trust,08/10/2021,(81200) Medical Surgical Supplies & Equipment,(id:42208) Medical Specialties,INSULET INTERNATIONAL LTD,id:14416800   , 712.08
Department of Health,Guys and St Thomas NHS Foundation Trust,08/10/2021,(81200) Medical Surgical Supplies & Equipment,(id:42208) Medical Specialties,INSULET INTERNATIONAL LTD,id:14467874   , 712.08
Department of Health,Guys and St Thomas NHS Foundation Trust,08/10/2021,(81200) Medical Surgical Supplies & Equipment,(id:42208) Medical Specialties,INSULET INTERNATIONAL LTD,id:14416814   , 712.08
Department of Health,Guys and St Thomas NHS Foundation Trust,08/10/2021,(81200) Medical Surgical Supplies & Equipment,(id:42208) Medical Specialties,INSULET INTERNATIONAL LTD,id:14416835   , 712.08
Department of Health,Guys and St Thomas NHS Foundation Trust,08/10/2021,(81200) Medical Surgical Supplies & Equipment,(id:42208) Medical Specialties,INSULET INTERNATIONAL LTD,id:14416836   , 712.08
Department of Health,Guys and St Thomas NHS Foundation Trust,08/10/2021,(81200) Medical Surgical Supplies & Equipment,(id:42208) Medical Specialties,INSULET INTERNATIONAL LTD,id:14482402   , 712.08
Department of Health,Guys and St Thomas NHS Foundation Trust,08/10/2021,(81200) Medical Surgical Supplies & Equipment,(id:42208) Medical Specialties,MEDTRONIC LTD,id:14447604, 786.10
Department of Health,Guys and St Thomas NHS Foundation Trust,08/10/2021,(81200) Medical Surgical Supplies & Equipment,(id:42208) Medical Specialties,INSULET INTERNATIONAL LTD,id:14456913   , 928.74
Department of Health,Guys and St Thomas NHS Foundation Trust,15/10/2021,(81200) Medical Surgical Supplies & Equipment,(id:42208) Medical Specialties,AIR LIQUIDE (HOMECARE) LTD,id:14532867  ,1656.00
Department of Health,Guys and St Thomas NHS Foundation Trust,15/10/2021,(81200) Medical Surgical Supplies & Equipment,(id:42208) Medical Specialties,INSULET INTERNATIONAL LTD,id:14532714   , 928.74
Department of Health,Guys and St Thomas NHS Foundation Trust,15/10/2021,(81200) Medical Surgical Supplies & Equipment,(id:42208) Medical Specialties,INSULET INTERNATIONAL LTD,id:14531834   , 706.32
Department of Health,Guys and St Thomas NHS Foundation Trust,15/10/2021,(81200) Medical Surgical Supplies & Equipment,(id:42208) Medical Specialties,INSULET INTERNATIONAL LTD,id:14532641   , 706.32
Department of Health,Guys and St Thomas NHS Foundation Trust,15/10/2021,(81200) Medical Surgical Supplies & Equipment,(id:42208) Medical Specialties,INSULET INTERNATIONAL LTD,id:14500142   , 706.32
Department of Health,Guys and St Thomas NHS Foundation Trust,15/10/2021,(81200) Medical Surgical Supplies & Equipment,(id:42208) Medical Specialties,INSULET INTERNATIONAL LTD,id:14532628   , 706.32
Department of Health,Guys and St Thomas NHS Foundation Trust,15/10/2021,(81200) Medical Surgical Supplies & Equipment,(id:42208) Medical Specialties,INSULET INTERNATIONAL LTD,id:14531817   , 712.08
Department of Health,Guys and St Thomas NHS Foundation Trust,15/10/2021,(81200) Medical Surgical Supplies & Equipment,(id:42208) Medical Specialties,INSULET INTERNATIONAL LTD,id:14500154   , 712.08
Department of Health,Guys and St Thomas NHS Foundation Trust,15/10/2021,(81200) Medical Surgical Supplies & Equipment,(id:42208) Medical Specialties,INSULET INTERNATIONAL LTD,id:14500034   , 712.08
Department of Health,Guys and St Thomas NHS Foundation Trust,15/10/2021,(81200) Medical Surgical Supplies & Equipment,(id:42208) Medical Specialties,INSULET INTERNATIONAL LTD,id:14532647   , 712.08
Department of Health,Guys and St Thomas NHS Foundation Trust,15/10/2021,(81200) Medical Surgical Supplies & Equipment,(id:42208) Medical Specialties,INSULET INTERNATIONAL LTD,id:14532556   , 712.08
Department of Health,Guys and St Thomas NHS Foundation Trust,15/10/2021,(81200) Medical Surgical Supplies & Equipment,(id:42208) Medical Specialties,INSULET INTERNATIONAL LTD,id:14532632   , 712.08
Department of Health,Guys and St Thomas NHS Foundation Trust,15/10/2021,(81200) Medical Surgical Supplies & Equipment,(id:42208) Medical Specialties,INSULET INTERNATIONAL LTD,id:14532622   , 712.08
Department of Health,Guys and St Thomas NHS Foundation Trust,08/10/2021,(81200) Medical Surgical Supplies & Equipment,(id:42208) Medical Specialties,ROCHE DIABETES CARE LIMITED,id:14499704 ,2994.00
Department of Health,Guys and St Thomas NHS Foundation Trust,22/10/2021,(81200) Medical Surgical Supplies & Equipment,(id:42208) Medical Specialties,MEDTRONIC LTD,id:14553734,3240.00
Department of Health,Guys and St Thomas NHS Foundation Trust,22/10/2021,(81200) Medical Surgical Supplies & Equipment,(id:42208) Medical Specialties,INSULET INTERNATIONAL LTD,id:14520614   , 706.32
Department of Health,Guys and St Thomas NHS Foundation Trust,28/10/2021,(81200) Medical Surgical Supplies & Equipment,(id:42208) Medical Specialties,DEXCOM INTERNATIONAL LTD,id:14538279    , 600.00
Department of Health,Guys and St Thomas NHS Foundation Trust,28/10/2021,(81200) Medical Surgical Supplies & Equipment,(id:42208) Medical Specialties,DEXCOM INTERNATIONAL LTD,id:14538337    , 600.00
Department of Health,Guys and St Thomas NHS Foundation Trust,28/10/2021,(81200) Medical Surgical Supplies & Equipment,(id:42208) Medical Specialties,DEXCOM INTERNATIONAL LTD,id:14538322    , 600.00
Department of Health,Guys and St Thomas NHS Foundation Trust,15/10/2021,(50200) Consultants,(id:42208) Medical Specialties,KINGS COLLEGE LONDON:03529700,id:14482092,1511.29
Department of Health,Guys and St Thomas NHS Foundation Trust,01/10/2021,(81400) Medical Surgical Supplies & Equipment,(id:42206) Medical Specialties,OPTIMA MEDICAL LTD,id:14331623,1950.00
Department of Health,Guys and St Thomas NHS Foundation Trust,15/10/2021,(82000) Provisions & Kitchens,(id:42204) Medical Specialties,NHS SUPPLY CHAIN (MAIDSTONE),id:14421654 ,   9.22
Department of Health,Guys and St Thomas NHS Foundation Trust,22/10/2021,(83400) Office Equipment,(id:41937) Medical Specialties,NHS SUPPLY CHAIN (MAIDSTONE),id:14500176 ,   2.12
Department of Health,Guys and St Thomas NHS Foundation Trust,22/10/2021,(81200) Medical Surgical Supplies & Equipment,(id:41937) Medical Specialties,NHS SUPPLY CHAIN (MAIDSTONE),id:14478413,   316901.54
Department of Health,Guys and St Thomas NHS Foundation Trust,15/10/2021,(81100) Dressings,(id:41937) Medical Specialties,NHS SUPPLY CHAIN (MAIDSTONE),id:14441943   ,   6.86
Department of Health,Guys and St Thomas NHS Foundation Trust,22/10/2021,(82800) Bedding & Linen,(id:41937) Medical Specialties,NHS SUPPLY CHAIN (MAIDSTONE),id:14478413  , 106.97
Department of Health,Guys and St Thomas NHS Foundation Trust,21/10/2021,(52062) Radiographers,(id:41937) Medical Specialties,PRICEWATERHOUSECOOPERS LLP,id:14555339 , 506.87
Department of Health,Guys and St Thomas NHS Foundation Trust,15/10/2021,(81225) Medical Surgical Supplies & Equipment,(id:41937) Medical Specialties,NHS SUPPLY CHAIN (MAIDSTONE),id:14441943,   8.10
Department of Health,Guys and St Thomas NHS Foundation Trust,15/10/2021,(81700) Lab Equipment Purchase,(id:41937) Medical Specialties,NHS SUPPLY CHAIN (MAIDSTONE),id:14399770,  56.68
Department of Health,Guys and St Thomas NHS Foundation Trust,12/10/2021,(53072) Speech Therapists,(id:184406) Therapies and Rehabilitation,PRICEWATERHOUSECOOPERS LLP,id:14525494  ,2870.53
Department of Health,Guys and St Thomas NHS Foundation Trust,08/10/2021,(83500) Furniture & Fittings,(id:42232) Therapies and Rehabilitation,TECHNIBLINDS LTD,id:14492694, 943.51
Department of Health,Guys and St Thomas NHS Foundation Trust,22/10/2021,(81200) Medical Surgical Supplies & Equipment,(id:42232) Therapies and Rehabilitation,NHS SUPPLY CHAIN (MAIDSTONE),id:14478413 ,1223.40
Department of Health,Guys and St Thomas NHS Foundation Trust,15/10/2021,(82800) Bedding & Linen,(id:42230) Therapies and Rehabilitation,NHS SUPPLY CHAIN (MAIDSTONE),id:14421654   ,  60.30
Department of Health,Guys and St Thomas NHS Foundation Trust,22/10/2021,(89570) Other – Other Operating Expenditure,(id:2031419) Therapies and Rehabilitation,KING'S COLLEGE HOSPITAL NHS FOUNDATION TRUST,id:14182894    ,    20784.00
Department of Health,Guys and St Thomas NHS Foundation Trust,22/10/2021,(89595) Non-Healthcare from Foundation Trusts,(id:2031419) Therapies and Rehabilitation,KING'S COLLEGE HOSPITAL NHS FOUNDATION TRUST,id:14527734   ,    20784.00
Department of Health,Guys and St Thomas NHS Foundation Trust,22/10/2021,(81225) Medical Surgical Supplies & Equipment,(id:42239) Therapies and Rehabilitation,NHS SUPPLY CHAIN (MAIDSTONE),id:14500176 ,  22.20
Department of Health,Guys and St Thomas NHS Foundation Trust,15/10/2021,(81225) Medical Surgical Supplies & Equipment,(id:42239) Therapies and Rehabilitation,NHS SUPPLY CHAIN (MAIDSTONE),id:14421654 ,  44.40
Department of Health,Guys and St Thomas NHS Foundation Trust,15/10/2021,(81100) Dressings,(id:590566) Therapies and Rehabilitation,NHS SUPPLY CHAIN (MAIDSTONE),id:14399770   , 148.31
Department of Health,Guys and St Thomas NHS Foundation Trust,22/10/2021,(81100) Dressings,(id:590490) Therapies and Rehabilitation,BAILEY INSTRUMENTS LIMITED,id:14538282, 972.00
Department of Health,Guys and St Thomas NHS Foundation Trust,22/10/2021,(81100) Dressings,(id:590490) Therapies and Rehabilitation,BAILEY INSTRUMENTS LIMITED,id:14538287, 684.00
Department of Health,Guys and St Thomas NHS Foundation Trust,15/10/2021,(81100) Dressings,(id:590490) Therapies and Rehabilitation,BAILEY INSTRUMENTS LIMITED,id:14510838, 924.00
Department of Health,Guys and St Thomas NHS Foundation Trust,22/10/2021,(83610) IT Costs,(id:590500) Therapies and Rehabilitation,MOUNTS & MORE LTD,id:14551208, 859.20
Department of Health,Guys and St Thomas NHS Foundation Trust,01/10/2021,(83610) IT Costs,(id:590500) Therapies and Rehabilitation,CBC COMPUTER SYSTEMS LTD,id:14465434   ,2150.00
Department of Health,Guys and St Thomas NHS Foundation Trust,08/10/2021,(81200) Medical Surgical Supplies & Equipment,(id:590499) Therapies and Rehabilitation,OTTO BOCK HEALTHCARE:70000500,id:14482450    ,1605.60
Department of Health,Guys and St Thomas NHS Foundation Trust,01/10/2021,(81200) Medical Surgical Supplies & Equipment,(id:590499) Therapies and Rehabilitation,ENDYNAMICS LTD,id:14445412    ,2332.80
Department of Health,Guys and St Thomas NHS Foundation Trust,08/10/2021,(81225) Medical Surgical Supplies & Equipment,(id:590499) Therapies and Rehabilitation,SUMED INTERNATIONAL (UK) LIMITED,id:14501314 , 780.00
Department of Health,Guys and St Thomas NHS Foundation Trust,08/10/2021,(81225) Medical Surgical Supplies & Equipment,(id:590499) Therapies and Rehabilitation,QBITUS PRODUCTS LTD,id:14478495    ,1478.82
Department of Health,Guys and St Thomas NHS Foundation Trust,01/10/2021,(81225) Medical Surgical Supplies & Equipment,(id:590499) Therapies and Rehabilitation,CUSTOMIZED COVERS,id:14442845 , 622.20
Department of Health,Guys and St Thomas NHS Foundation Trust,15/10/2021,(81225) Medical Surgical Supplies & Equipment,(id:590499) Therapies and Rehabilitation,QBITUS PRODUCTS LTD,id:14487481    , 967.14
Department of Health,Guys and St Thomas NHS Foundation Trust,01/10/2021,(81225) Medical Surgical Supplies & Equipment,(id:590498) Therapies and Rehabilitation,THUASNE UK LTD,id:14445681    ,    10188.00
Department of Health,Guys and St Thomas NHS Foundation Trust,08/10/2021,(81225) Medical Surgical Supplies & Equipment,(id:590498) Therapies and Rehabilitation,JANE SAUNDERS & MANNING LTD,id:14479762 , 500.46
Department of Health,Guys and St Thomas NHS Foundation Trust,08/10/2021,(81225) Medical Surgical Supplies & Equipment,(id:590498) Therapies and Rehabilitation,MEDI UK LTD,id:14481974  ,1032.08
Department of Health,Guys and St Thomas NHS Foundation Trust,22/10/2021,(86300) Healthcare from non-NHS bodies,(id:590497) Therapies and Rehabilitation,OPCARE LTD,id:14543214,    25500.00
Department of Health,Guys and St Thomas NHS Foundation Trust,15/10/2021,(82800) Bedding & Linen,(id:590496) Therapies and Rehabilitation,NHS SUPPLY CHAIN (MAIDSTONE),id:14441943  ,  40.20
Department of Health,Guys and St Thomas NHS Foundation Trust,22/10/2021,(81225) Medical Surgical Supplies & Equipment,(id:42242) Therapies and Rehabilitation,BROWNS MORE HAIR NOW LIMITED,id:14510837 ,5864.27
Department of Health,Guys and St Thomas NHS Foundation Trust,15/10/2021,(82800) Bedding & Linen,(id:1042419) Therapies and Rehabilitation,NHS SUPPLY CHAIN (MAIDSTONE),id:14421654 ,  12.72
Department of Health,Guys and St Thomas NHS Foundation Trust,15/10/2021,(81200) Medical Surgical Supplies & Equipment,(id:1042419) Therapies and Rehabilitation,NHS SUPPLY CHAIN (MAIDSTONE),id:14421654    ,  25.24
Department of Health,Guys and St Thomas NHS Foundation Trust,22/10/2021,(83500) Furniture & Fittings,(id:1042419) Therapies and Rehabilitation,NHS SUPPLY CHAIN (MAIDSTONE),id:14500176 , 215.04
Department of Health,Guys and St Thomas NHS Foundation Trust,28/10/2021,(52072) Radiographers,(id:42368) Clinical Imaging & Med Physics,PRICEWATERHOUSECOOPERS LLP,id:14585494,    11686.46
Department of Health,Guys and St Thomas NHS Foundation Trust,12/10/2021,(52072) Radiographers,(id:42368) Clinical Imaging & Med Physics,PRICEWATERHOUSECOOPERS LLP,id:14526636,9229.99
Department of Health,Guys and St Thomas NHS Foundation Trust,28/10/2021,(52062) Radiographers,(id:42368) Clinical Imaging & Med Physics,PRICEWATERHOUSECOOPERS LLP,id:14585494,2623.98
Department of Health,Guys and St Thomas NHS Foundation Trust,22/10/2021,(82800) Bedding & Linen,(id:42367) Clinical Imaging & Med Physics,NHS SUPPLY CHAIN (MAIDSTONE),id:14500176 , 309.10
Department of Health,Guys and St Thomas NHS Foundation Trust,22/10/2021,(81100) Dressings,(id:42367) Clinical Imaging & Med Physics,NHS SUPPLY CHAIN (MAIDSTONE),id:14478413  , 358.60
Department of Health,Guys and St Thomas NHS Foundation Trust,22/10/2021,(81255) Medical Surgical Supplies & Equipment,(id:42367) Clinical Imaging & Med Physics,NHS SUPPLY CHAIN (MAIDSTONE),id:14478413    ,   3.12
Department of Health,Guys and St Thomas NHS Foundation Trust,01/10/2021,(81200) Medical Surgical Supplies & Equipment,(id:42367) Clinical Imaging & Med Physics,COOK UK LTD,id:14423059 ,1014.00
Department of Health,Guys and St Thomas NHS Foundation Trust,01/10/2021,(81200) Medical Surgical Supplies & Equipment,(id:42367) Clinical Imaging & Med Physics,COOK UK LTD,id:14421202 ,4116.00
Department of Health,Guys and St Thomas NHS Foundation Trust,01/10/2021,(81200) Medical Surgical Supplies & Equipment,(id:42367) Clinical Imaging & Med Physics,VASCULAR PERSPECTIVES LTD,id:14470673  , 570.00
Department of Health,Guys and St Thomas NHS Foundation Trust,15/10/2021,(81200) Medical Surgical Supplies & Equipment,(id:42367) Clinical Imaging & Med Physics,BOSTON SCIENTIFIC LTD,id:14457190 , 542.40
Department of Health,Guys and St Thomas NHS Foundation Trust,15/10/2021,(81200) Medical Surgical Supplies & Equipment,(id:42367) Clinical Imaging & Med Physics,TERUMO UK LTD,id:14514854    ,1080.00
Department of Health,Guys and St Thomas NHS Foundation Trust,22/10/2021,(81200) Medical Surgical Supplies & Equipment,(id:42367) Clinical Imaging & Med Physics,BOSTON SCIENTIFIC LTD,id:14553039 ,2238.00
Department of Health,Guys and St Thomas NHS Foundation Trust,28/10/2021,(81200) Medical Surgical Supplies & Equipment,(id:42367) Clinical Imaging & Med Physics,MEDTRONIC LTD,id:14513338    ,1560.00
Department of Health,Guys and St Thomas NHS Foundation Trust,28/10/2021,(81200) Medical Surgical Supplies & Equipment,(id:42367) Clinical Imaging & Med Physics,VYGON (UK) LTD,id:14525149   , 648.00
Department of Health,Guys and St Thomas NHS Foundation Trust,22/10/2021,(81200) Medical Surgical Supplies & Equipment,(id:42367) Clinical Imaging & Med Physics,COOK UK LTD,id:14500894 , 960.00
Department of Health,Guys and St Thomas NHS Foundation Trust,22/10/2021,(81200) Medical Surgical Supplies & Equipment,(id:42367) Clinical Imaging & Med Physics,AQUILANT LTD,id:14539053,1044.00
Department of Health,Guys and St Thomas NHS Foundation Trust,22/10/2021,(81200) Medical Surgical Supplies & Equipment,(id:42367) Clinical Imaging & Med Physics,AQUILANT LTD,id:14539050,1107.00
Department of Health,Guys and St Thomas NHS Foundation Trust,22/10/2021,(81235) Medical Surgical Supplies & Equipment,(id:42367) Clinical Imaging & Med Physics,BOSTON SCIENTIFIC LTD,id:14553176 , 102.00
Department of Health,Guys and St Thomas NHS Foundation Trust,22/10/2021,(81230) Medical Surgical Supplies & Equipment,(id:42367) Clinical Imaging & Med Physics,COOK UK LTD,id:14480996 , 600.00
Department of Health,Guys and St Thomas NHS Foundation Trust,22/10/2021,(81230) Medical Surgical Supplies & Equipment,(id:42367) Clinical Imaging & Med Physics,COOK UK LTD,id:14552376 , 334.80
Department of Health,Guys and St Thomas NHS Foundation Trust,22/10/2021,(81230) Medical Surgical Supplies & Equipment,(id:42367) Clinical Imaging & Med Physics,MEDTRONIC LTD,id:14500882    ,1140.00
Department of Health,Guys and St Thomas NHS Foundation Trust,28/10/2021,(81500) X Ray Equipment Purchase,(id:42367) Clinical Imaging & Med Physics,BAYER PLC,id:14580655 ,1420.80
Department of Health,Guys and St Thomas NHS Foundation Trust,28/10/2021,(81500) X Ray Equipment Purchase,(id:42367) Clinical Imaging & Med Physics,BAYER PLC,id:14579640 ,2520.00
Department of Health,Guys and St Thomas NHS Foundation Trust,15/10/2021,(82800) Bedding & Linen,(id:42366) Clinical Imaging & Med Physics,NHS SUPPLY CHAIN (MAIDSTONE),id:14421654 , 266.30
Department of Health,Guys and St Thomas NHS Foundation Trust,15/10/2021,(81200) Medical Surgical Supplies & Equipment,(id:42366) Clinical Imaging & Med Physics,NHS SUPPLY CHAIN (MAIDSTONE),id:14421654    ,5458.40
Department of Health,Guys and St Thomas NHS Foundation Trust,22/10/2021,(81200) Medical Surgical Supplies & Equipment,(id:42366) Clinical Imaging & Med Physics,HOLOGIC UK LTD,id:14557058   ,3060.00
Department of Health,Guys and St Thomas NHS Foundation Trust,22/10/2021,(81500) X Ray Equipment Purchase,(id:42366) Clinical Imaging & Med Physics,BAYER PLC,id:14553455 ,1680.00
Department of Health,Guys and St Thomas NHS Foundation Trust,22/10/2021,(81700) Lab Equipment Purchase,(id:42366) Clinical Imaging & Med Physics,HOLOGIC UK LTD,id:14557043   ,2040.00
Department of Health,Guys and St Thomas NHS Foundation Trust,22/10/2021,(81225) Medical Surgical Supplies & Equipment,(id:42366) Clinical Imaging & Med Physics,NHS SUPPLY CHAIN (MAIDSTONE),id:14500176    ,  60.69
Department of Health,Guys and St Thomas NHS Foundation Trust,28/10/2021,(83400) Office Equipment,(id:4187419) Clinical Imaging & Med Physics,BAYER PLC,id:14579641  ,2112.00
Department of Health,Guys and St Thomas NHS Foundation Trust,15/10/2021,(81500) X Ray Equipment Purchase,(id:4187419) Clinical Imaging & Med Physics,ADVANCED ACCELERATOR APPLICATIONS (UK & IRELAND) LTD,id:14533014 ,    15658.50
Department of Health,Guys and St Thomas NHS Foundation Trust,01/10/2021,(81500) X Ray Equipment Purchase,(id:4187419) Clinical Imaging & Med Physics,ADVANCED ACCELERATOR APPLICATIONS (UK & IRELAND) LTD,id:14402974 ,    15658.50
Department of Health,Guys and St Thomas NHS Foundation Trust,28/10/2021,(81500) X Ray Equipment Purchase,(id:4187419) Clinical Imaging & Med Physics,ADVANCED ACCELERATOR APPLICATIONS (UK & IRELAND) LTD,id:14565403 ,8861.24
Department of Health,Guys and St Thomas NHS Foundation Trust,15/10/2021,(82000) Provisions & Kitchens,(id:42372) Clinical Imaging & Med Physics,NHS SUPPLY CHAIN (MAIDSTONE),id:14399770,  13.15
Department of Health,Guys and St Thomas NHS Foundation Trust,01/10/2021,(83400) Office Equipment,(id:42372) Clinical Imaging & Med Physics,BAYER PLC,id:14469035    ,2112.00
Department of Health,Guys and St Thomas NHS Foundation Trust,22/10/2021,(83400) Office Equipment,(id:42372) Clinical Imaging & Med Physics,BAYER PLC,id:14519234    ,2112.00
Department of Health,Guys and St Thomas NHS Foundation Trust,08/10/2021,(83400) Office Equipment,(id:42372) Clinical Imaging & Med Physics,BAYER PLC,id:14500156    ,2112.00
Department of Health,Guys and St Thomas NHS Foundation Trust,15/10/2021,(81100) Dressings,(id:42372) Clinical Imaging & Med Physics,NHS SUPPLY CHAIN (MAIDSTONE),id:14399770  ,  30.06
Department of Health,Guys and St Thomas NHS Foundation Trust,08/10/2021,(81275) Medical Surgical Supplies & Equipment,(id:42372) Clinical Imaging & Med Physics,GE HEALTHCARE UK LTD:00475800,id:14498714   , 840.00
Department of Health,Guys and St Thomas NHS Foundation Trust,01/10/2021,(81275) Medical Surgical Supplies & Equipment,(id:42372) Clinical Imaging & Med Physics,GE HEALTHCARE (50652318),id:14415316   ,4794.00
Department of Health,Guys and St Thomas NHS Foundation Trust,22/10/2021,(81275) Medical Surgical Supplies & Equipment,(id:42372) Clinical Imaging & Med Physics,GE HEALTHCARE (50652318),id:14485954   ,4794.00
Department of Health,Guys and St Thomas NHS Foundation Trust,22/10/2021,(81275) Medical Surgical Supplies & Equipment,(id:42372) Clinical Imaging & Med Physics,GE HEALTHCARE UK LTD:00475800,id:14541094   , 737.51
Department of Health,Guys and St Thomas NHS Foundation Trust,15/10/2021,(81275) Medical Surgical Supplies & Equipment,(id:42372) Clinical Imaging & Med Physics,CURIUM PHARMA UK LTD,id:14507144  , 880.00
Department of Health,Guys and St Thomas NHS Foundation Trust,15/10/2021,(81275) Medical Surgical Supplies & Equipment,(id:42372) Clinical Imaging & Med Physics,GE HEALTHCARE (50652318),id:14527980   ,1620.00
Department of Health,Guys and St Thomas NHS Foundation Trust,15/10/2021,(81275) Medical Surgical Supplies & Equipment,(id:42372) Clinical Imaging & Med Physics,GE HEALTHCARE (50652318),id:14522554   ,2016.00
Department of Health,Guys and St Thomas NHS Foundation Trust,15/10/2021,(81275) Medical Surgical Supplies & Equipment,(id:42372) Clinical Imaging & Med Physics,GE HEALTHCARE UK LTD:00475800,id:14514095   , 737.51
Department of Health,Guys and St Thomas NHS Foundation Trust,15/10/2021,(81275) Medical Surgical Supplies & Equipment,(id:42372) Clinical Imaging & Med Physics,GE HEALTHCARE (50652318),id:14523998   ,2016.00
Department of Health,Guys and St Thomas NHS Foundation Trust,15/10/2021,(81275) Medical Surgical Supplies & Equipment,(id:42372) Clinical Imaging & Med Physics,GE HEALTHCARE (50652318),id:14528015   ,1386.00
Department of Health,Guys and St Thomas NHS Foundation Trust,28/10/2021,(81500) X Ray Equipment Purchase,(id:42372) Clinical Imaging & Med Physics,DIAGNOSTIC IMAGING LTD,id:14580194   , 987.60
Department of Health,Guys and St Thomas NHS Foundation Trust,28/10/2021,(81500) X Ray Equipment Purchase,(id:42372) Clinical Imaging & Med Physics,CURIUM PHARMA UK LTD,id:14573953,1934.40
Department of Health,Guys and St Thomas NHS Foundation Trust,01/10/2021,(81500) X Ray Equipment Purchase,(id:42372) Clinical Imaging & Med Physics,ADELPHI (TUBES) LTD,id:14468754 ,4411.92
Department of Health,Guys and St Thomas NHS Foundation Trust,01/10/2021,(81500) X Ray Equipment Purchase,(id:42372) Clinical Imaging & Med Physics,CURIUM PHARMA UK LTD,id:14476032,1934.40
Department of Health,Guys and St Thomas NHS Foundation Trust,15/10/2021,(83400) Office Equipment,(id:42379) Clinical Imaging & Med Physics,NHS SUPPLY CHAIN (MAIDSTONE),id:14421654,  28.32
Department of Health,Guys and St Thomas NHS Foundation Trust,08/10/2021,(81400) Medical Surgical Supplies & Equipment,(id:42379) Clinical Imaging & Med Physics,B.BRAUN MEDICAL LTD,id:14245730   , 585.06
Department of Health,Guys and St Thomas NHS Foundation Trust,08/10/2021,(81400) Medical Surgical Supplies & Equipment,(id:42379) Clinical Imaging & Med Physics,PAXMAN COOLERS LTD,id:14360641    , 600.00
Department of Health,Guys and St Thomas NHS Foundation Trust,15/10/2021,(81400) Medical Surgical Supplies & Equipment,(id:42379) Clinical Imaging & Med Physics,STRYKER UK LTD,id:14515654   , 695.22
Department of Health,Guys and St Thomas NHS Foundation Trust,01/10/2021,(81400) Medical Surgical Supplies & Equipment,(id:42379) Clinical Imaging & Med Physics,TENACORE UK LTD,id:14253822  ,1270.00
Department of Health,Guys and St Thomas NHS Foundation Trust,01/10/2021,(81200) Medical Surgical Supplies & Equipment,(id:42379) Clinical Imaging & Med Physics,VERATHON MEDICAL UK LTD,id:14470094    ,2303.44
Department of Health,Guys and St Thomas NHS Foundation Trust,01/10/2021,(81200) Medical Surgical Supplies & Equipment,(id:42379) Clinical Imaging & Med Physics,THERAPY EQUIPMENT LTD,id:14471406 ,3461.52
Department of Health,Guys and St Thomas NHS Foundation Trust,01/10/2021,(81200) Medical Surgical Supplies & Equipment,(id:42379) Clinical Imaging & Med Physics,DRAEGER MEDICAL UK LTD,id:14470853,    -2035.97
Department of Health,Guys and St Thomas NHS Foundation Trust,15/10/2021,(81200) Medical Surgical Supplies & Equipment,(id:42379) Clinical Imaging & Med Physics,WALTERS MEDICAL LTD,id:14367434   , 864.00
Department of Health,Guys and St Thomas NHS Foundation Trust,15/10/2021,(81200) Medical Surgical Supplies & Equipment,(id:42379) Clinical Imaging & Med Physics,TENACORE UK LTD,id:14424025  ,  24.00
Department of Health,Guys and St Thomas NHS Foundation Trust,15/10/2021,(81200) Medical Surgical Supplies & Equipment,(id:42379) Clinical Imaging & Med Physics,GE HEALTHCARE (50652318),id:14448914   ,  30.00
Department of Health,Guys and St Thomas NHS Foundation Trust,28/10/2021,(81200) Medical Surgical Supplies & Equipment,(id:42379) Clinical Imaging & Med Physics,BECTON DICKINSON (CME) UK LTD,id:14568148   ,1704.00
Department of Health,Guys and St Thomas NHS Foundation Trust,22/10/2021,(81200) Medical Surgical Supplies & Equipment,(id:42379) Clinical Imaging & Med Physics,EDAN MEDICAL (UK) LTD,id:14555434 ,2649.60
Department of Health,Guys and St Thomas NHS Foundation Trust,15/10/2021,(81500) X Ray Equipment Purchase,(id:42378) Clinical Imaging & Med Physics,ONCOLOGY SYSTEMS LTD,id:14510975,3105.60
Department of Health,Guys and St Thomas NHS Foundation Trust,28/10/2021,(81500) X Ray Equipment Purchase,(id:42378) Clinical Imaging & Med Physics,ONCOLOGY SYSTEMS LTD,id:14569594,2478.00
Department of Health,Guys and St Thomas NHS Foundation Trust,12/10/2021,(52062) Radiographers,(id:42377) Clinical Imaging & Med Physics,PRICEWATERHOUSECOOPERS LLP,id:14525494,3020.21
Department of Health,Guys and St Thomas NHS Foundation Trust,12/10/2021,(52062) Radiographers,(id:42377) Clinical Imaging & Med Physics,PRICEWATERHOUSECOOPERS LLP,id:14526636,1241.40
Department of Health,Guys and St Thomas NHS Foundation Trust,21/10/2021,(52062) Radiographers,(id:42377) Clinical Imaging & Med Physics,PRICEWATERHOUSECOOPERS LLP,id:14555339,3792.92
Department of Health,Guys and St Thomas NHS Foundation Trust,08/10/2021,(81200) Medical Surgical Supplies & Equipment,(id:1348419) Clinical Imaging & Med Physics,MEDTRONIC LTD,id:13923785  ,2112.00
Department of Health,Guys and St Thomas NHS Foundation Trust,28/10/2021,(81200) Medical Surgical Supplies & Equipment,(id:1348419) Clinical Imaging & Med Physics,MACROMED (UK) LTD,id:14530965   ,4590.00
Department of Health,Guys and St Thomas NHS Foundation Trust,22/10/2021,(81200) Medical Surgical Supplies & Equipment,(id:1348419) Clinical Imaging & Med Physics,MEDTRONIC LTD,id:14485509  ,1080.00
Department of Health,Guys and St Thomas NHS Foundation Trust,22/10/2021,(83400) Office Equipment,(id:590597) Integrated Local Services,NHS SUPPLY CHAIN (MAIDSTONE),id:14500176    , 374.40
Department of Health,Guys and St Thomas NHS Foundation Trust,15/10/2021,(82000) Provisions & Kitchens,(id:590595) Integrated Local Services,NHS SUPPLY CHAIN (MAIDSTONE),id:14399770    ,  54.37
Department of Health,Guys and St Thomas NHS Foundation Trust,15/10/2021,(82000) Provisions & Kitchens,(id:590595) Integrated Local Services,NHS SUPPLY CHAIN (MAIDSTONE),id:14441943    ,  19.30
Department of Health,Guys and St Thomas NHS Foundation Trust,08/10/2021,(83610) IT Costs,(id:590469) Integrated Local Services,OFFICE DEPOT UK LTD,id:14447455 , 594.00
Department of Health,Guys and St Thomas NHS Foundation Trust,22/10/2021,(83400) Office Equipment,(id:590469) Integrated Local Services,NHS SUPPLY CHAIN (MAIDSTONE),id:14478413    ,  44.98
Department of Health,Guys and St Thomas NHS Foundation Trust,22/10/2021,(83400) Office Equipment,(id:590466) Integrated Local Services,NHS SUPPLY CHAIN (MAIDSTONE),id:14478413    ,  69.64
Department of Health,Guys and St Thomas NHS Foundation Trust,22/10/2021,(83400) Office Equipment,(id:4631420) Integrated Local Services,WYBONE LTD,id:14558414 ,1048.18
Department of Health,Guys and St Thomas NHS Foundation Trust,22/10/2021,(81100) Dressings,(id:590563) Integrated Local Services,NHS SUPPLY CHAIN (MAIDSTONE),id:14500176 , 111.66
Department of Health,Guys and St Thomas NHS Foundation Trust,21/10/2021,(53072) Speech Therapists,(id:839420) Integrated Local Services,PRICEWATERHOUSECOOPERS LLP,id:14555339,3011.05
Department of Health,Guys and St Thomas NHS Foundation Trust,15/10/2021,(82000) Provisions & Kitchens,(id:590495) Integrated Local Services,NHS SUPPLY CHAIN (MAIDSTONE),id:14421654    ,  10.80
Department of Health,Guys and St Thomas NHS Foundation Trust,28/10/2021,(51842) Physiotherapists,(id:590495) Integrated Local Services,PRICEWATERHOUSECOOPERS LLP,id:14585494 , 280.03
Department of Health,Guys and St Thomas NHS Foundation Trust,01/10/2021,(50562) Qualified Nursing Staff,(id:1885424) Integrated Local Services,MSI GROUP LTD,id:14486506 ,1081.09
Department of Health,Guys and St Thomas NHS Foundation Trust,12/10/2021,(51862) Physiotherapists,(id:699422) Integrated Local Services,PRICEWATERHOUSECOOPERS LLP,id:14526636 , 889.93
Department of Health,Guys and St Thomas NHS Foundation Trust,21/10/2021,(51832) Physiotherapists,(id:699422) Integrated Local Services,PRICEWATERHOUSECOOPERS LLP,id:14555339 ,1491.60
Department of Health,Guys and St Thomas NHS Foundation Trust,15/10/2021,(50204) Consultants,(id:699422) Integrated Local Services,KING'S COLLEGE HOSPITAL NHS FOUNDATION TRUST,id:14478871   ,1699.70
Department of Health,Guys and St Thomas NHS Foundation Trust,15/10/2021,(89000) Other - Training courses and conferences,(id:590523) Integrated Local Services,HANDS FREE COMPUTING LTD,id:14261284    , 474.00
Department of Health,Guys and St Thomas NHS Foundation Trust,22/10/2021,(89595) Non-Healthcare from Foundation Trusts,(id:590492) Integrated Local Services,KING'S COLLEGE HOSPITAL NHS FOUNDATION TRUST,id:14479345  ,3643.04
Department of Health,Guys and St Thomas NHS Foundation Trust,28/10/2021,(51862) Physiotherapists,(id:1913419) Integrated Local Services,PRICEWATERHOUSECOOPERS LLP,id:14585494,1904.74
Department of Health,Guys and St Thomas NHS Foundation Trust,12/10/2021,(51852) Physiotherapists,(id:1913419) Integrated Local Services,PRICEWATERHOUSECOOPERS LLP,id:14525494,1437.98
Department of Health,Guys and St Thomas NHS Foundation Trust,15/10/2021,(81100) Dressings,(id:684420) Integrated Local Services,NHS SUPPLY CHAIN (MAIDSTONE),id:14421654 , 180.00
Department of Health,Guys and St Thomas NHS Foundation Trust,15/10/2021,(81200) Medical Surgical Supplies & Equipment,(id:684420) Integrated Local Services,NHS SUPPLY CHAIN (MAIDSTONE),id:14421654   ,  67.20
Department of Health,Guys and St Thomas NHS Foundation Trust,12/10/2021,(51872) Physiotherapists,(id:684419) Integrated Local Services,PRICEWATERHOUSECOOPERS LLP,id:14526636 ,1470.83
Department of Health,Guys and St Thomas NHS Foundation Trust,22/10/2021,(89595) Non-Healthcare from Foundation Trusts,(id:590503) Integrated Local Services,KING'S COLLEGE HOSPITAL NHS FOUNDATION TRUST,id:14478464  ,2492.08
Department of Health,Guys and St Thomas NHS Foundation Trust,15/10/2021,(89595) Non-Healthcare from Foundation Trusts,(id:590503) Integrated Local Services,KING'S COLLEGE HOSPITAL NHS FOUNDATION TRUST,id:14478460  ,2732.71
Department of Health,Guys and St Thomas NHS Foundation Trust,15/10/2021,(83400) Office Equipment,(id:590522) Integrated Local Services,NHS SUPPLY CHAIN (MAIDSTONE),id:14421654    ,  24.29
Department of Health,Guys and St Thomas NHS Foundation Trust,22/10/2021,(82600) Uniforms & Clothing,(id:590522) Integrated Local Services,NHS SUPPLY CHAIN (MAIDSTONE),id:14478413 ,  27.00
Department of Health,Guys and St Thomas NHS Foundation Trust,01/10/2021,(50552) Qualified Nursing Staff,(id:590521) Integrated Local Services,NURSING 2000 LTD,id:14426336    , 339.72
Department of Health,Guys and St Thomas NHS Foundation Trust,22/10/2021,(50552) Qualified Nursing Staff,(id:590521) Integrated Local Services,NURSING 2000 LTD,id:14534193    ,1019.15
Department of Health,Guys and St Thomas NHS Foundation Trust,22/10/2021,(50552) Qualified Nursing Staff,(id:590520) Integrated Local Services,YOUR WORLD RECRUITMENT LIMITED(YOUR WORLD HEALTHCARE),id:14556377  ,1216.81
Department of Health,Guys and St Thomas NHS Foundation Trust,15/10/2021,(83400) Office Equipment,(id:590473) Integrated Local Services,NHS SUPPLY CHAIN (MAIDSTONE),id:14421654    , 160.36
Department of Health,Guys and St Thomas NHS Foundation Trust,15/10/2021,(81200) Medical Surgical Supplies & Equipment,(id:590473) Integrated Local Services,NHS SUPPLY CHAIN (MAIDSTONE),id:14421654   , 907.10
Department of Health,Guys and St Thomas NHS Foundation Trust,15/10/2021,(81200) Medical Surgical Supplies & Equipment,(id:590473) Integrated Local Services,NHS SUPPLY CHAIN (MAIDSTONE),id:14441943   ,1443.42
Department of Health,Guys and St Thomas NHS Foundation Trust,22/10/2021,(82800) Bedding & Linen,(id:590473) Integrated Local Services,NHS SUPPLY CHAIN (MAIDSTONE),id:14500176,  46.37
Department of Health,Guys and St Thomas NHS Foundation Trust,22/10/2021,(81100) Dressings,(id:590471) Integrated Local Services,NHS SUPPLY CHAIN (MAIDSTONE),id:14500176 ,  84.53
Department of Health,Guys and St Thomas NHS Foundation Trust,08/10/2021,(50552) Qualified Nursing Staff,(id:590471) Integrated Local Services,NURSING 2000 LTD,id:14506466    ,1139.53
Department of Health,Guys and St Thomas NHS Foundation Trust,08/10/2021,(50552) Qualified Nursing Staff,(id:590471) Integrated Local Services,NURSING 2000 LTD,id:14506297    , 729.48
Department of Health,Guys and St Thomas NHS Foundation Trust,15/10/2021,(82800) Bedding & Linen,(id:590471) Integrated Local Services,NHS SUPPLY CHAIN (MAIDSTONE),id:14421654,  13.56
Department of Health,Guys and St Thomas NHS Foundation Trust,08/10/2021,(84500) Establishment,(id:590471) Integrated Local Services,CDP  PRINT MANAGEMENT,id:14444766    , 624.48
Department of Health,Guys and St Thomas NHS Foundation Trust,15/10/2021,(82800) Bedding & Linen,(id:590470) Integrated Local Services,NHS SUPPLY CHAIN (MAIDSTONE),id:14441943,  82.31
Department of Health,Guys and St Thomas NHS Foundation Trust,22/10/2021,(81700) Lab Equipment Purchase,(id:590477) Integrated Local Services,NHS SUPPLY CHAIN (MAIDSTONE),id:14478413   ,  26.10
Department of Health,Guys and St Thomas NHS Foundation Trust,08/10/2021,(86300) Healthcare from non-NHS bodies,(id:590477) Integrated Local Services,NHS SUPPLY CHAIN (MAIDSTONE),id:14471232, 754.50
Department of Health,Guys and St Thomas NHS Foundation Trust,08/10/2021,(86300) Healthcare from non-NHS bodies,(id:590477) Integrated Local Services,NHS SUPPLY CHAIN (MAIDSTONE),id:14471272, 880.38
Department of Health,Guys and St Thomas NHS Foundation Trust,15/10/2021,(86300) Healthcare from non-NHS bodies,(id:590477) Integrated Local Services,NHS SUPPLY CHAIN (MAIDSTONE),id:14530842, 832.31
Department of Health,Guys and St Thomas NHS Foundation Trust,15/10/2021,(86300) Healthcare from non-NHS bodies,(id:590477) Integrated Local Services,NHS SUPPLY CHAIN (MAIDSTONE),id:14530731, 541.93
Department of Health,Guys and St Thomas NHS Foundation Trust,15/10/2021,(86300) Healthcare from non-NHS bodies,(id:590477) Integrated Local Services,NHS SUPPLY CHAIN (MAIDSTONE),id:14530854, 688.73
Department of Health,Guys and St Thomas NHS Foundation Trust,15/10/2021,(86300) Healthcare from non-NHS bodies,(id:590477) Integrated Local Services,NHS SUPPLY CHAIN (MAIDSTONE),id:14530803, 607.40
Department of Health,Guys and St Thomas NHS Foundation Trust,15/10/2021,(86300) Healthcare from non-NHS bodies,(id:590477) Integrated Local Services,NHS SUPPLY CHAIN (MAIDSTONE),id:14530898, 634.26
Department of Health,Guys and St Thomas NHS Foundation Trust,15/10/2021,(86300) Healthcare from non-NHS bodies,(id:590477) Integrated Local Services,NHS SUPPLY CHAIN (MAIDSTONE),id:14530809, 846.73
Department of Health,Guys and St Thomas NHS Foundation Trust,15/10/2021,(86300) Healthcare from non-NHS bodies,(id:590477) Integrated Local Services,NHS SUPPLY CHAIN (MAIDSTONE),id:14530761,6187.70
Department of Health,Guys and St Thomas NHS Foundation Trust,15/10/2021,(86300) Healthcare from non-NHS bodies,(id:590477) Integrated Local Services,NHS SUPPLY CHAIN (MAIDSTONE),id:14530774,6422.54
Department of Health,Guys and St Thomas NHS Foundation Trust,15/10/2021,(86300) Healthcare from non-NHS bodies,(id:590477) Integrated Local Services,NHS SUPPLY CHAIN (MAIDSTONE),id:14530958,7093.41
Department of Health,Guys and St Thomas NHS Foundation Trust,22/10/2021,(50562) Qualified Nursing Staff,(id:590463) Integrated Local Services,COYLE PERSONNEL PLC,id:14559553 ,1750.00
Department of Health,Guys and St Thomas NHS Foundation Trust,22/10/2021,(82800) Bedding & Linen,(id:590463) Integrated Local Services,NHS SUPPLY CHAIN (MAIDSTONE),id:14478413,  51.84
Department of Health,Guys and St Thomas NHS Foundation Trust,15/10/2021,(83400) Office Equipment,(id:590527) Integrated Local Services,NHS SUPPLY CHAIN (MAIDSTONE),id:14441943    , 144.48
Department of Health,Guys and St Thomas NHS Foundation Trust,22/10/2021,(81200) Medical Surgical Supplies & Equipment,(id:590527) Integrated Local Services,NHS SUPPLY CHAIN (MAIDSTONE),id:14500176   , 238.78
Department of Health,Guys and St Thomas NHS Foundation Trust,08/10/2021,(50202) Consultants,(id:590527) Integrated Local Services,HETHERINGTON GROUP PRACTICE,id:14503454,2325.00
Department of Health,Guys and St Thomas NHS Foundation Trust,15/10/2021,(83400) Office Equipment,(id:1379420) Integrated Local Services,NHS SUPPLY CHAIN (MAIDSTONE),id:14421654   ,  37.80
Department of Health,Guys and St Thomas NHS Foundation Trust,15/10/2021,(50204) Consultants,(id:903421) Integrated Local Services,KING'S COLLEGE HOSPITAL NHS FOUNDATION TRUST,id:14445295   ,4005.60
Department of Health,Guys and St Thomas NHS Foundation Trust,01/10/2021,(80040) Drug Costs,(id:590491) Integrated Local Services,NHS BUSINESS SERVICES AUTHORITY,id:14165721  ,    95031.79
Department of Health,Guys and St Thomas NHS Foundation Trust,01/10/2021,(50552) Qualified Nursing Staff,(id:4609420) Integrated Local Services,NURSING 2000 LTD,id:14426512   , 335.16
Department of Health,Guys and St Thomas NHS Foundation Trust,22/10/2021,(50552) Qualified Nursing Staff,(id:4609420) Integrated Local Services,NURSING 2000 LTD,id:14556548   , 691.30
Department of Health,Guys and St Thomas NHS Foundation Trust,08/10/2021,(50552) Qualified Nursing Staff,(id:4263423) Integrated Local Services,NURSING 2000 LTD,id:14510512   ,1448.21
Department of Health,Guys and St Thomas NHS Foundation Trust,22/10/2021,(81200) Medical Surgical Supplies & Equipment,(id:4263422) Integrated Local Services,NHS SUPPLY CHAIN (MAIDSTONE),id:14478413  ,  55.07
Department of Health,Guys and St Thomas NHS Foundation Trust,22/10/2021,(81100) Dressings,(id:4263422) Integrated Local Services,NHS SUPPLY CHAIN (MAIDSTONE),id:14478413,  22.79
Department of Health,Guys and St Thomas NHS Foundation Trust,15/10/2021,(81230) Medical Surgical Supplies & Equipment,(id:4263422) Integrated Local Services,NHS SUPPLY CHAIN (MAIDSTONE),id:14421654  , 120.78
Department of Health,Guys and St Thomas NHS Foundation Trust,15/10/2021,(81200) Medical Surgical Supplies & Equipment,(id:4263421) Integrated Local Services,NHS SUPPLY CHAIN (MAIDSTONE),id:14421654  , 378.17
Department of Health,Guys and St Thomas NHS Foundation Trust,28/10/2021,(50522) Unqualified Nursing Staff,(id:42518) Evelina Womens Services,GLOBE LOCUMS LTD,id:14581037, 310.56
Department of Health,Guys and St Thomas NHS Foundation Trust,22/10/2021,(81200) Medical Surgical Supplies & Equipment,(id:42518) Evelina Womens Services,NHS SUPPLY CHAIN (MAIDSTONE),id:14500176 ,  26.84
Department of Health,Guys and St Thomas NHS Foundation Trust,28/10/2021,(80010) Drug Costs,(id:42517) Evelina Womens Services,PERSONAL HOMECARE PHARMACY LTD,id:14545354 ,    65468.09
Department of Health,Guys and St Thomas NHS Foundation Trust,15/10/2021,(84500) Establishment,(id:42517) Evelina Womens Services,WYBONE LTD,id:14516094   , 508.74
Department of Health,Guys and St Thomas NHS Foundation Trust,22/10/2021,(89270) Establishment,(id:42517) Evelina Womens Services,HUMAN FERTILISATION & EMBRYOLOGY AUTHORITY (HFEA),id:14544976    ,    19095.00
Department of Health,Guys and St Thomas NHS Foundation Trust,28/10/2021,(89270) Establishment,(id:42517) Evelina Womens Services,HUMAN FERTILISATION & EMBRYOLOGY AUTHORITY (HFEA),id:14581954    ,    19185.00
Department of Health,Guys and St Thomas NHS Foundation Trust,01/10/2021,(81200) Medical Surgical Supplies & Equipment,(id:42517) Evelina Womens Services,DHL EXPRESS (UK) LTD,id:14484038    ,  14.42
Department of Health,Guys and St Thomas NHS Foundation Trust,28/10/2021,(81200) Medical Surgical Supplies & Equipment,(id:42517) Evelina Womens Services,COOK UK LTD,id:14513452   ,9000.00
Department of Health,Guys and St Thomas NHS Foundation Trust,15/10/2021,(81200) Medical Surgical Supplies & Equipment,(id:42517) Evelina Womens Services,NHS SUPPLY CHAIN (MAIDSTONE),id:14441943 , 809.16
Department of Health,Guys and St Thomas NHS Foundation Trust,28/10/2021,(84600) Establishment,(id:42514) Evelina Womens Services,REDACTIVE EVENTS LTD,id:14580469   ,1194.00
Department of Health,Guys and St Thomas NHS Foundation Trust,08/10/2021,(89270) Establishment,(id:42514) Evelina Womens Services,170COMMUNITY PROJECT,id:14485935   ,7596.96
Department of Health,Guys and St Thomas NHS Foundation Trust,15/10/2021,(81200) Medical Surgical Supplies & Equipment,(id:42513) Evelina Womens Services,NHS SUPPLY CHAIN (MAIDSTONE),id:14399770 , 151.54
Department of Health,Guys and St Thomas NHS Foundation Trust,15/10/2021,(83400) Office Equipment,(id:42513) Evelina Womens Services,NHS SUPPLY CHAIN (MAIDSTONE),id:14441943  ,  77.52
Department of Health,Guys and St Thomas NHS Foundation Trust,15/10/2021,(81700) Lab Equipment Purchase,(id:42513) Evelina Womens Services,NHS SUPPLY CHAIN (MAIDSTONE),id:14421654 ,  65.02
Department of Health,Guys and St Thomas NHS Foundation Trust,15/10/2021,(82000) Provisions & Kitchens,(id:42513) Evelina Womens Services,NHS SUPPLY CHAIN (MAIDSTONE),id:14421654  ,  62.22
Department of Health,Guys and St Thomas NHS Foundation Trust,15/10/2021,(81200) Medical Surgical Supplies & Equipment,(id:42511) Evelina Womens Services,LINDSAY SURGICAL SUPPLIES LIMITED,id:14502314 ,2454.00
Department of Health,Guys and St Thomas NHS Foundation Trust,22/10/2021,(81700) Lab Equipment Purchase,(id:42510) Evelina Womens Services,NHS SUPPLY CHAIN (MAIDSTONE),id:14478413 ,  66.00
Department of Health,Guys and St Thomas NHS Foundation Trust,15/10/2021,(81225) Medical Surgical Supplies & Equipment,(id:42510) Evelina Womens Services,NHS SUPPLY CHAIN (MAIDSTONE),id:14421654 ,   6.29
Department of Health,Guys and St Thomas NHS Foundation Trust,15/10/2021,(81550) X Ray Equipment Purchase,(id:42509) Evelina Womens Services,NHS SUPPLY CHAIN (MAIDSTONE),id:14399770    , 151.20
Department of Health,Guys and St Thomas NHS Foundation Trust,22/10/2021,(81200) Medical Surgical Supplies & Equipment,(id:42506) Evelina Womens Services,NHS SUPPLY CHAIN (MAIDSTONE),id:14500176 , 343.36
Department of Health,Guys and St Thomas NHS Foundation Trust,22/10/2021,(81100) Dressings,(id:42506) Evelina Womens Services,NHS SUPPLY CHAIN (MAIDSTONE),id:14500176    ,  61.30
Department of Health,Guys and St Thomas NHS Foundation Trust,22/10/2021,(82800) Bedding & Linen,(id:42506) Evelina Womens Services,NHS SUPPLY CHAIN (MAIDSTONE),id:14500176   ,  54.30
Department of Health,Guys and St Thomas NHS Foundation Trust,22/10/2021,(82800) Bedding & Linen,(id:42486) Evelina Womens Services,NHS SUPPLY CHAIN (MAIDSTONE),id:14500176   ,  60.30
Department of Health,Guys and St Thomas NHS Foundation Trust,22/10/2021,(81225) Medical Surgical Supplies & Equipment,(id:42486) Evelina Womens Services,NHS SUPPLY CHAIN (MAIDSTONE),id:14500176 ,   6.29
Department of Health,Guys and St Thomas NHS Foundation Trust,22/10/2021,(83400) Office Equipment,(id:42488) Evelina Womens Services,NHS SUPPLY CHAIN (MAIDSTONE),id:14500176  ,  50.48
Department of Health,Guys and St Thomas NHS Foundation Trust,22/10/2021,(81700) Lab Equipment Purchase,(id:42497) Evelina Womens Services,HOLOGIC UK LTD,id:14557014,5520.00
Department of Health,Guys and St Thomas NHS Foundation Trust,15/10/2021,(83400) Office Equipment,(id:42496) Evelina Womens Services,NHS SUPPLY CHAIN (MAIDSTONE),id:14399770  ,  25.24
Department of Health,Guys and St Thomas NHS Foundation Trust,22/10/2021,(82800) Bedding & Linen,(id:42496) Evelina Womens Services,NHS SUPPLY CHAIN (MAIDSTONE),id:14478413   ,  54.26
Department of Health,Guys and St Thomas NHS Foundation Trust,22/10/2021,(81275) Medical Surgical Supplies & Equipment,(id:42496) Evelina Womens Services,NHS SUPPLY CHAIN (MAIDSTONE),id:14478413 ,  10.68
Department of Health,Guys and St Thomas NHS Foundation Trust,22/10/2021,(81200) Medical Surgical Supplies & Equipment,(id:42496) Evelina Womens Services,NHS SUPPLY CHAIN (MAIDSTONE),id:14500176 ,  51.12
Department of Health,Guys and St Thomas NHS Foundation Trust,22/10/2021,(81700) Lab Equipment Purchase,(id:42496) Evelina Womens Services,NHS SUPPLY CHAIN (MAIDSTONE),id:14478413 ,  37.15
Department of Health,Guys and St Thomas NHS Foundation Trust,15/10/2021,(82600) Uniforms & Clothing,(id:42493) Evelina Womens Services,NHS SUPPLY CHAIN (MAIDSTONE),id:14399770    ,   4.21
Department of Health,Guys and St Thomas NHS Foundation Trust,22/10/2021,(83400) Office Equipment,(id:42493) Evelina Womens Services,NHS SUPPLY CHAIN (MAIDSTONE),id:14500176  ,  40.18
Department of Health,Guys and St Thomas NHS Foundation Trust,15/10/2021,(82800) Bedding & Linen,(id:42493) Evelina Womens Services,NHS SUPPLY CHAIN (MAIDSTONE),id:14441943   ,  34.63
Department of Health,Guys and St Thomas NHS Foundation Trust,22/10/2021,(82800) Bedding & Linen,(id:42493) Evelina Womens Services,NHS SUPPLY CHAIN (MAIDSTONE),id:14500176   , 123.15
Department of Health,Guys and St Thomas NHS Foundation Trust,22/10/2021,(81100) Dressings,(id:42493) Evelina Womens Services,NHS SUPPLY CHAIN (MAIDSTONE),id:14500176    ,  82.56
Department of Health,Guys and St Thomas NHS Foundation Trust,15/10/2021,(81700) Lab Equipment Purchase,(id:42493) Evelina Womens Services,NHS SUPPLY CHAIN (MAIDSTONE),id:14441943 , 379.00
Department of Health,Guys and St Thomas NHS Foundation Trust,15/10/2021,(82000) Provisions & Kitchens,(id:42492) Evelina Womens Services,NHS SUPPLY CHAIN (MAIDSTONE),id:14441943  , 126.12
Department of Health,Guys and St Thomas NHS Foundation Trust,15/10/2021,(83400) Office Equipment,(id:42492) Evelina Womens Services,NHS SUPPLY CHAIN (MAIDSTONE),id:14399770  , 457.19
Department of Health,Guys and St Thomas NHS Foundation Trust,15/10/2021,(81200) Medical Surgical Supplies & Equipment,(id:42492) Evelina Womens Services,NHS SUPPLY CHAIN (MAIDSTONE),id:14399770 ,4441.64
Department of Health,Guys and St Thomas NHS Foundation Trust,22/10/2021,(81200) Medical Surgical Supplies & Equipment,(id:42492) Evelina Womens Services,NHS SUPPLY CHAIN (MAIDSTONE),id:14478413 ,9497.87
Department of Health,Guys and St Thomas NHS Foundation Trust,28/10/2021,(81200) Medical Surgical Supplies & Equipment,(id:42492) Evelina Womens Services,CRYOLIFE EUROPA LTD,id:14580339,1260.00
Department of Health,Guys and St Thomas NHS Foundation Trust,22/10/2021,(81225) Medical Surgical Supplies & Equipment,(id:42492) Evelina Womens Services,NHS SUPPLY CHAIN (MAIDSTONE),id:14500176 ,  69.98
Department of Health,Guys and St Thomas NHS Foundation Trust,22/10/2021,(82000) Provisions & Kitchens,(id:42491) Evelina Womens Services,NHS SUPPLY CHAIN (MAIDSTONE),id:14478413  , 312.40
Department of Health,Guys and St Thomas NHS Foundation Trust,15/10/2021,(82800) Bedding & Linen,(id:42491) Evelina Womens Services,NHS SUPPLY CHAIN (MAIDSTONE),id:14421654   , 155.70
Department of Health,Guys and St Thomas NHS Foundation Trust,15/10/2021,(81200) Medical Surgical Supplies & Equipment,(id:42491) Evelina Womens Services,NHS SUPPLY CHAIN (MAIDSTONE),id:14421654 ,1652.22
Department of Health,Guys and St Thomas NHS Foundation Trust,22/10/2021,(81225) Medical Surgical Supplies & Equipment,(id:42491) Evelina Womens Services,NHS SUPPLY CHAIN (MAIDSTONE),id:14500176 ,   4.32
Department of Health,Guys and St Thomas NHS Foundation Trust,22/10/2021,(82800) Bedding & Linen,(id:42348) Evelina Central,NHS SUPPLY CHAIN (MAIDSTONE),id:14478413 , 160.85
Department of Health,Guys and St Thomas NHS Foundation Trust,28/10/2021,(81200) Medical Surgical Supplies & Equipment,(id:42348) Evelina Central,BAXTER HEALTHCARE LTD,id:14575454 , 503.52
Department of Health,Guys and St Thomas NHS Foundation Trust,08/10/2021,(81200) Medical Surgical Supplies & Equipment,(id:42348) Evelina Central,MEDTRONIC LTD,id:14447557    , 504.00
Department of Health,Guys and St Thomas NHS Foundation Trust,15/10/2021,(82700) Uniforms & Clothing,(id:42331) Evelina Central,NHS SUPPLY CHAIN (MAIDSTONE),id:14399770  ,  68.45
Department of Health,Guys and St Thomas NHS Foundation Trust,15/10/2021,(81200) Medical Surgical Supplies & Equipment,(id:42331) Evelina Central,NHS SUPPLY CHAIN (MAIDSTONE),id:14421654    ,1862.15
Department of Health,Guys and St Thomas NHS Foundation Trust,22/10/2021,(81700) Lab Equipment Purchase,(id:42331) Evelina Central,NHS SUPPLY CHAIN (MAIDSTONE),id:14500176    ,  22.78
Department of Health,Guys and St Thomas NHS Foundation Trust,15/10/2021,(82000) Provisions & Kitchens,(id:42331) Evelina Central,NHS SUPPLY CHAIN (MAIDSTONE),id:14399770, 181.62
Department of Health,Guys and St Thomas NHS Foundation Trust,15/10/2021,(81400) Medical Surgical Supplies & Equipment,(id:2965419) Evelina Central,NHS SUPPLY CHAIN (MAIDSTONE),id:14441943  ,  90.30
Department of Health,Guys and St Thomas NHS Foundation Trust,22/10/2021,(83500) Furniture & Fittings,(id:2709419) Evelina Central,KORN WALL LTD T/A KWICKSCREEN,id:14525974   ,    18705.60
Department of Health,Guys and St Thomas NHS Foundation Trust,22/10/2021,(89570) Other – Other Operating Expenditure,(id:1848419) Evelina Central,ETC VENUES LIMITED,id:14558214   ,2300.00
Department of Health,Guys and St Thomas NHS Foundation Trust,22/10/2021,(81225) Medical Surgical Supplies & Equipment,(id:590444) Evelina Community Services,UNIVERSAL AIDS LTD,id:14547154  ,2306.05
Department of Health,Guys and St Thomas NHS Foundation Trust,15/10/2021,(81225) Medical Surgical Supplies & Equipment,(id:590444) Evelina Community Services,NHS SUPPLY CHAIN (MAIDSTONE),id:14399770  ,    19232.42
Department of Health,Guys and St Thomas NHS Foundation Trust,01/10/2021,(81225) Medical Surgical Supplies & Equipment,(id:590450) Evelina Community Services,QUEST 88 LTD,id:14478720   , 753.60
Department of Health,Guys and St Thomas NHS Foundation Trust,15/10/2021,(89000) Other - Training courses and conferences,(id:590451) Evelina Community Services,ELKLAN TRAINING LTD,id:14527254   , 455.00
Department of Health,Guys and St Thomas NHS Foundation Trust,28/10/2021,(89000) Other - Training courses and conferences,(id:590451) Evelina Community Services,MAKATON CHARITY,id:14565694  , 697.50
Department of Health,Guys and St Thomas NHS Foundation Trust,15/10/2021,(81200) Medical Surgical Supplies & Equipment,(id:590547) Evelina Community Services,NHS SUPPLY CHAIN (MAIDSTONE),id:14421654  ,4468.29
Department of Health,Guys and St Thomas NHS Foundation Trust,22/10/2021,(81700) Lab Equipment Purchase,(id:590561) Evelina Community Services,NHS SUPPLY CHAIN (MAIDSTONE),id:14500176  ,  12.96
Department of Health,Guys and St Thomas NHS Foundation Trust,22/10/2021,(81100) Dressings,(id:590561) Evelina Community Services,NHS SUPPLY CHAIN (MAIDSTONE),id:14500176,   6.20
Department of Health,Guys and St Thomas NHS Foundation Trust,08/10/2021,(84500) Establishment,(id:590548) Evelina Community Services,HENRY,id:14372114    ,1344.00
Department of Health,Guys and St Thomas NHS Foundation Trust,22/10/2021,(84600) Establishment,(id:590548) Evelina Community Services,ETC VENUES LIMITED,id:14544822 ,1000.00
Department of Health,Guys and St Thomas NHS Foundation Trust,22/10/2021,(84655) Establishment,(id:590548) Evelina Community Services,LANGUAGE LINE LTD,id:14544735  ,3743.09
Department of Health,Guys and St Thomas NHS Foundation Trust,15/10/2021,(81200) Medical Surgical Supplies & Equipment,(id:590557) Evelina Community Services,NHS SUPPLY CHAIN (MAIDSTONE),id:14399770  , 417.14
Department of Health,Guys and St Thomas NHS Foundation Trust,22/10/2021,(83400) Office Equipment,(id:590446) Evelina Community Services,COOLERAID LTD,id:14525854   , 993.60
Department of Health,Guys and St Thomas NHS Foundation Trust,22/10/2021,(81200) Medical Surgical Supplies & Equipment,(id:590446) Evelina Community Services,NHS SUPPLY CHAIN (MAIDSTONE),id:14500176  ,  28.98
Department of Health,Guys and St Thomas NHS Foundation Trust,28/10/2021,(84500) Establishment,(id:590452) Evelina Community Services,HOGREFE LTD,id:14576428   ,1376.40
Department of Health,Guys and St Thomas NHS Foundation Trust,28/10/2021,(50562) Qualified Nursing Staff,(id:590541) Evelina Community Services,MSI GROUP LTD,id:14580920 ,1001.09
Department of Health,Guys and St Thomas NHS Foundation Trust,15/10/2021,(82000) Provisions & Kitchens,(id:590539) Evelina Community Services,NHS SUPPLY CHAIN (MAIDSTONE),id:14441943   ,  39.00
Department of Health,Guys and St Thomas NHS Foundation Trust,15/10/2021,(50562) Qualified Nursing Staff,(id:590542) Evelina Community Services,ARTHUR RAI MEDICAL SERVICES LTD,id:14533908   , 790.20
Department of Health,Guys and St Thomas NHS Foundation Trust,01/10/2021,(50562) Qualified Nursing Staff,(id:590540) Evelina Community Services,ARTHUR RAI MEDICAL SERVICES LTD,id:14483912   ,1317.00
Department of Health,Guys and St Thomas NHS Foundation Trust,22/10/2021,(50562) Qualified Nursing Staff,(id:590540) Evelina Community Services,ARTHUR RAI MEDICAL SERVICES LTD,id:14556527   ,1317.00
Department of Health,Guys and St Thomas NHS Foundation Trust,01/10/2021,(50552) Qualified Nursing Staff,(id:590423) Evelina Community Services,ARTHUR RAI MEDICAL SERVICES LTD,id:14483774   , 923.85
Department of Health,Guys and St Thomas NHS Foundation Trust,15/10/2021,(50562) Qualified Nursing Staff,(id:590421) Evelina Community Services,ARTHUR RAI MEDICAL SERVICES LTD,id:14534175   ,1317.00
Department of Health,Guys and St Thomas NHS Foundation Trust,22/10/2021,(50562) Qualified Nursing Staff,(id:590421) Evelina Community Services,ARTHUR RAI MEDICAL SERVICES LTD,id:14556416   , 790.20
Department of Health,Guys and St Thomas NHS Foundation Trust,22/10/2021,(81200) Medical Surgical Supplies & Equipment,(id:2356419) Evelina Medicine & Neonatology,NHS SUPPLY CHAIN (MAIDSTONE),id:14478413  ,6188.45
Department of Health,Guys and St Thomas NHS Foundation Trust,15/10/2021,(82800) Bedding & Linen,(id:2356419) Evelina Medicine & Neonatology,NHS SUPPLY CHAIN (MAIDSTONE),id:14399770    ,   3.52
Department of Health,Guys and St Thomas NHS Foundation Trust,15/10/2021,(81255) Medical Surgical Supplies & Equipment,(id:2356419) Evelina Medicine & Neonatology,NHS SUPPLY CHAIN (MAIDSTONE),id:14421654  ,   2.40
Department of Health,Guys and St Thomas NHS Foundation Trust,15/10/2021,(50552) Qualified Nursing Staff,(id:2499420) Evelina Medicine & Neonatology,CONTINENTAL NURSE LTD,id:14534045   ,1155.72
Department of Health,Guys and St Thomas NHS Foundation Trust,22/10/2021,(81200) Medical Surgical Supplies & Equipment,(id:42350) Evelina Medicine & Neonatology,NHS SUPPLY CHAIN (MAIDSTONE),id:14478413    ,1900.13
Department of Health,Guys and St Thomas NHS Foundation Trust,15/10/2021,(81200) Medical Surgical Supplies & Equipment,(id:42349) Evelina Medicine & Neonatology,NHS SUPPLY CHAIN (MAIDSTONE),id:14421654    , 219.78
Department of Health,Guys and St Thomas NHS Foundation Trust,15/10/2021,(81230) Medical Surgical Supplies & Equipment,(id:42349) Evelina Medicine & Neonatology,NHS SUPPLY CHAIN (MAIDSTONE),id:14421654    ,  15.60
Department of Health,Guys and St Thomas NHS Foundation Trust,22/10/2021,(81200) Medical Surgical Supplies & Equipment,(id:817420) Evelina Medicine & Neonatology,STOWOOD SCIENTIFIC INSTRUMENTS,id:14543775 ,2091.62
Department of Health,Guys and St Thomas NHS Foundation Trust,15/10/2021,(81200) Medical Surgical Supplies & Equipment,(id:2497419) Evelina Medicine & Neonatology,NHS SUPPLY CHAIN (MAIDSTONE),id:14421654  , 291.62
Department of Health,Guys and St Thomas NHS Foundation Trust,15/10/2021,(81200) Medical Surgical Supplies & Equipment,(id:2497419) Evelina Medicine & Neonatology,NHS SUPPLY CHAIN (MAIDSTONE),id:14441943  , 124.80
Department of Health,Guys and St Thomas NHS Foundation Trust,01/10/2021,(84500) Establishment,(id:42335) Evelina Medicine & Neonatology,PEARSON EDUCATION LTD,id:14471190, 503.60
Department of Health,Guys and St Thomas NHS Foundation Trust,27/10/2021,(81000) Surgical Appliances,(id:42335) Evelina Medicine & Neonatology,JOHN FLORENCE LTD,id:14576750   ,1340.77
Department of Health,Guys and St Thomas NHS Foundation Trust,22/10/2021,(82000) Provisions & Kitchens,(id:42327) Evelina Medicine & Neonatology,NHS SUPPLY CHAIN (MAIDSTONE),id:14478413,  95.49
Department of Health,Guys and St Thomas NHS Foundation Trust,22/10/2021,(82600) Uniforms & Clothing,(id:42327) Evelina Medicine & Neonatology,NHS SUPPLY CHAIN (MAIDSTONE),id:14478413  , 108.72
Department of Health,Guys and St Thomas NHS Foundation Trust,22/10/2021,(81255) Medical Surgical Supplies & Equipment,(id:42327) Evelina Medicine & Neonatology,NHS SUPPLY CHAIN (MAIDSTONE),id:14478413    ,  50.40
Department of Health,Guys and St Thomas NHS Foundation Trust,15/10/2021,(81100) Dressings,(id:42327) Evelina Medicine & Neonatology,NHS SUPPLY CHAIN (MAIDSTONE),id:14421654  ,1069.83
Department of Health,Guys and St Thomas NHS Foundation Trust,22/10/2021,(81200) Medical Surgical Supplies & Equipment,(id:42327) Evelina Medicine & Neonatology,ARDO MEDICAL LTD,id:14543812 , 629.26
Department of Health,Guys and St Thomas NHS Foundation Trust,01/10/2021,(81200) Medical Surgical Supplies & Equipment,(id:42327) Evelina Medicine & Neonatology,FISHER & PAYKEL HEALTHCARE LTD,id:14434894  , 525.96
Department of Health,Guys and St Thomas NHS Foundation Trust,28/10/2021,(81200) Medical Surgical Supplies & Equipment,(id:42327) Evelina Medicine & Neonatology,ARDO MEDICAL LTD,id:14565634 , 629.26
Department of Health,Guys and St Thomas NHS Foundation Trust,15/10/2021,(50203) Consultants,(id:42327) Evelina Medicine & Neonatology,KINGS COLLEGE LONDON:03529700,id:14482078    ,7326.34
Department of Health,Guys and St Thomas NHS Foundation Trust,22/10/2021,(83400) Office Equipment,(id:42327) Evelina Medicine & Neonatology,NHS SUPPLY CHAIN (MAIDSTONE),id:14478413, 169.27
Department of Health,Guys and St Thomas NHS Foundation Trust,15/10/2021,(81225) Medical Surgical Supplies & Equipment,(id:42327) Evelina Medicine & Neonatology,NHS SUPPLY CHAIN (MAIDSTONE),id:14441943    , 128.24
Department of Health,Guys and St Thomas NHS Foundation Trust,15/10/2021,(81700) Lab Equipment Purchase,(id:42327) Evelina Medicine & Neonatology,NHS SUPPLY CHAIN (MAIDSTONE),id:14421654    ,  54.93
Department of Health,Guys and St Thomas NHS Foundation Trust,01/10/2021,(81200) Medical Surgical Supplies & Equipment,(id:1196420) Evelina Medicine & Neonatology,DEXCOM INTERNATIONAL LTD,id:14459774 , 600.00
Department of Health,Guys and St Thomas NHS Foundation Trust,01/10/2021,(81200) Medical Surgical Supplies & Equipment,(id:1196420) Evelina Medicine & Neonatology,DEXCOM INTERNATIONAL LTD,id:14458434 , 600.00
Department of Health,Guys and St Thomas NHS Foundation Trust,01/10/2021,(81200) Medical Surgical Supplies & Equipment,(id:1196420) Evelina Medicine & Neonatology,INSULET INTERNATIONAL LTD,id:14414234, 706.32
Department of Health,Guys and St Thomas NHS Foundation Trust,15/10/2021,(81200) Medical Surgical Supplies & Equipment,(id:1196420) Evelina Medicine & Neonatology,INSULET INTERNATIONAL LTD,id:14441998, 712.08
Department of Health,Guys and St Thomas NHS Foundation Trust,15/10/2021,(81200) Medical Surgical Supplies & Equipment,(id:1196420) Evelina Medicine & Neonatology,INSULET INTERNATIONAL LTD,id:14441986, 712.08
Department of Health,Guys and St Thomas NHS Foundation Trust,22/10/2021,(81200) Medical Surgical Supplies & Equipment,(id:1196420) Evelina Medicine & Neonatology,DEXCOM INTERNATIONAL LTD,id:14538291 , 600.00
Department of Health,Guys and St Thomas NHS Foundation Trust,15/10/2021,(81200) Medical Surgical Supplies & Equipment,(id:2496419) Evelina Medicine & Neonatology,NHS SUPPLY CHAIN (MAIDSTONE),id:14421654  , 914.70
Department of Health,Guys and St Thomas NHS Foundation Trust,15/10/2021,(83400) Office Equipment,(id:2496419) Evelina Medicine & Neonatology,NHS SUPPLY CHAIN (MAIDSTONE),id:14441943   ,  18.22
Department of Health,Guys and St Thomas NHS Foundation Trust,22/10/2021,(82000) Provisions & Kitchens,(id:2496419) Evelina Medicine & Neonatology,NHS SUPPLY CHAIN (MAIDSTONE),id:14478413   ,  45.59
Department of Health,Guys and St Thomas NHS Foundation Trust,22/10/2021,(81200) Medical Surgical Supplies & Equipment,(id:1638419) Evelina Medicine & Neonatology,NHS SUPPLY CHAIN (MAIDSTONE),id:14500176  ,  58.19
Department of Health,Guys and St Thomas NHS Foundation Trust,22/10/2021,(81200) Medical Surgical Supplies & Equipment,(id:41874) Evelina Medicine & Neonatology,NHS SUPPLY CHAIN (MAIDSTONE),id:14500176    , 141.99
Department of Health,Guys and St Thomas NHS Foundation Trust,15/10/2021,(83400) Office Equipment,(id:41874) Evelina Medicine & Neonatology,NHS SUPPLY CHAIN (MAIDSTONE),id:14421654,   3.04
Department of Health,Guys and St Thomas NHS Foundation Trust,22/10/2021,(50532) Unqualified Nursing Staff,(id:2495419) Evelina Medicine & Neonatology,GLOBE LOCUMS LTD,id:14559508 , 246.10
Department of Health,Guys and St Thomas NHS Foundation Trust,22/10/2021,(83400) Office Equipment,(id:42323) Evelina Medicine & Neonatology,NHS SUPPLY CHAIN (MAIDSTONE),id:14478413,  90.13
Department of Health,Guys and St Thomas NHS Foundation Trust,15/10/2021,(83400) Office Equipment,(id:42323) Evelina Medicine & Neonatology,NHS SUPPLY CHAIN (MAIDSTONE),id:14441943,  49.46
Department of Health,Guys and St Thomas NHS Foundation Trust,15/10/2021,(82800) Bedding & Linen,(id:42323) Evelina Medicine & Neonatology,NHS SUPPLY CHAIN (MAIDSTONE),id:14421654 ,  94.27
Department of Health,Guys and St Thomas NHS Foundation Trust,22/10/2021,(82800) Bedding & Linen,(id:42323) Evelina Medicine & Neonatology,NHS SUPPLY CHAIN (MAIDSTONE),id:14478413 ,  71.65
Department of Health,Guys and St Thomas NHS Foundation Trust,22/10/2021,(82000) Provisions & Kitchens,(id:42315) Evelina Medicine & Neonatology,NHS SUPPLY CHAIN (MAIDSTONE),id:14478413,  84.02
Department of Health,Guys and St Thomas NHS Foundation Trust,15/10/2021,(81200) Medical Surgical Supplies & Equipment,(id:42315) Evelina Medicine & Neonatology,NHS SUPPLY CHAIN (MAIDSTONE),id:14421654    ,2437.61
Department of Health,Guys and St Thomas NHS Foundation Trust,15/10/2021,(81275) Medical Surgical Supplies & Equipment,(id:42315) Evelina Medicine & Neonatology,NHS SUPPLY CHAIN (MAIDSTONE),id:14441943    ,  46.22
Department of Health,Guys and St Thomas NHS Foundation Trust,22/10/2021,(83400) Office Equipment,(id:42059) Evelina Medicine & Neonatology,NHS SUPPLY CHAIN (MAIDSTONE),id:14478413,  16.13
Department of Health,Guys and St Thomas NHS Foundation Trust,15/10/2021,(82800) Bedding & Linen,(id:42058) Evelina Medicine & Neonatology,NHS SUPPLY CHAIN (MAIDSTONE),id:14421654 ,  12.00
Department of Health,Guys and St Thomas NHS Foundation Trust,22/10/2021,(82700) Uniforms & Clothing,(id:4082419) Evelina Surgery Theatres & PICU,NHS SUPPLY CHAIN (MAIDSTONE),id:14478413    ,  12.97
Department of Health,Guys and St Thomas NHS Foundation Trust,15/10/2021,(81200) Medical Surgical Supplies & Equipment,(id:4082419) Evelina Surgery Theatres & PICU,NHS SUPPLY CHAIN (MAIDSTONE),id:14421654 ,1492.52
Department of Health,Guys and St Thomas NHS Foundation Trust,15/10/2021,(82800) Bedding & Linen,(id:4082419) Evelina Surgery Theatres & PICU,NHS SUPPLY CHAIN (MAIDSTONE),id:14441943   , 133.91
Department of Health,Guys and St Thomas NHS Foundation Trust,15/10/2021,(82800) Bedding & Linen,(id:4082419) Evelina Surgery Theatres & PICU,NHS SUPPLY CHAIN (MAIDSTONE),id:14421654   ,  27.50
Department of Health,Guys and St Thomas NHS Foundation Trust,15/10/2021,(81100) Dressings,(id:4082419) Evelina Surgery Theatres & PICU,NHS SUPPLY CHAIN (MAIDSTONE),id:14441943    , 441.84
Department of Health,Guys and St Thomas NHS Foundation Trust,08/10/2021,(84500) Establishment,(id:2499419) Evelina Surgery Theatres & PICU,OFFICE DEPOT UK LTD,id:14430013    ,  26.73
Department of Health,Guys and St Thomas NHS Foundation Trust,22/10/2021,(81200) Medical Surgical Supplies & Equipment,(id:2499419) Evelina Surgery Theatres & PICU,NHS SUPPLY CHAIN (MAIDSTONE),id:14478413 , 155.64
Department of Health,Guys and St Thomas NHS Foundation Trust,15/10/2021,(81200) Medical Surgical Supplies & Equipment,(id:42312) Evelina Surgery Theatres & PICU,NHS SUPPLY CHAIN (MAIDSTONE),id:14441943   ,7722.12
Department of Health,Guys and St Thomas NHS Foundation Trust,15/10/2021,(81200) Medical Surgical Supplies & Equipment,(id:42312) Evelina Surgery Theatres & PICU,COOK UK LTD,id:14485373, 384.00
Department of Health,Guys and St Thomas NHS Foundation Trust,08/10/2021,(81200) Medical Surgical Supplies & Equipment,(id:42312) Evelina Surgery Theatres & PICU,BVM MEDICAL LTD,id:14487354 ,1165.20
Department of Health,Guys and St Thomas NHS Foundation Trust,01/10/2021,(81200) Medical Surgical Supplies & Equipment,(id:42312) Evelina Surgery Theatres & PICU,WL GORE & ASSOCIATES (UK) LTD,id:14449162  , 726.00
Department of Health,Guys and St Thomas NHS Foundation Trust,08/10/2021,(81200) Medical Surgical Supplies & Equipment,(id:42312) Evelina Surgery Theatres & PICU,MEDTRONIC LTD,id:14447536   ,6960.00
Department of Health,Guys and St Thomas NHS Foundation Trust,22/10/2021,(83610) IT Costs,(id:42312) Evelina Surgery Theatres & PICU,COMPUTACENTER UK LTD,id:14541634, 860.00
Department of Health,Guys and St Thomas NHS Foundation Trust,22/10/2021,(81280) Medical Surgical Supplies & Equipment,(id:42312) Evelina Surgery Theatres & PICU,OCCLUTECH UK LTD,id:14504934,2940.00
Department of Health,Guys and St Thomas NHS Foundation Trust,15/10/2021,(83400) Office Equipment,(id:42312) Evelina Surgery Theatres & PICU,NHS SUPPLY CHAIN (MAIDSTONE),id:14421654    ,  44.36
Department of Health,Guys and St Thomas NHS Foundation Trust,15/10/2021,(83400) Office Equipment,(id:42312) Evelina Surgery Theatres & PICU,NHS SUPPLY CHAIN (MAIDSTONE),id:14399770    , 173.66
Department of Health,Guys and St Thomas NHS Foundation Trust,01/10/2021,(81200) Medical Surgical Supplies & Equipment,(id:42351) Evelina Surgery Theatres & PICU,KARL STORZ ENDOSCOPY UK LTD,id:14481872    , 554.40
Department of Health,Guys and St Thomas NHS Foundation Trust,22/10/2021,(81200) Medical Surgical Supplies & Equipment,(id:42351) Evelina Surgery Theatres & PICU,CENTRAL MEDICAL SUPPLIES LTD,id:14542634   , 505.20
Department of Health,Guys and St Thomas NHS Foundation Trust,22/10/2021,(82000) Provisions & Kitchens,(id:41914) Evelina Surgery Theatres & PICU,NHS SUPPLY CHAIN (MAIDSTONE),id:14478413    ,  67.75
Department of Health,Guys and St Thomas NHS Foundation Trust,22/10/2021,(83400) Office Equipment,(id:41914) Evelina Surgery Theatres & PICU,NHS SUPPLY CHAIN (MAIDSTONE),id:14500176    , 815.90
Department of Health,Guys and St Thomas NHS Foundation Trust,22/10/2021,(82800) Bedding & Linen,(id:41914) Evelina Surgery Theatres & PICU,NHS SUPPLY CHAIN (MAIDSTONE),id:14478413, 323.83
Department of Health,Guys and St Thomas NHS Foundation Trust,01/10/2021,(81200) Medical Surgical Supplies & Equipment,(id:41914) Evelina Surgery Theatres & PICU,RENISHAW NEURO SOLUTIONS LTD,id:14456254   ,1200.00
Department of Health,Guys and St Thomas NHS Foundation Trust,15/10/2021,(81200) Medical Surgical Supplies & Equipment,(id:41914) Evelina Surgery Theatres & PICU,NHS SUPPLY CHAIN (MAIDSTONE),id:14421654   , 705.63
Department of Health,Guys and St Thomas NHS Foundation Trust,22/10/2021,(81200) Medical Surgical Supplies & Equipment,(id:41914) Evelina Surgery Theatres & PICU,NHS SUPPLY CHAIN (MAIDSTONE),id:14500176   ,1420.23
Department of Health,Guys and St Thomas NHS Foundation Trust,22/10/2021,(81200) Medical Surgical Supplies & Equipment,(id:41914) Evelina Surgery Theatres & PICU,RENISHAW NEURO SOLUTIONS LTD,id:14551115   , 600.00
Department of Health,Guys and St Thomas NHS Foundation Trust,01/10/2021,(50562) Qualified Nursing Staff,(id:41914) Evelina Surgery Theatres & PICU,PULSE HEALTHCARE LIMITED,id:14483704 , 569.86
Department of Health,Guys and St Thomas NHS Foundation Trust,01/10/2021,(50562) Qualified Nursing Staff,(id:41914) Evelina Surgery Theatres & PICU,PULSE HEALTHCARE LIMITED,id:14483431 , 475.01
Department of Health,Guys and St Thomas NHS Foundation Trust,22/10/2021,(81100) Dressings,(id:41914) Evelina Surgery Theatres & PICU,NHS SUPPLY CHAIN (MAIDSTONE),id:14478413 ,  96.13
Department of Health,Guys and St Thomas NHS Foundation Trust,22/10/2021,(81100) Dressings,(id:41914) Evelina Surgery Theatres & PICU,ELIS UK LIMITED,id:14549974    , 475.20
Department of Health,Guys and St Thomas NHS Foundation Trust,15/10/2021,(81100) Dressings,(id:41914) Evelina Surgery Theatres & PICU,ELIS UK LIMITED,id:14484414    , 539.00
Department of Health,Guys and St Thomas NHS Foundation Trust,15/10/2021,(50552) Qualified Nursing Staff,(id:41914) Evelina Surgery Theatres & PICU,CONTINENTAL NURSE LTD,id:14534177    , 364.25
Department of Health,Guys and St Thomas NHS Foundation Trust,26/10/2021,(84600) Establishment,(id:41914) Evelina Surgery Theatres & PICU,GSTT PROCUREMENT CARD,id:14577074    ,1676.00
Department of Health,Guys and St Thomas NHS Foundation Trust,15/10/2021,(81200) Medical Surgical Supplies & Equipment,(id:41910) Evelina Surgery Theatres & PICU,MRI DEVICES LTD,id:14489594 ,1276.80
Department of Health,Guys and St Thomas NHS Foundation Trust,22/10/2021,(81200) Medical Surgical Supplies & Equipment,(id:41910) Evelina Surgery Theatres & PICU,NHS SUPPLY CHAIN (MAIDSTONE),id:14478413   ,2063.46
Department of Health,Guys and St Thomas NHS Foundation Trust,22/10/2021,(81200) Medical Surgical Supplies & Equipment,(id:41910) Evelina Surgery Theatres & PICU,PAJUNK UK MEDICAL PRODUCTS LTD,id:14553428 , 561.00
Department of Health,Guys and St Thomas NHS Foundation Trust,01/10/2021,(81200) Medical Surgical Supplies & Equipment,(id:1196421) Evelina Surgery Theatres & PICU,NUVASIVE UK LTD,id:14467854    ,8455.80
Department of Health,Guys and St Thomas NHS Foundation Trust,15/10/2021,(81100) Dressings,(id:2498419) Evelina Surgery Theatres & PICU,NHS SUPPLY CHAIN (MAIDSTONE),id:14421654    ,  12.34
Department of Health,Guys and St Thomas NHS Foundation Trust,15/10/2021,(81200) Medical Surgical Supplies & Equipment,(id:431409) Evelina Surgery Theatres & PICU,ORTHOPEDIATRICS EU LIMITED,id:14527594    , 669.60
Department of Health,Guys and St Thomas NHS Foundation Trust,15/10/2021,(81200) Medical Surgical Supplies & Equipment,(id:431409) Evelina Surgery Theatres & PICU,NHS SUPPLY CHAIN (MAIDSTONE),id:14399770  ,7122.97
Department of Health,Guys and St Thomas NHS Foundation Trust,22/10/2021,(81200) Medical Surgical Supplies & Equipment,(id:431409) Evelina Surgery Theatres & PICU,NHS SUPPLY CHAIN (MAIDSTONE),id:14500176  ,9014.80
Department of Health,Guys and St Thomas NHS Foundation Trust,22/10/2021,(81200) Medical Surgical Supplies & Equipment,(id:431409) Evelina Surgery Theatres & PICU,NHS SUPPLY CHAIN (MAIDSTONE),id:14478413  ,2131.18
Department of Health,Guys and St Thomas NHS Foundation Trust,22/10/2021,(81200) Medical Surgical Supplies & Equipment,(id:431409) Evelina Surgery Theatres & PICU,NUVASIVE UK LTD,id:14530239,1071.00
Department of Health,Guys and St Thomas NHS Foundation Trust,08/10/2021,(81000) Surgical Appliances,(id:431409) Evelina Surgery Theatres & PICU,TALAR MADE ORTHOTICS LTD,id:14494594    , 289.33
Department of Health,Guys and St Thomas NHS Foundation Trust,08/10/2021,(81000) Surgical Appliances,(id:431409) Evelina Surgery Theatres & PICU,JOHN FLORENCE LTD,id:14499703 , 870.59
Department of Health,Guys and St Thomas NHS Foundation Trust,27/10/2021,(81000) Surgical Appliances,(id:431409) Evelina Surgery Theatres & PICU,JOHN FLORENCE LTD,id:14576695 , 823.56
Department of Health,Guys and St Thomas NHS Foundation Trust,27/10/2021,(81000) Surgical Appliances,(id:431409) Evelina Surgery Theatres & PICU,JOHN FLORENCE LTD,id:14576667 , 917.86
Department of Health,Guys and St Thomas NHS Foundation Trust,15/10/2021,(81000) Surgical Appliances,(id:431409) Evelina Surgery Theatres & PICU,NHS SUPPLY CHAIN (MAIDSTONE),id:14441943, 189.84
Department of Health,Guys and St Thomas NHS Foundation Trust,15/10/2021,(81200) Medical Surgical Supplies & Equipment,(id:468409) Evelina Surgery Theatres & PICU,NHS SUPPLY CHAIN (MAIDSTONE),id:14421654  , 579.28
Department of Health,Guys and St Thomas NHS Foundation Trust,15/10/2021,(81550) X Ray Equipment Purchase,(id:468409) Evelina Surgery Theatres & PICU,NHS SUPPLY CHAIN (MAIDSTONE),id:14421654, 116.40
Department of Health,Guys and St Thomas NHS Foundation Trust,12/10/2021,(53072) Speech Therapists,(id:468409) Evelina Surgery Theatres & PICU,PRICEWATERHOUSECOOPERS LLP,id:14526636    ,1322.92
Department of Health,Guys and St Thomas NHS Foundation Trust,22/10/2021,(81100) Dressings,(id:2495421) Evelina Surgery Theatres & PICU,NHS SUPPLY CHAIN (MAIDSTONE),id:14500176    , 217.06
Department of Health,Guys and St Thomas NHS Foundation Trust,15/10/2021,(81100) Dressings,(id:42347) Evelina Surgery Theatres & PICU,NHS SUPPLY CHAIN (MAIDSTONE),id:14421654 ,    .72
